Department Family,Entity,Date,Expense Type,Expense Area,Supplier,Transaction Number,Amount,Description
Ministry of Justice,HMCTS,10/Mar/2015 ,610400-Debtors <1 year - Prepayments & Accrued Income,CZ999-South East Region,AFFINITY COMMERCIAL LLP,3149307,"337,918.75 ",Rent payment
Ministry of Justice,HMCTS,10/Mar/2015 ,610400-Debtors <1 year - Prepayments & Accrued Income,CZ999-South East Region,AFFINITY COMMERCIAL LLP,3149307,"67,583.75 ",Rent payment
Ministry of Justice,HMCTS,27/Mar/2015 ,532000-Tangible GBV - Additions,DZ999-South West Region,AHR ARCHITECTS LTD,3172369,"29,540.70 ",Winchester Combined - AHR  Architects Ltd - Works associated with new lease including Judges Lodgings (provision of Designer/TA consultant services: Stage 4-7)
Ministry of Justice,HMCTS,27/Mar/2015 ,532000-Tangible GBV - Additions,DZ999-South West Region,AHR ARCHITECTS LTD,3172369,"5,908.14 ",Winchester Combined - AHR  Architects Ltd - Works associated with new lease including Judges Lodgings (provision of Designer/TA consultant services: Stage 4-7)
Ministry of Justice,HMCTS,31/Mar/2015 ,265000-IT & Telecommunications,AL999-HQ - CEO,ATOS IT SERVICES UK LTD,3174914,328.00 ,"Large Form Laptop - HP EliteBook 8570p (15.6"" screen)"
Ministry of Justice,HMCTS,31/Mar/2015 ,265000-IT & Telecommunications,AL999-HQ - CEO,ATOS IT SERVICES UK LTD,3174914,46.00 ,Provision and support of Secure Remote Access (RWSII) Capability
Ministry of Justice,HMCTS,31/Mar/2015 ,265000-IT & Telecommunications,AL999-HQ - CEO,ATOS IT SERVICES UK LTD,3174914,46.00 ,Provision and support of Secure Remote Access (RWSII) Capability
Ministry of Justice,HMCTS,31/Mar/2015 ,265000-IT & Telecommunications,AL999-HQ - CEO,ATOS IT SERVICES UK LTD,3174914,46.00 ,Provision and support of Secure Remote Access (RWSII) Capability
Ministry of Justice,HMCTS,31/Mar/2015 ,265000-IT & Telecommunications,AL999-HQ - CEO,ATOS IT SERVICES UK LTD,3174914,"1,300.50 ",AVM Ad-Hoc Labour and Materials
Ministry of Justice,HMCTS,31/Mar/2015 ,265000-IT & Telecommunications,AL999-HQ - CEO,ATOS IT SERVICES UK LTD,3174914,82.78 ,BlackBerry (Vodafone)
Ministry of Justice,HMCTS,31/Mar/2015 ,265000-IT & Telecommunications,AL999-HQ - CEO,ATOS IT SERVICES UK LTD,3174914,82.78 ,BlackBerry (Vodafone)
Ministry of Justice,HMCTS,03/Mar/2015 ,265000-IT & Telecommunications,"AM999-HQ - Civil, Family & Tribunals",ATOS IT SERVICES UK LTD,3141619,144.00 ,Relocation of 4 desktop client devices within the same building.
Ministry of Justice,HMCTS,31/Mar/2015 ,265000-IT & Telecommunications,"AM999-HQ - Civil, Family & Tribunals",ATOS IT SERVICES UK LTD,3174914,998.80 ,Plantronics HW261 N Duo Headset 1-11 devices
Ministry of Justice,HMCTS,31/Mar/2015 ,265000-IT & Telecommunications,"AM999-HQ - Civil, Family & Tribunals",ATOS IT SERVICES UK LTD,3174914,25.78 ,New IPT Handset 1 - 11 devices
Ministry of Justice,HMCTS,03/Mar/2015 ,265000-IT & Telecommunications,"AM999-HQ - Civil, Family & Tribunals",ATOS IT SERVICES UK LTD,3141619,11.62 ,MS Visio Std
Ministry of Justice,HMCTS,03/Mar/2015 ,265000-IT & Telecommunications,"AM999-HQ - Civil, Family & Tribunals",ATOS IT SERVICES UK LTD,3141619,66.86 ,Return BlackBerry device (no longer required)
Ministry of Justice,HMCTS,31/Mar/2015 ,265000-IT & Telecommunications,"AM999-HQ - Civil, Family & Tribunals",ATOS IT SERVICES UK LTD,3174914,82.78 ,BlackBerry (Vodafone)
Ministry of Justice,HMCTS,31/Mar/2015 ,265000-IT & Telecommunications,"AM999-HQ - Civil, Family & Tribunals",ATOS IT SERVICES UK LTD,3174914,66.86 ,Return BlackBerry device (no longer required)
Ministry of Justice,HMCTS,03/Mar/2015 ,265000-IT & Telecommunications,AN999-HQ - Crime,ATOS IT SERVICES UK LTD,3141619,164.00 ,"Standard Form Laptop - HP EliteBook 8470p (14"" screen)"
Ministry of Justice,HMCTS,03/Mar/2015 ,265000-IT & Telecommunications,AN999-HQ - Crime,ATOS IT SERVICES UK LTD,3141619,46.00 ,Provision and support of Secure Remote Access (RWSII) Capability
Ministry of Justice,HMCTS,31/Mar/2015 ,265000-IT & Telecommunications,AN999-HQ - Crime,ATOS IT SERVICES UK LTD,3174914,25.78 ,New IPT Mobility account with voicemail account 1-10 Accounts
Ministry of Justice,HMCTS,03/Mar/2015 ,265000-IT & Telecommunications,AN999-HQ - Crime,ATOS IT SERVICES UK LTD,3141619,242.09 ,Adobe Acrobat Writer Professional
Ministry of Justice,HMCTS,31/Mar/2015 ,265000-IT & Telecommunications,AN999-HQ - Crime,ATOS IT SERVICES UK LTD,3174914,82.78 ,AO-Crime Directors Office-BlackBerry (Vodafone)-ID376257-DISC
Ministry of Justice,HMCTS,31/Mar/2015 ,265000-IT & Telecommunications,AP999-HQ - Strategy & Change,ATOS IT SERVICES UK LTD,3174914,488.99 ,1 to 5 Devices National Relocation -Printer or MFD (Multi Function Device)
Ministry of Justice,HMCTS,31/Mar/2015 ,265000-IT & Telecommunications,AP999-HQ - Strategy & Change,ATOS IT SERVICES UK LTD,3174914,6.38 ,HP USB/PS2 Optical Scroll Mouse
Ministry of Justice,HMCTS,31/Mar/2015 ,265000-IT & Telecommunications,AP999-HQ - Strategy & Change,ATOS IT SERVICES UK LTD,3174914,258.33 ,HP OfficeJet 100 Mobile Printer
Ministry of Justice,HMCTS,31/Mar/2015 ,265000-IT & Telecommunications,AP999-HQ - Strategy & Change,ATOS IT SERVICES UK LTD,3174914,231.00 ,Relocation of 7 desktop client devices within the same building.
Ministry of Justice,HMCTS,31/Mar/2015 ,265000-IT & Telecommunications,AP999-HQ - Strategy & Change,ATOS IT SERVICES UK LTD,3174914,457.56 ,AO-Common Platform-41 HP Standard USB Keyboards-ID377045-DISC
Ministry of Justice,HMCTS,31/Mar/2015 ,265000-IT & Telecommunications,AP999-HQ - Strategy & Change,ATOS IT SERVICES UK LTD,3174914,63.80 ,HP USB/PS2 Optical Scroll Mouse
Ministry of Justice,HMCTS,31/Mar/2015 ,265000-IT & Telecommunications,AP999-HQ - Strategy & Change,ATOS IT SERVICES UK LTD,3174914,256.68 ,AO-Common Platform- 23 HP Standard USB Keyboard-DISC
Ministry of Justice,HMCTS,31/Mar/2015 ,265000-IT & Telecommunications,AP999-HQ - Strategy & Change,ATOS IT SERVICES UK LTD,3174914,223.30 ,HP USB/PS2 Optical Scroll Mouse
Ministry of Justice,HMCTS,31/Mar/2015 ,265000-IT & Telecommunications,AP999-HQ - Strategy & Change,ATOS IT SERVICES UK LTD,3174914,66.96 ,AO-Common Platform-6 HP Standard USB Keyboards-ID376982-DISC
Ministry of Justice,HMCTS,31/Mar/2015 ,265000-IT & Telecommunications,AP999-HQ - Strategy & Change,ATOS IT SERVICES UK LTD,3174914,"4,523.86 ","22"" LCD Display"
Ministry of Justice,HMCTS,31/Mar/2015 ,265000-IT & Telecommunications,AP999-HQ - Strategy & Change,ATOS IT SERVICES UK LTD,3174914,"2,056.30 ","AO-Common Platform-10 22"" LCD Display-DISC"
Ministry of Justice,HMCTS,31/Mar/2015 ,265000-IT & Telecommunications,AP999-HQ - Strategy & Change,ATOS IT SERVICES UK LTD,3174914,"4,935.12 ","22"" LCD Display"
Ministry of Justice,HMCTS,31/Mar/2015 ,265000-IT & Telecommunications,AP999-HQ - Strategy & Change,ATOS IT SERVICES UK LTD,3174914,37.45 ,Relocation of 2-5 desktop client devices within the same building
Ministry of Justice,HMCTS,31/Mar/2015 ,265000-IT & Telecommunications,AP999-HQ - Strategy & Change,ATOS IT SERVICES UK LTD,3174914,231.00 ,Relocation of 7 desktop client devices within the same building.
Ministry of Justice,HMCTS,03/Mar/2015 ,265000-IT & Telecommunications,AP999-HQ - Strategy & Change,ATOS IT SERVICES UK LTD,3141619,164.00 ,"Standard Form Laptop - HP EliteBook 8470p (14"" screen)"
Ministry of Justice,HMCTS,03/Mar/2015 ,265000-IT & Telecommunications,AP999-HQ - Strategy & Change,ATOS IT SERVICES UK LTD,3141619,164.00 ,"Standard Form Laptop - HP EliteBook 8470p (14"" screen)"
Ministry of Justice,HMCTS,31/Mar/2015 ,265000-IT & Telecommunications,AP999-HQ - Strategy & Change,ATOS IT SERVICES UK LTD,3174914,164.00 ,"Standard Form Laptop - HP EliteBook 8470p (14"" screen)"
Ministry of Justice,HMCTS,31/Mar/2015 ,265000-IT & Telecommunications,AP999-HQ - Strategy & Change,ATOS IT SERVICES UK LTD,3174914,164.00 ,"Standard Form Laptop - HP EliteBook 8470p (14"" screen)"
Ministry of Justice,HMCTS,31/Mar/2015 ,265000-IT & Telecommunications,AP999-HQ - Strategy & Change,ATOS IT SERVICES UK LTD,3174914,164.00 ,"Standard Form Laptop - HP EliteBook 8470p (14"" screen)"
Ministry of Justice,HMCTS,31/Mar/2015 ,265000-IT & Telecommunications,AP999-HQ - Strategy & Change,ATOS IT SERVICES UK LTD,3174914,164.00 ,"Standard Form Laptop - HP EliteBook 8470p (14"" screen)"
Ministry of Justice,HMCTS,31/Mar/2015 ,265000-IT & Telecommunications,AP999-HQ - Strategy & Change,ATOS IT SERVICES UK LTD,3174914,164.00 ,HMCTS Judicial Laptop
Ministry of Justice,HMCTS,31/Mar/2015 ,265000-IT & Telecommunications,AP999-HQ - Strategy & Change,ATOS IT SERVICES UK LTD,3174914,72.75 ,Laptop Security Device with Key lock
Ministry of Justice,HMCTS,31/Mar/2015 ,265000-IT & Telecommunications,AP999-HQ - Strategy & Change,ATOS IT SERVICES UK LTD,3174914,164.00 ,"Standard Form Laptop - HP EliteBook 8470p (14"" screen)"
Ministry of Justice,HMCTS,31/Mar/2015 ,265000-IT & Telecommunications,AP999-HQ - Strategy & Change,ATOS IT SERVICES UK LTD,3174914,164.00 ,"Standard Form Laptop - HP EliteBook 8470p (14"" screen)"
Ministry of Justice,HMCTS,31/Mar/2015 ,265000-IT & Telecommunications,AP999-HQ - Strategy & Change,ATOS IT SERVICES UK LTD,3174914,164.00 ,"Standard Form Laptop - HP EliteBook 8470p (14"" screen)"
Ministry of Justice,HMCTS,10/Mar/2015 ,265000-IT & Telecommunications,AP999-HQ - Strategy & Change,ATOS IT SERVICES UK LTD,3149332,"31,208.00 ",Atos Network changes and icon deployment
Ministry of Justice,HMCTS,03/Mar/2015 ,265000-IT & Telecommunications,AP999-HQ - Strategy & Change,ATOS IT SERVICES UK LTD,3141619,67.31 ,Plantronics HW251 A Mono Headset 1-11 devices
Ministry of Justice,HMCTS,03/Mar/2015 ,265000-IT & Telecommunications,AP999-HQ - Strategy & Change,ATOS IT SERVICES UK LTD,3141619,46.00 ,Provision and support of Secure Remote Access (RWSII) Capability
Ministry of Justice,HMCTS,03/Mar/2015 ,265000-IT & Telecommunications,AP999-HQ - Strategy & Change,ATOS IT SERVICES UK LTD,3141619,46.00 ,Provision and support of Secure Remote Access (RWSII) Capability
Ministry of Justice,HMCTS,03/Mar/2015 ,265000-IT & Telecommunications,AP999-HQ - Strategy & Change,ATOS IT SERVICES UK LTD,3141619,19.68 ,"Plantronics ""BlackWire C310-M"" headset with microphone"
Ministry of Justice,HMCTS,03/Mar/2015 ,265000-IT & Telecommunications,AP999-HQ - Strategy & Change,ATOS IT SERVICES UK LTD,3141619,515.00 ,Polycom VoiceStation 300 Conference Phone Changes 1 - 10
Ministry of Justice,HMCTS,03/Mar/2015 ,265000-IT & Telecommunications,AP999-HQ - Strategy & Change,ATOS IT SERVICES UK LTD,3141619,618.00 ,Polycom Soundstation 2 Conference Phone 1-11 devices
Ministry of Justice,HMCTS,03/Mar/2015 ,265000-IT & Telecommunications,AP999-HQ - Strategy & Change,ATOS IT SERVICES UK LTD,3141619,25.78 ,Pick Up Group - Amend
Ministry of Justice,HMCTS,03/Mar/2015 ,265000-IT & Telecommunications,AP999-HQ - Strategy & Change,ATOS IT SERVICES UK LTD,3141619,25.78 ,New IPT Mobility account with voicemail account 1-10 Accounts
Ministry of Justice,HMCTS,03/Mar/2015 ,265000-IT & Telecommunications,AP999-HQ - Strategy & Change,ATOS IT SERVICES UK LTD,3141619,46.00 ,Provision and support of Secure Remote Access (RWSII) Capability
Ministry of Justice,HMCTS,31/Mar/2015 ,265000-IT & Telecommunications,AP999-HQ - Strategy & Change,ATOS IT SERVICES UK LTD,3174914,46.00 ,Provision and support of Secure Remote Access (RWSII) Capability
Ministry of Justice,HMCTS,31/Mar/2015 ,265000-IT & Telecommunications,AP999-HQ - Strategy & Change,ATOS IT SERVICES UK LTD,3174914,46.00 ,Provision and support of Secure Remote Access (RWSII) Capability
Ministry of Justice,HMCTS,31/Mar/2015 ,265000-IT & Telecommunications,AP999-HQ - Strategy & Change,ATOS IT SERVICES UK LTD,3174914,19.68 ,"Plantronics ""BlackWire C310-M"" headset with microphone"
Ministry of Justice,HMCTS,31/Mar/2015 ,265000-IT & Telecommunications,AP999-HQ - Strategy & Change,ATOS IT SERVICES UK LTD,3174914,128.90 ,New IPT Mobility account with voicemail account 1-10 Accounts
Ministry of Justice,HMCTS,31/Mar/2015 ,265000-IT & Telecommunications,AP999-HQ - Strategy & Change,ATOS IT SERVICES UK LTD,3174914,46.00 ,Provision and support of Secure Remote Access (RWSII) Capability
Ministry of Justice,HMCTS,31/Mar/2015 ,265000-IT & Telecommunications,AP999-HQ - Strategy & Change,ATOS IT SERVICES UK LTD,3174914,51.56 ,Deletion of a Mobility user account 1-10 Accounts
Ministry of Justice,HMCTS,31/Mar/2015 ,265000-IT & Telecommunications,AP999-HQ - Strategy & Change,ATOS IT SERVICES UK LTD,3174914,25.78 ,New IPT Mobility account with voicemail account 1-10 Accounts
Ministry of Justice,HMCTS,31/Mar/2015 ,265000-IT & Telecommunications,AP999-HQ - Strategy & Change,ATOS IT SERVICES UK LTD,3174914,25.78 ,Voicemail - Caller Redirect Announcement - 1 - 10 Numbers
Ministry of Justice,HMCTS,31/Mar/2015 ,265000-IT & Telecommunications,AP999-HQ - Strategy & Change,ATOS IT SERVICES UK LTD,3174914,25.78 ,New IPT Mobility account with voicemail account 1-10 Accounts
Ministry of Justice,HMCTS,31/Mar/2015 ,265000-IT & Telecommunications,AP999-HQ - Strategy & Change,ATOS IT SERVICES UK LTD,3174914,46.00 ,Provision and support of Secure Remote Access (RWSII) Capability
Ministry of Justice,HMCTS,31/Mar/2015 ,265000-IT & Telecommunications,AP999-HQ - Strategy & Change,ATOS IT SERVICES UK LTD,3174914,46.00 ,Provision and support of Secure Remote Access (RWSII) Capability
Ministry of Justice,HMCTS,31/Mar/2015 ,265000-IT & Telecommunications,AP999-HQ - Strategy & Change,ATOS IT SERVICES UK LTD,3174914,46.00 ,Provision and support of Secure Remote Access (RWSII) Capability
Ministry of Justice,HMCTS,31/Mar/2015 ,265000-IT & Telecommunications,AP999-HQ - Strategy & Change,ATOS IT SERVICES UK LTD,3174914,77.34 ,New IPT Handset 1 - 11 devices
Ministry of Justice,HMCTS,31/Mar/2015 ,265000-IT & Telecommunications,AP999-HQ - Strategy & Change,ATOS IT SERVICES UK LTD,3174914,77.34 ,New IPT Mobility account without voicemail 1-10 Accounts
Ministry of Justice,HMCTS,31/Mar/2015 ,265000-IT & Telecommunications,AP999-HQ - Strategy & Change,ATOS IT SERVICES UK LTD,3174914,46.00 ,Provision and support of Secure Remote Access (RWSII) Capability
Ministry of Justice,HMCTS,03/Mar/2015 ,265000-IT & Telecommunications,AP999-HQ - Strategy & Change,ATOS IT SERVICES UK LTD,3141619,11.62 ,MS Visio Professional
Ministry of Justice,HMCTS,31/Mar/2015 ,265000-IT & Telecommunications,AP999-HQ - Strategy & Change,ATOS IT SERVICES UK LTD,3174914,"1,368.37 ",CS5.5 Design Premium
Ministry of Justice,HMCTS,31/Mar/2015 ,265000-IT & Telecommunications,AP999-HQ - Strategy & Change,ATOS IT SERVICES UK LTD,3174914,11.62 ,MS Visio Professional
Ministry of Justice,HMCTS,03/Mar/2015 ,265000-IT & Telecommunications,AP999-HQ - Strategy & Change,ATOS IT SERVICES UK LTD,3141619,11.62 ,MS Visio Std
Ministry of Justice,HMCTS,03/Mar/2015 ,265000-IT & Telecommunications,AP999-HQ - Strategy & Change,ATOS IT SERVICES UK LTD,3141619,11.62 ,MS Project Standard
Ministry of Justice,HMCTS,03/Mar/2015 ,265000-IT & Telecommunications,AP999-HQ - Strategy & Change,ATOS IT SERVICES UK LTD,3141619,11.62 ,MS Project Standard
Ministry of Justice,HMCTS,03/Mar/2015 ,265000-IT & Telecommunications,AP999-HQ - Strategy & Change,ATOS IT SERVICES UK LTD,3141619,66.86 ,Return BlackBerry device (no longer required)
Ministry of Justice,HMCTS,03/Mar/2015 ,265000-IT & Telecommunications,AP999-HQ - Strategy & Change,ATOS IT SERVICES UK LTD,3141619,11.62 ,MS Visio Std
Ministry of Justice,HMCTS,03/Mar/2015 ,265000-IT & Telecommunications,AP999-HQ - Strategy & Change,ATOS IT SERVICES UK LTD,3141619,66.86 ,Return BlackBerry device (no longer required)
Ministry of Justice,HMCTS,03/Mar/2015 ,265000-IT & Telecommunications,AP999-HQ - Strategy & Change,ATOS IT SERVICES UK LTD,3141619,11.62 ,MS Project Standard
Ministry of Justice,HMCTS,03/Mar/2015 ,265000-IT & Telecommunications,AP999-HQ - Strategy & Change,ATOS IT SERVICES UK LTD,3141619,11.62 ,MS Visio Std
Ministry of Justice,HMCTS,31/Mar/2015 ,265000-IT & Telecommunications,AP999-HQ - Strategy & Change,ATOS IT SERVICES UK LTD,3174914,"11,704.50 ",AVM Ad-Hoc Labour and Materials
Ministry of Justice,HMCTS,31/Mar/2015 ,265000-IT & Telecommunications,AP999-HQ - Strategy & Change,ATOS IT SERVICES UK LTD,3174914,11.62 ,MS Project Standard
Ministry of Justice,HMCTS,31/Mar/2015 ,265000-IT & Telecommunications,AP999-HQ - Strategy & Change,ATOS IT SERVICES UK LTD,3174914,"2,080.80 ",AVM Ad-Hoc Labour and Materials
Ministry of Justice,HMCTS,31/Mar/2015 ,265000-IT & Telecommunications,AP999-HQ - Strategy & Change,ATOS IT SERVICES UK LTD,3174914,"4,941.90 ",AVM Ad-Hoc Labour and Materials
Ministry of Justice,HMCTS,31/Mar/2015 ,265000-IT & Telecommunications,AP999-HQ - Strategy & Change,ATOS IT SERVICES UK LTD,3174914,780.30 ,AVM Ad-Hoc Labour and Materials
Ministry of Justice,HMCTS,31/Mar/2015 ,265000-IT & Telecommunications,AP999-HQ - Strategy & Change,ATOS IT SERVICES UK LTD,3174914,"4,941.90 ",AVM Ad-Hoc Labour and Materials
Ministry of Justice,HMCTS,31/Mar/2015 ,265000-IT & Telecommunications,AP999-HQ - Strategy & Change,ATOS IT SERVICES UK LTD,3174914,11.62 ,MS Visio Std
Ministry of Justice,HMCTS,31/Mar/2015 ,265000-IT & Telecommunications,AP999-HQ - Strategy & Change,ATOS IT SERVICES UK LTD,3174914,11.62 ,MS Project Standard
Ministry of Justice,HMCTS,31/Mar/2015 ,265000-IT & Telecommunications,AP999-HQ - Strategy & Change,ATOS IT SERVICES UK LTD,3174914,111.45 ,Replace faulty or non-faulty out-of-contract BlackBerry device
Ministry of Justice,HMCTS,31/Mar/2015 ,265000-IT & Telecommunications,AP999-HQ - Strategy & Change,ATOS IT SERVICES UK LTD,3174914,82.78 ,BlackBerry (Vodafone)
Ministry of Justice,HMCTS,31/Mar/2015 ,265000-IT & Telecommunications,AP999-HQ - Strategy & Change,ATOS IT SERVICES UK LTD,3174914,23.24 ,MS Visio Std
Ministry of Justice,HMCTS,31/Mar/2015 ,265000-IT & Telecommunications,AP999-HQ - Strategy & Change,ATOS IT SERVICES UK LTD,3174914,34.86 ,MS Project Standard
Ministry of Justice,HMCTS,31/Mar/2015 ,265000-IT & Telecommunications,AP999-HQ - Strategy & Change,ATOS IT SERVICES UK LTD,3174914,66.86 ,Return BlackBerry device (no longer required)
Ministry of Justice,HMCTS,31/Mar/2015 ,265000-IT & Telecommunications,AP999-HQ - Strategy & Change,ATOS IT SERVICES UK LTD,3174914,66.86 ,Return BlackBerry device (no longer required)
Ministry of Justice,HMCTS,31/Mar/2015 ,265000-IT & Telecommunications,AP999-HQ - Strategy & Change,ATOS IT SERVICES UK LTD,3174914,82.78 ,BlackBerry (Vodafone)
Ministry of Justice,HMCTS,31/Mar/2015 ,265000-IT & Telecommunications,AP999-HQ - Strategy & Change,ATOS IT SERVICES UK LTD,3174914,23.24 ,MS Visio Std
Ministry of Justice,HMCTS,03/Mar/2015 ,265000-IT & Telecommunications,AQ999-HQ - Finance & Governance,ATOS IT SERVICES UK LTD,3141619,488.99 ,1 to 5 Devices National Relocation -Printer or MFD (Multi Function Device)
Ministry of Justice,HMCTS,31/Mar/2015 ,265000-IT & Telecommunications,AQ999-HQ - Finance & Governance,ATOS IT SERVICES UK LTD,3174914,60.34 ,Relocation of a single desktop client device within the same building
Ministry of Justice,HMCTS,31/Mar/2015 ,265000-IT & Telecommunications,AQ999-HQ - Finance & Governance,ATOS IT SERVICES UK LTD,3174914,12.76 ,HP USB/PS2 Optical Scroll Mouse
Ministry of Justice,HMCTS,03/Mar/2015 ,265000-IT & Telecommunications,AQ999-HQ - Finance & Governance,ATOS IT SERVICES UK LTD,3141619,164.00 ,"Standard Form Laptop - HP EliteBook 8470p (14"" screen)"
Ministry of Justice,HMCTS,03/Mar/2015 ,265000-IT & Telecommunications,AQ999-HQ - Finance & Governance,ATOS IT SERVICES UK LTD,3141619,113.16 ,"HP 230W Docking Station for 8440p, 8540p, 8460p, 8560p, 8470p and 8570p laptops"
Ministry of Justice,HMCTS,31/Mar/2015 ,265000-IT & Telecommunications,AQ999-HQ - Finance & Governance,ATOS IT SERVICES UK LTD,3174914,164.00 ,"Standard Form Laptop - HP EliteBook 8470p (14"" screen)"
Ministry of Justice,HMCTS,31/Mar/2015 ,265000-IT & Telecommunications,AQ999-HQ - Finance & Governance,ATOS IT SERVICES UK LTD,3174914,113.16 ,"HP 230W Docking Station for 8440p, 8540p, 8460p, 8560p, 8470p and 8570p laptops"
Ministry of Justice,HMCTS,03/Mar/2015 ,265000-IT & Telecommunications,AQ999-HQ - Finance & Governance,ATOS IT SERVICES UK LTD,3141619,46.00 ,Provision and support of Secure Remote Access (RWSII) Capability
Ministry of Justice,HMCTS,03/Mar/2015 ,265000-IT & Telecommunications,AQ999-HQ - Finance & Governance,ATOS IT SERVICES UK LTD,3141619,313.04 ,Plantronics HW261 A Duo Headset 1-11 devices
Ministry of Justice,HMCTS,03/Mar/2015 ,265000-IT & Telecommunications,AQ999-HQ - Finance & Governance,ATOS IT SERVICES UK LTD,3141619,25.78 ,New IPT Mobility account with voicemail account 1-10 Accounts
Ministry of Justice,HMCTS,03/Mar/2015 ,265000-IT & Telecommunications,AQ999-HQ - Finance & Governance,ATOS IT SERVICES UK LTD,3141619,25.78 ,New IPT Mobility account with voicemail account 1-10 Accounts
Ministry of Justice,HMCTS,03/Mar/2015 ,265000-IT & Telecommunications,AQ999-HQ - Finance & Governance,ATOS IT SERVICES UK LTD,3141619,78.26 ,Plantronics HW261 A Duo Headset 1-11 devices
Ministry of Justice,HMCTS,03/Mar/2015 ,265000-IT & Telecommunications,AQ999-HQ - Finance & Governance,ATOS IT SERVICES UK LTD,3141619,25.78 ,Pick Up Group - Amend
Ministry of Justice,HMCTS,03/Mar/2015 ,265000-IT & Telecommunications,AQ999-HQ - Finance & Governance,ATOS IT SERVICES UK LTD,3141619,25.78 ,Group Call
Ministry of Justice,HMCTS,31/Mar/2015 ,265000-IT & Telecommunications,AQ999-HQ - Finance & Governance,ATOS IT SERVICES UK LTD,3174914,46.00 ,Provision and support of Secure Remote Access (RWSII) Capability
Ministry of Justice,HMCTS,31/Mar/2015 ,265000-IT & Telecommunications,AQ999-HQ - Finance & Governance,ATOS IT SERVICES UK LTD,3174914,25.78 ,New IPT Mobility account with voicemail account 1-10 Accounts
Ministry of Justice,HMCTS,31/Mar/2015 ,265000-IT & Telecommunications,AQ999-HQ - Finance & Governance,ATOS IT SERVICES UK LTD,3174914,78.26 ,Plantronics HW261 A Duo Headset 1-11 devices
Ministry of Justice,HMCTS,31/Mar/2015 ,265000-IT & Telecommunications,AQ999-HQ - Finance & Governance,ATOS IT SERVICES UK LTD,3174914,25.78 ,Mobility Account Changes 1-10 Accounts
Ministry of Justice,HMCTS,31/Mar/2015 ,265000-IT & Telecommunications,AQ999-HQ - Finance & Governance,ATOS IT SERVICES UK LTD,3174914,25.78 ,Hunt Group - Extension
Ministry of Justice,HMCTS,31/Mar/2015 ,265000-IT & Telecommunications,AQ999-HQ - Finance & Governance,ATOS IT SERVICES UK LTD,3174914,25.78 ,Pick Up Group - Amend
Ministry of Justice,HMCTS,31/Mar/2015 ,265000-IT & Telecommunications,AQ999-HQ - Finance & Governance,ATOS IT SERVICES UK LTD,3174914,25.78 ,New IPT Mobility account with voicemail account 1-10 Accounts
Ministry of Justice,HMCTS,31/Mar/2015 ,265000-IT & Telecommunications,AQ999-HQ - Finance & Governance,ATOS IT SERVICES UK LTD,3174914,297.12 ,Crystal Reports 2011
Ministry of Justice,HMCTS,31/Mar/2015 ,265000-IT & Telecommunications,AQ999-HQ - Finance & Governance,ATOS IT SERVICES UK LTD,3174914,58.47 ,Keep your mobile phone number when upgrading to BlackBerry
Ministry of Justice,HMCTS,31/Mar/2015 ,265000-IT & Telecommunications,AQ999-HQ - Finance & Governance,ATOS IT SERVICES UK LTD,3174914,11.62 ,MS Visio Std
Ministry of Justice,HMCTS,31/Mar/2015 ,265000-IT & Telecommunications,AQ999-HQ - Finance & Governance,ATOS IT SERVICES UK LTD,3174914,66.86 ,Return BlackBerry device (no longer required)
Ministry of Justice,HMCTS,31/Mar/2015 ,265000-IT & Telecommunications,AS999-HQ - Human Resources,ATOS IT SERVICES UK LTD,3174914,258.33 ,HP OfficeJet 100 Mobile Printer
Ministry of Justice,HMCTS,31/Mar/2015 ,265000-IT & Telecommunications,AS999-HQ - Human Resources,ATOS IT SERVICES UK LTD,3174914,56.92 ,HP 230W Smart AC Adapter
Ministry of Justice,HMCTS,31/Mar/2015 ,265000-IT & Telecommunications,AS999-HQ - Human Resources,ATOS IT SERVICES UK LTD,3174914,5.00 ,Power cable
Ministry of Justice,HMCTS,03/Mar/2015 ,265000-IT & Telecommunications,AS999-HQ - Human Resources,ATOS IT SERVICES UK LTD,3141619,138.00 ,Provision and support of Secure Remote Access (RWSII) Capability
Ministry of Justice,HMCTS,03/Mar/2015 ,265000-IT & Telecommunications,AS999-HQ - Human Resources,ATOS IT SERVICES UK LTD,3141619,67.31 ,Plantronics HW251 A Mono Headset 1-11 devices
Ministry of Justice,HMCTS,31/Mar/2015 ,265000-IT & Telecommunications,AS999-HQ - Human Resources,ATOS IT SERVICES UK LTD,3174914,46.00 ,Provision and support of Secure Remote Access (RWSII) Capability
Ministry of Justice,HMCTS,31/Mar/2015 ,265000-IT & Telecommunications,AS999-HQ - Human Resources,ATOS IT SERVICES UK LTD,3174914,25.78 ,New IPT Mobility account with voicemail account 1-10 Accounts
Ministry of Justice,HMCTS,03/Mar/2015 ,265000-IT & Telecommunications,AS999-HQ - Human Resources,ATOS IT SERVICES UK LTD,3141619,111.45 ,Replace faulty or non-faulty out-of-contract BlackBerry device
Ministry of Justice,HMCTS,03/Mar/2015 ,265000-IT & Telecommunications,AS999-HQ - Human Resources,ATOS IT SERVICES UK LTD,3141619,58.47 ,Keep your mobile phone number when upgrading to BlackBerry
Ministry of Justice,HMCTS,03/Mar/2015 ,265000-IT & Telecommunications,AS999-HQ - Human Resources,ATOS IT SERVICES UK LTD,3141619,111.45 ,Replace faulty or non-faulty out-of-contract BlackBerry device
Ministry of Justice,HMCTS,31/Mar/2015 ,265000-IT & Telecommunications,AS999-HQ - Human Resources,ATOS IT SERVICES UK LTD,3174914,111.45 ,Replace faulty or non-faulty out-of-contract BlackBerry device
Ministry of Justice,HMCTS,31/Mar/2015 ,265000-IT & Telecommunications,AS999-HQ - Human Resources,ATOS IT SERVICES UK LTD,3174914,111.45 ,Replace faulty or non-faulty out-of-contract BlackBerry device
Ministry of Justice,HMCTS,31/Mar/2015 ,265000-IT & Telecommunications,AS999-HQ - Human Resources,ATOS IT SERVICES UK LTD,3174914,111.45 ,Replace faulty or non-faulty out-of-contract BlackBerry device
Ministry of Justice,HMCTS,31/Mar/2015 ,265000-IT & Telecommunications,AS999-HQ - Human Resources,ATOS IT SERVICES UK LTD,3174914,111.45 ,Replace faulty or non-faulty out-of-contract BlackBerry device
Ministry of Justice,HMCTS,31/Mar/2015 ,265000-IT & Telecommunications,AS999-HQ - Human Resources,ATOS IT SERVICES UK LTD,3174914,111.45 ,Replace faulty or non-faulty out-of-contract BlackBerry device
Ministry of Justice,HMCTS,31/Mar/2015 ,265000-IT & Telecommunications,AS999-HQ - Human Resources,ATOS IT SERVICES UK LTD,3174914,111.45 ,Replace faulty or non-faulty out-of-contract BlackBerry device
Ministry of Justice,HMCTS,31/Mar/2015 ,265000-IT & Telecommunications,AS999-HQ - Human Resources,ATOS IT SERVICES UK LTD,3174914,111.45 ,Replace faulty or non-faulty out-of-contract BlackBerry device
Ministry of Justice,HMCTS,31/Mar/2015 ,265000-IT & Telecommunications,AS999-HQ - Human Resources,ATOS IT SERVICES UK LTD,3174914,111.45 ,Replace faulty or non-faulty out-of-contract BlackBerry device
Ministry of Justice,HMCTS,31/Mar/2015 ,265000-IT & Telecommunications,AS999-HQ - Human Resources,ATOS IT SERVICES UK LTD,3174914,82.78 ,BlackBerry (Vodafone)
Ministry of Justice,HMCTS,31/Mar/2015 ,265000-IT & Telecommunications,AS999-HQ - Human Resources,ATOS IT SERVICES UK LTD,3174914,111.45 ,Replace faulty or non-faulty out-of-contract BlackBerry device
Ministry of Justice,HMCTS,31/Mar/2015 ,265000-IT & Telecommunications,AS999-HQ - Human Resources,ATOS IT SERVICES UK LTD,3174914,111.45 ,AO-HR Director's Office-Replace faulty or non-faulty out-of-contract BlackBerry device-ID379840-DISC
Ministry of Justice,HMCTS,31/Mar/2015 ,265000-IT & Telecommunications,AS999-HQ - Human Resources,ATOS IT SERVICES UK LTD,3174914,111.45 ,Replace faulty or non-faulty out-of-contract BlackBerry device
Ministry of Justice,HMCTS,31/Mar/2015 ,265000-IT & Telecommunications,AS999-HQ - Human Resources,ATOS IT SERVICES UK LTD,3174914,111.45 ,Replace faulty or non-faulty out-of-contract BlackBerry device
Ministry of Justice,HMCTS,31/Mar/2015 ,265000-IT & Telecommunications,AT899-HQ - ICT,ATOS IT SERVICES UK LTD,3174914,144.00 ,Relocation of 2 desktop client devices to a different building.
Ministry of Justice,HMCTS,03/Mar/2015 ,265000-IT & Telecommunications,AT899-HQ - ICT,ATOS IT SERVICES UK LTD,3141619,25.23 ,Spare battery for BlackBerry 9320
Ministry of Justice,HMCTS,03/Mar/2015 ,265000-IT & Telecommunications,AT899-HQ - ICT,ATOS IT SERVICES UK LTD,3141619,111.45 ,Replace faulty or non-faulty out-of-contract BlackBerry device
Ministry of Justice,HMCTS,03/Mar/2015 ,265000-IT & Telecommunications,AT899-HQ - ICT,ATOS IT SERVICES UK LTD,3141619,66.86 ,Return BlackBerry device (no longer required)
Ministry of Justice,HMCTS,31/Mar/2015 ,265000-IT & Telecommunications,AT899-HQ - ICT,ATOS IT SERVICES UK LTD,3174914,"3,901.50 ",AVM Ad-Hoc Labour and Materials
Ministry of Justice,HMCTS,31/Mar/2015 ,265000-IT & Telecommunications,AT899-HQ - ICT,ATOS IT SERVICES UK LTD,3174914,"3,901.50 ",AVM Ad-Hoc Labour and Materials
Ministry of Justice,HMCTS,31/Mar/2015 ,265000-IT & Telecommunications,AT899-HQ - ICT,ATOS IT SERVICES UK LTD,3174914,"3,901.50 ",AVM Ad-Hoc Labour and Materials
Ministry of Justice,HMCTS,31/Mar/2015 ,265000-IT & Telecommunications,AT899-HQ - ICT,ATOS IT SERVICES UK LTD,3174914,82.78 ,BlackBerry (Vodafone)
Ministry of Justice,HMCTS,03/Mar/2015 ,265000-IT & Telecommunications,BZ999-London Region,ATOS IT SERVICES UK LTD,3141619,416.16 ,1 to 5 Devices Local Relocation (same Authority Premises) -  Printer or MFD
Ministry of Justice,HMCTS,03/Mar/2015 ,265000-IT & Telecommunications,BZ999-London Region,ATOS IT SERVICES UK LTD,3141619,120.68 ,Desktop PC - HP DC8300
Ministry of Justice,HMCTS,03/Mar/2015 ,265000-IT & Telecommunications,BZ999-London Region,ATOS IT SERVICES UK LTD,3141619,31.31 ,Ergonomic Keyboard [Microsoft Natural MultiMedia]
Ministry of Justice,HMCTS,03/Mar/2015 ,265000-IT & Telecommunications,BZ999-London Region,ATOS IT SERVICES UK LTD,3141619,43.22 ,Andrea NC181VM USB headset
Ministry of Justice,HMCTS,03/Mar/2015 ,265000-IT & Telecommunications,BZ999-London Region,ATOS IT SERVICES UK LTD,3141619,416.16 ,1 to 5 Devices Local Relocation (same Authority Premises) -  Printer or MFD
Ministry of Justice,HMCTS,31/Mar/2015 ,265000-IT & Telecommunications,BZ999-London Region,ATOS IT SERVICES UK LTD,3174914,33.33 ,Space Saving Mini Keyboard
Ministry of Justice,HMCTS,31/Mar/2015 ,265000-IT & Telecommunications,BZ999-London Region,ATOS IT SERVICES UK LTD,3174914,14.13 ,Kensington Orbit Optical Trackball
Ministry of Justice,HMCTS,31/Mar/2015 ,265000-IT & Telecommunications,BZ999-London Region,ATOS IT SERVICES UK LTD,3174914,6.38 ,HP USB/PS2 Optical Scroll Mouse
Ministry of Justice,HMCTS,31/Mar/2015 ,265000-IT & Telecommunications,BZ999-London Region,ATOS IT SERVICES UK LTD,3174914,148.28 ,Duplex Module (automatic 2-sided printing) for 4600V_DT
Ministry of Justice,HMCTS,31/Mar/2015 ,265000-IT & Telecommunications,BZ999-London Region,ATOS IT SERVICES UK LTD,3174914,12.76 ,HP USB/PS2 Optical Scroll Mouse
Ministry of Justice,HMCTS,31/Mar/2015 ,265000-IT & Telecommunications,BZ999-London Region,ATOS IT SERVICES UK LTD,3174914,5.00 ,3m Network Cable
Ministry of Justice,HMCTS,31/Mar/2015 ,265000-IT & Telecommunications,BZ999-London Region,ATOS IT SERVICES UK LTD,3174914,168.10 ,"19"" LCD Display"
Ministry of Justice,HMCTS,31/Mar/2015 ,265000-IT & Telecommunications,BZ999-London Region,ATOS IT SERVICES UK LTD,3174914,6.38 ,HP USB/PS2 Optical Scroll Mouse
Ministry of Justice,HMCTS,31/Mar/2015 ,265000-IT & Telecommunications,BZ999-London Region,ATOS IT SERVICES UK LTD,3174914,11.16 ,HP Standard USB Keyboard
Ministry of Justice,HMCTS,31/Mar/2015 ,265000-IT & Telecommunications,BZ999-London Region,ATOS IT SERVICES UK LTD,3174914,11.10 ,Ultra Flat Keyboard
Ministry of Justice,HMCTS,31/Mar/2015 ,265000-IT & Telecommunications,BZ999-London Region,ATOS IT SERVICES UK LTD,3174914,"3,677.00 ",1 to 5 Devices Multi Function device                  Xerox Workcenter 5775 - Black and White printer / Colour scanner
Ministry of Justice,HMCTS,31/Mar/2015 ,265000-IT & Telecommunications,BZ999-London Region,ATOS IT SERVICES UK LTD,3174914,31.90 ,HP USB/PS2 Optical Scroll Mouse
Ministry of Justice,HMCTS,31/Mar/2015 ,265000-IT & Telecommunications,BZ999-London Region,ATOS IT SERVICES UK LTD,3174914,360.00 ,Relocation of 5 desktop client devices to a different building.
Ministry of Justice,HMCTS,31/Mar/2015 ,265000-IT & Telecommunications,BZ999-London Region,ATOS IT SERVICES UK LTD,3174914,"5,652.40 ","24"" LCD Display"
Ministry of Justice,HMCTS,31/Mar/2015 ,265000-IT & Telecommunications,BZ999-London Region,ATOS IT SERVICES UK LTD,3174914,488.99 ,1 to 5 Devices National Relocation -Printer or MFD (Multi Function Device)
Ministry of Justice,HMCTS,31/Mar/2015 ,265000-IT & Telecommunications,BZ999-London Region,ATOS IT SERVICES UK LTD,3174914,488.99 ,1 to 5 Devices National Relocation -Printer or MFD (Multi Function Device)
Ministry of Justice,HMCTS,31/Mar/2015 ,265000-IT & Telecommunications,BZ999-London Region,ATOS IT SERVICES UK LTD,3174914,416.16 ,1 to 5 Devices Local Relocation (same Authority Premises) -  Printer or MFD
Ministry of Justice,HMCTS,31/Mar/2015 ,265000-IT & Telecommunications,BZ999-London Region,ATOS IT SERVICES UK LTD,3174914,31.90 ,HP USB/PS2 Optical Scroll Mouse
Ministry of Justice,HMCTS,31/Mar/2015 ,265000-IT & Telecommunications,BZ999-London Region,ATOS IT SERVICES UK LTD,3174914,488.99 ,1 to 5 Devices National Relocation -Printer or MFD (Multi Function Device)
Ministry of Justice,HMCTS,03/Mar/2015 ,265000-IT & Telecommunications,BZ999-London Region,ATOS IT SERVICES UK LTD,3141619,46.00 ,Provision and support of Secure Remote Access (RWSII) Capability
Ministry of Justice,HMCTS,03/Mar/2015 ,265000-IT & Telecommunications,BZ999-London Region,ATOS IT SERVICES UK LTD,3141619,25.78 ,Deletion of a Mobility user account 1-10 Accounts
Ministry of Justice,HMCTS,03/Mar/2015 ,265000-IT & Telecommunications,BZ999-London Region,ATOS IT SERVICES UK LTD,3141619,46.00 ,Provision and support of Secure Remote Access (RWSII) Capability
Ministry of Justice,HMCTS,03/Mar/2015 ,265000-IT & Telecommunications,BZ999-London Region,ATOS IT SERVICES UK LTD,3141619,25.78 ,Mobility Handset Conversion to Fixed Handset with new user details 1- 11 devices
Ministry of Justice,HMCTS,03/Mar/2015 ,265000-IT & Telecommunications,BZ999-London Region,ATOS IT SERVICES UK LTD,3141619,25.78 ,New IPT Mobility account with voicemail account 1-10 Accounts
Ministry of Justice,HMCTS,03/Mar/2015 ,265000-IT & Telecommunications,BZ999-London Region,ATOS IT SERVICES UK LTD,3141619,103.12 ,New IPT Handset 1 - 11 devices
Ministry of Justice,HMCTS,03/Mar/2015 ,265000-IT & Telecommunications,BZ999-London Region,ATOS IT SERVICES UK LTD,3141619,25.78 ,Group Call
Ministry of Justice,HMCTS,03/Mar/2015 ,265000-IT & Telecommunications,BZ999-London Region,ATOS IT SERVICES UK LTD,3141619,417.15 ,Plantronics CS540 Wireless Headset 12-30 devices
Ministry of Justice,HMCTS,03/Mar/2015 ,265000-IT & Telecommunications,BZ999-London Region,ATOS IT SERVICES UK LTD,3141619,25.78 ,Fixed IPT Phone Transfer to a new user 1-10 Devices
Ministry of Justice,HMCTS,03/Mar/2015 ,265000-IT & Telecommunications,BZ999-London Region,ATOS IT SERVICES UK LTD,3141619,25.78 ,New IPT Mobility account without voicemail 1-10 Accounts
Ministry of Justice,HMCTS,03/Mar/2015 ,265000-IT & Telecommunications,BZ999-London Region,ATOS IT SERVICES UK LTD,3141619,46.00 ,Provision and support of Secure Remote Access (RWSII) Capability
Ministry of Justice,HMCTS,03/Mar/2015 ,265000-IT & Telecommunications,BZ999-London Region,ATOS IT SERVICES UK LTD,3141619,25.78 ,New IPT Mobility account without voicemail 1-10 Accounts
Ministry of Justice,HMCTS,03/Mar/2015 ,265000-IT & Telecommunications,BZ999-London Region,ATOS IT SERVICES UK LTD,3141619,46.00 ,Provision and support of Secure Remote Access (RWSII) Capability
Ministry of Justice,HMCTS,03/Mar/2015 ,265000-IT & Telecommunications,BZ999-London Region,ATOS IT SERVICES UK LTD,3141619,25.78 ,Hunt Group - Extension
Ministry of Justice,HMCTS,03/Mar/2015 ,265000-IT & Telecommunications,BZ999-London Region,ATOS IT SERVICES UK LTD,3141619,51.56 ,Fixed IPT Phone Transfer to a new user 1-10 Devices
Ministry of Justice,HMCTS,31/Mar/2015 ,265000-IT & Telecommunications,BZ999-London Region,ATOS IT SERVICES UK LTD,3174914,939.12 ,Plantronics HW261 A Duo Headset 1-11 devices
Ministry of Justice,HMCTS,31/Mar/2015 ,265000-IT & Telecommunications,BZ999-London Region,ATOS IT SERVICES UK LTD,3174914,25.78 ,Mobility Handset Conversion to Fixed Handset & Import existing Mobility profile 1- 11 devices
Ministry of Justice,HMCTS,31/Mar/2015 ,265000-IT & Telecommunications,BZ999-London Region,ATOS IT SERVICES UK LTD,3174914,25.78 ,Fixed IPT Phone Transfer to a new user 1-10 Devices
Ministry of Justice,HMCTS,31/Mar/2015 ,265000-IT & Telecommunications,BZ999-London Region,ATOS IT SERVICES UK LTD,3174914,46.00 ,Provision and support of Secure Remote Access (RWSII) Capability
Ministry of Justice,HMCTS,31/Mar/2015 ,265000-IT & Telecommunications,BZ999-London Region,ATOS IT SERVICES UK LTD,3174914,25.00 ,10m Network Cable
Ministry of Justice,HMCTS,31/Mar/2015 ,265000-IT & Telecommunications,BZ999-London Region,ATOS IT SERVICES UK LTD,3174914,25.00 ,5m Network Cable
Ministry of Justice,HMCTS,31/Mar/2015 ,265000-IT & Telecommunications,BZ999-London Region,ATOS IT SERVICES UK LTD,3174914,25.78 ,New IPT Handset 1 - 11 devices
Ministry of Justice,HMCTS,31/Mar/2015 ,265000-IT & Telecommunications,BZ999-London Region,ATOS IT SERVICES UK LTD,3174914,25.78 ,Fixed IPT Phone Transfer to a new user 1-10 Devices
Ministry of Justice,HMCTS,31/Mar/2015 ,265000-IT & Telecommunications,BZ999-London Region,ATOS IT SERVICES UK LTD,3174914,25.78 ,New IPT Handset 1 - 11 devices
Ministry of Justice,HMCTS,31/Mar/2015 ,265000-IT & Telecommunications,BZ999-London Region,ATOS IT SERVICES UK LTD,3174914,46.00 ,Provision and support of Secure Remote Access (RWSII) Capability
Ministry of Justice,HMCTS,31/Mar/2015 ,265000-IT & Telecommunications,BZ999-London Region,ATOS IT SERVICES UK LTD,3174914,190.55 ,Plantronics CS510 Wireless Headset 1-11 devices
Ministry of Justice,HMCTS,31/Mar/2015 ,265000-IT & Telecommunications,BZ999-London Region,ATOS IT SERVICES UK LTD,3174914,25.78 ,New IPT Mobility account with voicemail account 1-10 Accounts
Ministry of Justice,HMCTS,31/Mar/2015 ,265000-IT & Telecommunications,BZ999-London Region,ATOS IT SERVICES UK LTD,3174914,25.78 ,Voicemail - Caller Redirect Announcement - 1 - 10 Numbers
Ministry of Justice,HMCTS,31/Mar/2015 ,265000-IT & Telecommunications,BZ999-London Region,ATOS IT SERVICES UK LTD,3174914,51.56 ,Fixed IPT Phone Transfer to a new user 1-10 Devices
Ministry of Justice,HMCTS,31/Mar/2015 ,265000-IT & Telecommunications,BZ999-London Region,ATOS IT SERVICES UK LTD,3174914,25.78 ,New IPT Handset 1 - 11 devices
Ministry of Justice,HMCTS,31/Mar/2015 ,265000-IT & Telecommunications,BZ999-London Region,ATOS IT SERVICES UK LTD,3174914,25.78 ,New IPT Handset 12 - 30 devices
Ministry of Justice,HMCTS,31/Mar/2015 ,265000-IT & Telecommunications,BZ999-London Region,ATOS IT SERVICES UK LTD,3174914,46.00 ,Provision and support of Secure Remote Access (RWSII) Capability
Ministry of Justice,HMCTS,31/Mar/2015 ,265000-IT & Telecommunications,BZ999-London Region,ATOS IT SERVICES UK LTD,3174914,46.00 ,Provision and support of Secure Remote Access (RWSII) Capability
Ministry of Justice,HMCTS,31/Mar/2015 ,265000-IT & Telecommunications,BZ999-London Region,ATOS IT SERVICES UK LTD,3174914,46.00 ,Provision and support of Secure Remote Access (RWSII) Capability
Ministry of Justice,HMCTS,31/Mar/2015 ,265000-IT & Telecommunications,BZ999-London Region,ATOS IT SERVICES UK LTD,3174914,25.78 ,New IPT Handset 1 - 11 devices
Ministry of Justice,HMCTS,31/Mar/2015 ,265000-IT & Telecommunications,BZ999-London Region,ATOS IT SERVICES UK LTD,3174914,25.78 ,New IPT Mobility account without voicemail 1-10 Accounts
Ministry of Justice,HMCTS,31/Mar/2015 ,265000-IT & Telecommunications,BZ999-London Region,ATOS IT SERVICES UK LTD,3174914,25.78 ,Hunt Group - Extension
Ministry of Justice,HMCTS,31/Mar/2015 ,265000-IT & Telecommunications,BZ999-London Region,ATOS IT SERVICES UK LTD,3174914,25.78 ,Fixed IPT Phone Transfer to a new user 1-10 Devices
Ministry of Justice,HMCTS,31/Mar/2015 ,265000-IT & Telecommunications,BZ999-London Region,ATOS IT SERVICES UK LTD,3174914,25.78 ,Voicemail - New Voicemail Account 1-10 Accounts
Ministry of Justice,HMCTS,31/Mar/2015 ,265000-IT & Telecommunications,BZ999-London Region,ATOS IT SERVICES UK LTD,3174914,25.78 ,Pick Up Group - Amend
Ministry of Justice,HMCTS,31/Mar/2015 ,265000-IT & Telecommunications,BZ999-London Region,ATOS IT SERVICES UK LTD,3174914,25.78 ,New IPT Handset 1 - 11 devices
Ministry of Justice,HMCTS,31/Mar/2015 ,265000-IT & Telecommunications,BZ999-London Region,ATOS IT SERVICES UK LTD,3174914,25.78 ,Pick Up Group - Deletion
Ministry of Justice,HMCTS,31/Mar/2015 ,265000-IT & Telecommunications,BZ999-London Region,ATOS IT SERVICES UK LTD,3174914,25.78 ,Pick Up Group - Deletion
Ministry of Justice,HMCTS,31/Mar/2015 ,265000-IT & Telecommunications,BZ999-London Region,ATOS IT SERVICES UK LTD,3174914,25.78 ,Fixed IPT Phone Transfer to a new user 1-10 Devices
Ministry of Justice,HMCTS,31/Mar/2015 ,265000-IT & Telecommunications,BZ999-London Region,ATOS IT SERVICES UK LTD,3174914,77.34 ,Pick Up Group - Amend
Ministry of Justice,HMCTS,31/Mar/2015 ,265000-IT & Telecommunications,BZ999-London Region,ATOS IT SERVICES UK LTD,3174914,25.78 ,Hunt Group - Extension
Ministry of Justice,HMCTS,31/Mar/2015 ,265000-IT & Telecommunications,BZ999-London Region,ATOS IT SERVICES UK LTD,3174914,25.78 ,Fixed IPT Phone Transfer to a new user 1-10 Devices
Ministry of Justice,HMCTS,31/Mar/2015 ,265000-IT & Telecommunications,BZ999-London Region,ATOS IT SERVICES UK LTD,3174914,25.00 ,10m Network Cable
Ministry of Justice,HMCTS,31/Mar/2015 ,265000-IT & Telecommunications,BZ999-London Region,ATOS IT SERVICES UK LTD,3174914,25.00 ,10m Network Cable
Ministry of Justice,HMCTS,31/Mar/2015 ,265000-IT & Telecommunications,BZ999-London Region,ATOS IT SERVICES UK LTD,3174914,25.00 ,3m Network Cable
Ministry of Justice,HMCTS,31/Mar/2015 ,265000-IT & Telecommunications,BZ999-London Region,ATOS IT SERVICES UK LTD,3174914,25.00 ,3m Network Cable
Ministry of Justice,HMCTS,31/Mar/2015 ,265000-IT & Telecommunications,BZ999-London Region,ATOS IT SERVICES UK LTD,3174914,25.00 ,5m Network Cable
Ministry of Justice,HMCTS,31/Mar/2015 ,265000-IT & Telecommunications,BZ999-London Region,ATOS IT SERVICES UK LTD,3174914,25.00 ,5m Network Cable
Ministry of Justice,HMCTS,31/Mar/2015 ,265000-IT & Telecommunications,BZ999-London Region,ATOS IT SERVICES UK LTD,3174914,25.00 ,USB Extender cable
Ministry of Justice,HMCTS,31/Mar/2015 ,265000-IT & Telecommunications,BZ999-London Region,ATOS IT SERVICES UK LTD,3174914,133.30 ,Request a headset - Olympus E62 - for use with Olympus transcription software (play back of Olympus Digital Voice Recorder recordings)
Ministry of Justice,HMCTS,31/Mar/2015 ,265000-IT & Telecommunications,BZ999-London Region,ATOS IT SERVICES UK LTD,3174914,83.46 ,Plantronics HW251 N Mono Headset 1-11 devices
Ministry of Justice,HMCTS,31/Mar/2015 ,265000-IT & Telecommunications,BZ999-London Region,ATOS IT SERVICES UK LTD,3174914,350.20 ,Plantronics CS540 Wireless Headset 1-11 devices
Ministry of Justice,HMCTS,31/Mar/2015 ,265000-IT & Telecommunications,BZ999-London Region,ATOS IT SERVICES UK LTD,3174914,154.68 ,Remote Activation Only of New Analogue Extension Port
Ministry of Justice,HMCTS,31/Mar/2015 ,265000-IT & Telecommunications,BZ999-London Region,ATOS IT SERVICES UK LTD,3174914,25.78 ,Remote Activation Only of New Analogue Extension Port
Ministry of Justice,HMCTS,03/Mar/2015 ,265000-IT & Telecommunications,BZ999-London Region,ATOS IT SERVICES UK LTD,3141619,92.44 ,Humanscale M2 Monitor Arm
Ministry of Justice,HMCTS,03/Mar/2015 ,265000-IT & Telecommunications,BZ999-London Region,ATOS IT SERVICES UK LTD,3141619,205.63 ,"22"" LCD Display"
Ministry of Justice,HMCTS,03/Mar/2015 ,265000-IT & Telecommunications,BZ999-London Region,ATOS IT SERVICES UK LTD,3141619,11.62 ,MS Visio Professional
Ministry of Justice,HMCTS,31/Mar/2015 ,265000-IT & Telecommunications,BZ999-London Region,ATOS IT SERVICES UK LTD,3174914,23.24 ,MS Project Professional
Ministry of Justice,HMCTS,31/Mar/2015 ,265000-IT & Telecommunications,BZ999-London Region,ATOS IT SERVICES UK LTD,3174914,23.24 ,MS Visio Professional
Ministry of Justice,HMCTS,03/Mar/2015 ,265000-IT & Telecommunications,BZ999-London Region,ATOS IT SERVICES UK LTD,3141619,78.26 ,Reassign BlackBerry device within Business Unit
Ministry of Justice,HMCTS,03/Mar/2015 ,265000-IT & Telecommunications,BZ999-London Region,ATOS IT SERVICES UK LTD,3141619,25.23 ,Additional/spare mains charger for BlackBerry 9320
Ministry of Justice,HMCTS,03/Mar/2015 ,265000-IT & Telecommunications,BZ999-London Region,ATOS IT SERVICES UK LTD,3141619,762.66 ,Olympus Digital Voice Recorder  - DS-7000 - new device
Ministry of Justice,HMCTS,03/Mar/2015 ,265000-IT & Telecommunications,BZ999-London Region,ATOS IT SERVICES UK LTD,3141619,138.66 ,Request Olympus dictation and transcription software for a user.  Does not include Olympus Digital Professional Dictation Solution - DS-7000
Ministry of Justice,HMCTS,03/Mar/2015 ,265000-IT & Telecommunications,BZ999-London Region,ATOS IT SERVICES UK LTD,3141619,55.15 ,Request a foot pedal - Olympus RS31 -  for use with Olympus transcription software (play back of Olympus Digital Voice Recorder recordings)
Ministry of Justice,HMCTS,03/Mar/2015 ,265000-IT & Telecommunications,BZ999-London Region,ATOS IT SERVICES UK LTD,3141619,26.66 ,Request a headset - Olympus E62 - for use with Olympus transcription software (play back of Olympus Digital Voice Recorder recordings)
Ministry of Justice,HMCTS,03/Mar/2015 ,265000-IT & Telecommunications,BZ999-London Region,ATOS IT SERVICES UK LTD,3141619,265.63 ,Dragon Naturally Speaking Professional v10
Ministry of Justice,HMCTS,03/Mar/2015 ,265000-IT & Telecommunications,BZ999-London Region,ATOS IT SERVICES UK LTD,3141619,43.22 ,Andrea NC181VM USB headset
Ministry of Justice,HMCTS,03/Mar/2015 ,265000-IT & Telecommunications,BZ999-London Region,ATOS IT SERVICES UK LTD,3141619,78.26 ,Reassign BlackBerry device within Business Unit
Ministry of Justice,HMCTS,03/Mar/2015 ,265000-IT & Telecommunications,BZ999-London Region,ATOS IT SERVICES UK LTD,3141619,265.63 ,Dragon Naturally Speaking Professional v10
Ministry of Justice,HMCTS,03/Mar/2015 ,265000-IT & Telecommunications,BZ999-London Region,ATOS IT SERVICES UK LTD,3141619,82.78 ,BlackBerry (Vodafone)
Ministry of Justice,HMCTS,03/Mar/2015 ,265000-IT & Telecommunications,BZ999-London Region,ATOS IT SERVICES UK LTD,3141619,82.78 ,BlackBerry (Vodafone)
Ministry of Justice,HMCTS,31/Mar/2015 ,265000-IT & Telecommunications,BZ999-London Region,ATOS IT SERVICES UK LTD,3174914,40.34 ,Provision of FHINS access
Ministry of Justice,HMCTS,31/Mar/2015 ,265000-IT & Telecommunications,BZ999-London Region,ATOS IT SERVICES UK LTD,3174914,"1,300.50 ",AVM Ad-Hoc Labour and Materials
Ministry of Justice,HMCTS,31/Mar/2015 ,265000-IT & Telecommunications,BZ999-London Region,ATOS IT SERVICES UK LTD,3174914,"1,300.50 ",AVM Ad-Hoc Labour and Materials
Ministry of Justice,HMCTS,31/Mar/2015 ,265000-IT & Telecommunications,BZ999-London Region,ATOS IT SERVICES UK LTD,3174914,111.45 ,Replace faulty or non-faulty out-of-contract BlackBerry device
Ministry of Justice,HMCTS,31/Mar/2015 ,265000-IT & Telecommunications,BZ999-London Region,ATOS IT SERVICES UK LTD,3174914,248.34 ,BlackBerry (Vodafone)
Ministry of Justice,HMCTS,31/Mar/2015 ,265000-IT & Telecommunications,BZ999-London Region,ATOS IT SERVICES UK LTD,3174914,82.78 ,BlackBerry (Vodafone)
Ministry of Justice,HMCTS,31/Mar/2015 ,265000-IT & Telecommunications,BZ999-London Region,ATOS IT SERVICES UK LTD,3174914,11.17 ,MS Access
Ministry of Justice,HMCTS,27/Mar/2015 ,265000-IT & Telecommunications,BZ999-London Region,ATOS IT SERVICES UK LTD,3172378,"28,693.80 ","HMCTS London Region Crown Courts x 5 - Atos - Supply, configure and fit a digital to analogue converter at 5x London Crown Court sites to allow the tannoy systems to be used from any digital telephone in the buildings. One Off Cost."
Ministry of Justice,HMCTS,27/Mar/2015 ,265000-IT & Telecommunications,BZ999-London Region,ATOS IT SERVICES UK LTD,3172378,"5,738.76 ","HMCTS London Region Crown Courts x 5 - Atos - Supply, configure and fit a digital to analogue converter at 5x London Crown Court sites to allow the tannoy systems to be used from any digital telephone in the buildings. One Off Cost. (VAT Charges 20%)"
Ministry of Justice,HMCTS,03/Mar/2015 ,265000-IT & Telecommunications,CZ999-South East Region,ATOS IT SERVICES UK LTD,3141619,288.00 ,Relocation of 4 desktop client devices to a different building.
Ministry of Justice,HMCTS,03/Mar/2015 ,265000-IT & Telecommunications,CZ999-South East Region,ATOS IT SERVICES UK LTD,3141619,22.25 ,Andrea NC-181 headset
Ministry of Justice,HMCTS,03/Mar/2015 ,265000-IT & Telecommunications,CZ999-South East Region,ATOS IT SERVICES UK LTD,3141619,860.00 ,1 to 5 Devices Xerox A4 Black & White Laser Printer 3600EDN
Ministry of Justice,HMCTS,03/Mar/2015 ,265000-IT & Telecommunications,CZ999-South East Region,ATOS IT SERVICES UK LTD,3141619,"3,566.00 ",1 to 5 Devices Multi Function device                  Xerox Workcenter 7535FL - A3 Colour MFD
Ministry of Justice,HMCTS,03/Mar/2015 ,265000-IT & Telecommunications,CZ999-South East Region,ATOS IT SERVICES UK LTD,3141619,31.31 ,Ergonomic Keyboard [Microsoft Natural MultiMedia]
Ministry of Justice,HMCTS,03/Mar/2015 ,265000-IT & Telecommunications,CZ999-South East Region,ATOS IT SERVICES UK LTD,3141619,86.75 ,Fujitsu-Siemens Ergonomic Keyboard
Ministry of Justice,HMCTS,03/Mar/2015 ,265000-IT & Telecommunications,CZ999-South East Region,ATOS IT SERVICES UK LTD,3141619,86.75 ,Fujitsu-Siemens Ergonomic Keyboard
Ministry of Justice,HMCTS,03/Mar/2015 ,265000-IT & Telecommunications,CZ999-South East Region,ATOS IT SERVICES UK LTD,3141619,416.16 ,1 to 5 Devices Local Relocation (same Authority Premises) -  Printer or MFD
Ministry of Justice,HMCTS,03/Mar/2015 ,265000-IT & Telecommunications,CZ999-South East Region,ATOS IT SERVICES UK LTD,3141619,416.16 ,1 to 5 Devices Local Relocation (same Authority Premises) -  Printer or MFD
Ministry of Justice,HMCTS,03/Mar/2015 ,265000-IT & Telecommunications,CZ999-South East Region,ATOS IT SERVICES UK LTD,3141619,60.34 ,Desktop PC - HP DC8300
Ministry of Justice,HMCTS,03/Mar/2015 ,265000-IT & Telecommunications,CZ999-South East Region,ATOS IT SERVICES UK LTD,3141619,6.38 ,HP USB/PS2 Optical Scroll Mouse
Ministry of Justice,HMCTS,03/Mar/2015 ,265000-IT & Telecommunications,CZ999-South East Region,ATOS IT SERVICES UK LTD,3141619,11.16 ,HP Standard USB Keyboard
Ministry of Justice,HMCTS,03/Mar/2015 ,265000-IT & Telecommunications,CZ999-South East Region,ATOS IT SERVICES UK LTD,3141619,60.34 ,Relocation of a single desktop client device within the same building
Ministry of Justice,HMCTS,03/Mar/2015 ,265000-IT & Telecommunications,CZ999-South East Region,ATOS IT SERVICES UK LTD,3141619,144.00 ,Relocation of 4 desktop client devices within the same building.
Ministry of Justice,HMCTS,03/Mar/2015 ,265000-IT & Telecommunications,CZ999-South East Region,ATOS IT SERVICES UK LTD,3141619,18.33 ,Low-noise / soft touch keyboard
Ministry of Justice,HMCTS,03/Mar/2015 ,265000-IT & Telecommunications,CZ999-South East Region,ATOS IT SERVICES UK LTD,3141619,10.00 ,USB Extender cable
Ministry of Justice,HMCTS,03/Mar/2015 ,265000-IT & Telecommunications,CZ999-South East Region,ATOS IT SERVICES UK LTD,3141619,144.00 ,Relocation of 2 desktop client devices to a different building.
Ministry of Justice,HMCTS,03/Mar/2015 ,265000-IT & Telecommunications,CZ999-South East Region,ATOS IT SERVICES UK LTD,3141619,5.00 ,USB Extender cable
Ministry of Justice,HMCTS,31/Mar/2015 ,265000-IT & Telecommunications,CZ999-South East Region,ATOS IT SERVICES UK LTD,3174914,181.02 ,Desktop PC - HP DC8300
Ministry of Justice,HMCTS,31/Mar/2015 ,265000-IT & Telecommunications,CZ999-South East Region,ATOS IT SERVICES UK LTD,3174914,116.00 ,Relocation of a single desktop client device to a different building.
Ministry of Justice,HMCTS,31/Mar/2015 ,265000-IT & Telecommunications,CZ999-South East Region,ATOS IT SERVICES UK LTD,3174914,116.00 ,Relocation of a single desktop client device to a different building.
Ministry of Justice,HMCTS,31/Mar/2015 ,265000-IT & Telecommunications,CZ999-South East Region,ATOS IT SERVICES UK LTD,3174914,120.69 ,Relocation of a single desktop client device to a different building
Ministry of Justice,HMCTS,31/Mar/2015 ,265000-IT & Telecommunications,CZ999-South East Region,ATOS IT SERVICES UK LTD,3174914,144.00 ,Relocation of 2 desktop client devices to a different building.
Ministry of Justice,HMCTS,31/Mar/2015 ,265000-IT & Telecommunications,CZ999-South East Region,ATOS IT SERVICES UK LTD,3174914,8.07 ,VGA Monitor Extension Cable
Ministry of Justice,HMCTS,31/Mar/2015 ,265000-IT & Telecommunications,CZ999-South East Region,ATOS IT SERVICES UK LTD,3174914,144.00 ,Relocation of 2 desktop client devices to a different building.
Ministry of Justice,HMCTS,31/Mar/2015 ,265000-IT & Telecommunications,CZ999-South East Region,ATOS IT SERVICES UK LTD,3174914,362.04 ,Desktop PC - HP DC8300
Ministry of Justice,HMCTS,31/Mar/2015 ,265000-IT & Telecommunications,CZ999-South East Region,ATOS IT SERVICES UK LTD,3174914,180.00 ,Relocation of 5 desktop client devices within the same building.
Ministry of Justice,HMCTS,31/Mar/2015 ,265000-IT & Telecommunications,CZ999-South East Region,ATOS IT SERVICES UK LTD,3174914,416.16 ,1 to 5 Devices Local Relocation (same Authority Premises) -  Printer or MFD
Ministry of Justice,HMCTS,31/Mar/2015 ,265000-IT & Telecommunications,CZ999-South East Region,ATOS IT SERVICES UK LTD,3174914,129.66 ,Andrea NC181VM USB headset
Ministry of Justice,HMCTS,31/Mar/2015 ,265000-IT & Telecommunications,CZ999-South East Region,ATOS IT SERVICES UK LTD,3174914,120.68 ,Desktop PC - HP DC8300
Ministry of Justice,HMCTS,03/Mar/2015 ,265000-IT & Telecommunications,CZ999-South East Region,ATOS IT SERVICES UK LTD,3141619,76.90 ,"Docking Station for 2540p,2560p and 2570p laptop"
Ministry of Justice,HMCTS,03/Mar/2015 ,265000-IT & Telecommunications,CZ999-South East Region,ATOS IT SERVICES UK LTD,3141619,"1,148.00 ",Pool Laptop
Ministry of Justice,HMCTS,03/Mar/2015 ,265000-IT & Telecommunications,CZ999-South East Region,ATOS IT SERVICES UK LTD,3141619,492.00 ,Pool Laptop
Ministry of Justice,HMCTS,31/Mar/2015 ,265000-IT & Telecommunications,CZ999-South East Region,ATOS IT SERVICES UK LTD,3174914,164.00 ,HMCTS Judicial Laptop
Ministry of Justice,HMCTS,31/Mar/2015 ,265000-IT & Telecommunications,CZ999-South East Region,ATOS IT SERVICES UK LTD,3174914,51.52 ,HP 90W Smart AC Adapter
Ministry of Justice,HMCTS,31/Mar/2015 ,265000-IT & Telecommunications,CZ999-South East Region,ATOS IT SERVICES UK LTD,3174914,56.92 ,HP 230W Smart AC Adapter
Ministry of Justice,HMCTS,03/Mar/2015 ,265000-IT & Telecommunications,CZ999-South East Region,ATOS IT SERVICES UK LTD,3141619,77.34 ,Hunt Group - Amendment
Ministry of Justice,HMCTS,03/Mar/2015 ,265000-IT & Telecommunications,CZ999-South East Region,ATOS IT SERVICES UK LTD,3141619,"1,977.60 ",New ISDN2e (Low Start Option - 2 Channels)
Ministry of Justice,HMCTS,03/Mar/2015 ,265000-IT & Telecommunications,CZ999-South East Region,ATOS IT SERVICES UK LTD,3141619,51.56 ,Pick Up Group - Amend
Ministry of Justice,HMCTS,03/Mar/2015 ,265000-IT & Telecommunications,CZ999-South East Region,ATOS IT SERVICES UK LTD,3141619,454.39 ,"Analogue Extension Port For use with fax machine, MFD, franking machine or an analogue handset 1-11 devices"
Ministry of Justice,HMCTS,03/Mar/2015 ,265000-IT & Telecommunications,CZ999-South East Region,ATOS IT SERVICES UK LTD,3141619,29.67 ,Converse 2100 1 -11 devices
Ministry of Justice,HMCTS,03/Mar/2015 ,265000-IT & Telecommunications,CZ999-South East Region,ATOS IT SERVICES UK LTD,3141619,25.78 ,New IPT Handset 1 - 11 devices
Ministry of Justice,HMCTS,03/Mar/2015 ,265000-IT & Telecommunications,CZ999-South East Region,ATOS IT SERVICES UK LTD,3141619,322.00 ,Provision and support of Secure Remote Access (RWSII) Capability
Ministry of Justice,HMCTS,03/Mar/2015 ,265000-IT & Telecommunications,CZ999-South East Region,ATOS IT SERVICES UK LTD,3141619,83.46 ,Plantronics HW251 N Mono Headset 1-11 devices
Ministry of Justice,HMCTS,03/Mar/2015 ,265000-IT & Telecommunications,CZ999-South East Region,ATOS IT SERVICES UK LTD,3141619,134.62 ,Plantronics HW251 A Mono Headset 1-11 devices
Ministry of Justice,HMCTS,03/Mar/2015 ,265000-IT & Telecommunications,CZ999-South East Region,ATOS IT SERVICES UK LTD,3141619,59.34 ,Converse 2100 1 -11 devices
Ministry of Justice,HMCTS,03/Mar/2015 ,265000-IT & Telecommunications,CZ999-South East Region,ATOS IT SERVICES UK LTD,3141619,46.00 ,Provision and support of Secure Remote Access (RWSII) Capability
Ministry of Justice,HMCTS,03/Mar/2015 ,265000-IT & Telecommunications,CZ999-South East Region,ATOS IT SERVICES UK LTD,3141619,134.62 ,Plantronics HW251 A Mono Headset 1-11 devices
Ministry of Justice,HMCTS,03/Mar/2015 ,265000-IT & Telecommunications,CZ999-South East Region,ATOS IT SERVICES UK LTD,3141619,103.12 ,New IPT Handset 1 - 11 devices
Ministry of Justice,HMCTS,03/Mar/2015 ,265000-IT & Telecommunications,CZ999-South East Region,ATOS IT SERVICES UK LTD,3141619,25.78 ,Hunt Group - Extension
Ministry of Justice,HMCTS,03/Mar/2015 ,265000-IT & Telecommunications,CZ999-South East Region,ATOS IT SERVICES UK LTD,3141619,25.78 ,New IPT Handset 1 - 11 devices
Ministry of Justice,HMCTS,03/Mar/2015 ,265000-IT & Telecommunications,CZ999-South East Region,ATOS IT SERVICES UK LTD,3141619,138.00 ,Provision and support of Secure Remote Access (RWSII) Capability
Ministry of Justice,HMCTS,03/Mar/2015 ,265000-IT & Telecommunications,CZ999-South East Region,ATOS IT SERVICES UK LTD,3141619,46.00 ,Provision and support of Secure Remote Access (RWSII) Capability
Ministry of Justice,HMCTS,31/Mar/2015 ,265000-IT & Telecommunications,CZ999-South East Region,ATOS IT SERVICES UK LTD,3174914,46.00 ,Provision and support of Secure Remote Access (RWSII) Capability
Ministry of Justice,HMCTS,31/Mar/2015 ,265000-IT & Telecommunications,CZ999-South East Region,ATOS IT SERVICES UK LTD,3174914,56.55 ,Auto Attendant - Message Annoucement - Amend Static Message Announcement
Ministry of Justice,HMCTS,31/Mar/2015 ,265000-IT & Telecommunications,CZ999-South East Region,ATOS IT SERVICES UK LTD,3174914,25.78 ,Pick Up Group - Amend
Ministry of Justice,HMCTS,31/Mar/2015 ,265000-IT & Telecommunications,CZ999-South East Region,ATOS IT SERVICES UK LTD,3174914,25.78 ,Hunt Group - Amendment
Ministry of Justice,HMCTS,31/Mar/2015 ,265000-IT & Telecommunications,CZ999-South East Region,ATOS IT SERVICES UK LTD,3174914,46.00 ,Provision and support of Secure Remote Access (RWSII) Capability
Ministry of Justice,HMCTS,31/Mar/2015 ,265000-IT & Telecommunications,CZ999-South East Region,ATOS IT SERVICES UK LTD,3174914,"1,143.30 ",Plantronics CS510 Wireless Headset 1-11 devices
Ministry of Justice,HMCTS,31/Mar/2015 ,265000-IT & Telecommunications,CZ999-South East Region,ATOS IT SERVICES UK LTD,3174914,25.78 ,Hunt Group - Extension
Ministry of Justice,HMCTS,31/Mar/2015 ,265000-IT & Telecommunications,CZ999-South East Region,ATOS IT SERVICES UK LTD,3174914,103.12 ,New IPT Handset 1 - 11 devices
Ministry of Justice,HMCTS,31/Mar/2015 ,265000-IT & Telecommunications,CZ999-South East Region,ATOS IT SERVICES UK LTD,3174914,25.78 ,Pick Up Group - Deletion
Ministry of Justice,HMCTS,31/Mar/2015 ,265000-IT & Telecommunications,CZ999-South East Region,ATOS IT SERVICES UK LTD,3174914,25.78 ,Hunt Group - Deletion 1-10 Instances
Ministry of Justice,HMCTS,31/Mar/2015 ,265000-IT & Telecommunications,CZ999-South East Region,ATOS IT SERVICES UK LTD,3174914,25.78 ,Pick Up Group - Amend
Ministry of Justice,HMCTS,31/Mar/2015 ,265000-IT & Telecommunications,CZ999-South East Region,ATOS IT SERVICES UK LTD,3174914,25.78 ,Hunt Group - Extension
Ministry of Justice,HMCTS,31/Mar/2015 ,265000-IT & Telecommunications,CZ999-South East Region,ATOS IT SERVICES UK LTD,3174914,25.78 ,Pick Up Group - New
Ministry of Justice,HMCTS,31/Mar/2015 ,265000-IT & Telecommunications,CZ999-South East Region,ATOS IT SERVICES UK LTD,3174914,25.78 ,Mobility Account Changes 1-10 Accounts
Ministry of Justice,HMCTS,31/Mar/2015 ,265000-IT & Telecommunications,CZ999-South East Region,ATOS IT SERVICES UK LTD,3174914,25.78 ,Hunt Group - Extension
Ministry of Justice,HMCTS,31/Mar/2015 ,265000-IT & Telecommunications,CZ999-South East Region,ATOS IT SERVICES UK LTD,3174914,46.00 ,Provision and support of Secure Remote Access (RWSII) Capability
Ministry of Justice,HMCTS,31/Mar/2015 ,265000-IT & Telecommunications,CZ999-South East Region,ATOS IT SERVICES UK LTD,3174914,25.78 ,Voicemail - Provision of announcement only  on a Hunt Group 1-10 Instances
Ministry of Justice,HMCTS,31/Mar/2015 ,265000-IT & Telecommunications,CZ999-South East Region,ATOS IT SERVICES UK LTD,3174914,56.55 ,Auto Attendant - Message Prompt Menu - Convert an Existing Static Message Prompt Menu to a Flexible Message Prompt Menu
Ministry of Justice,HMCTS,31/Mar/2015 ,265000-IT & Telecommunications,CZ999-South East Region,ATOS IT SERVICES UK LTD,3174914,5.00 ,3m Network Cable
Ministry of Justice,HMCTS,31/Mar/2015 ,265000-IT & Telecommunications,CZ999-South East Region,ATOS IT SERVICES UK LTD,3174914,25.78 ,New IPT Handset 1 - 11 devices
Ministry of Justice,HMCTS,31/Mar/2015 ,265000-IT & Telecommunications,CZ999-South East Region,ATOS IT SERVICES UK LTD,3174914,25.78 ,Pick Up Group - New
Ministry of Justice,HMCTS,31/Mar/2015 ,265000-IT & Telecommunications,CZ999-South East Region,ATOS IT SERVICES UK LTD,3174914,25.78 ,Pick Up Group - Amend
Ministry of Justice,HMCTS,31/Mar/2015 ,265000-IT & Telecommunications,CZ999-South East Region,ATOS IT SERVICES UK LTD,3174914,25.78 ,Hunt Group - Extension
Ministry of Justice,HMCTS,31/Mar/2015 ,265000-IT & Telecommunications,CZ999-South East Region,ATOS IT SERVICES UK LTD,3174914,25.78 ,Fixed IPT Phone Transfer to a new user 1-10 Devices
Ministry of Justice,HMCTS,31/Mar/2015 ,265000-IT & Telecommunications,CZ999-South East Region,ATOS IT SERVICES UK LTD,3174914,51.56 ,New IPT Handset 1 - 11 devices
Ministry of Justice,HMCTS,31/Mar/2015 ,265000-IT & Telecommunications,CZ999-South East Region,ATOS IT SERVICES UK LTD,3174914,762.61 ,E-mail restore for selected user / month on DOM1 (Aramis) and Libra exchange domain
Ministry of Justice,HMCTS,03/Mar/2015 ,265000-IT & Telecommunications,CZ999-South East Region,ATOS IT SERVICES UK LTD,3141619,130.44 ,Inspiration Mind Mapping Software
Ministry of Justice,HMCTS,03/Mar/2015 ,265000-IT & Telecommunications,CZ999-South East Region,ATOS IT SERVICES UK LTD,3141619,354.13 ,TextHelp Read & Write Gold
Ministry of Justice,HMCTS,03/Mar/2015 ,265000-IT & Telecommunications,CZ999-South East Region,ATOS IT SERVICES UK LTD,3141619,265.63 ,Dragon Naturally Speaking Professional v10
Ministry of Justice,HMCTS,03/Mar/2015 ,265000-IT & Telecommunications,CZ999-South East Region,ATOS IT SERVICES UK LTD,3141619,381.33 ,Olympus Digital Voice Recorder  - DS-7000 - new device
Ministry of Justice,HMCTS,03/Mar/2015 ,265000-IT & Telecommunications,CZ999-South East Region,ATOS IT SERVICES UK LTD,3141619,138.66 ,Request Olympus dictation and transcription software for a user.  Does not include Olympus Digital Professional Dictation Solution - DS-7000
Ministry of Justice,HMCTS,03/Mar/2015 ,265000-IT & Telecommunications,CZ999-South East Region,ATOS IT SERVICES UK LTD,3141619,25.23 ,Additional/spare mains charger for BlackBerry 9320
Ministry of Justice,HMCTS,03/Mar/2015 ,265000-IT & Telecommunications,CZ999-South East Region,ATOS IT SERVICES UK LTD,3141619,"7,542.90 ",AVM Ad-Hoc Labour and Materials
Ministry of Justice,HMCTS,03/Mar/2015 ,265000-IT & Telecommunications,CZ999-South East Region,ATOS IT SERVICES UK LTD,3141619,11.17 ,MS Access
Ministry of Justice,HMCTS,03/Mar/2015 ,265000-IT & Telecommunications,CZ999-South East Region,ATOS IT SERVICES UK LTD,3141619,11.17 ,MS Access
Ministry of Justice,HMCTS,03/Mar/2015 ,265000-IT & Telecommunications,CZ999-South East Region,ATOS IT SERVICES UK LTD,3141619,11.17 ,MS Access
Ministry of Justice,HMCTS,03/Mar/2015 ,265000-IT & Telecommunications,CZ999-South East Region,ATOS IT SERVICES UK LTD,3141619,82.78 ,BlackBerry (Vodafone)
Ministry of Justice,HMCTS,31/Mar/2015 ,265000-IT & Telecommunications,CZ999-South East Region,ATOS IT SERVICES UK LTD,3174914,82.78 ,BlackBerry (Vodafone)
Ministry of Justice,HMCTS,31/Mar/2015 ,265000-IT & Telecommunications,CZ999-South East Region,ATOS IT SERVICES UK LTD,3174914,82.78 ,BlackBerry (Vodafone)
Ministry of Justice,HMCTS,31/Mar/2015 ,265000-IT & Telecommunications,CZ999-South East Region,ATOS IT SERVICES UK LTD,3174914,82.78 ,BlackBerry (Vodafone)
Ministry of Justice,HMCTS,31/Mar/2015 ,265000-IT & Telecommunications,CZ999-South East Region,ATOS IT SERVICES UK LTD,3174914,260.10 ,AVM Ad-Hoc Labour and Materials
Ministry of Justice,HMCTS,31/Mar/2015 ,265000-IT & Telecommunications,CZ999-South East Region,ATOS IT SERVICES UK LTD,3174914,260.10 ,AVM Ad-Hoc Labour and Materials
Ministry of Justice,HMCTS,31/Mar/2015 ,265000-IT & Telecommunications,CZ999-South East Region,ATOS IT SERVICES UK LTD,3174914,"1,300.50 ",AVM Ad-Hoc Labour and Materials
Ministry of Justice,HMCTS,31/Mar/2015 ,265000-IT & Telecommunications,CZ999-South East Region,ATOS IT SERVICES UK LTD,3174914,"3,050.64 ",Olympus Digital Voice Recorder  - DS-7000 - new device
Ministry of Justice,HMCTS,31/Mar/2015 ,265000-IT & Telecommunications,CZ999-South East Region,ATOS IT SERVICES UK LTD,3174914,647.08 ,Request Olympus dictation and transcription software for a user.  Does not include Olympus Digital Professional Dictation Solution - DS-7000
Ministry of Justice,HMCTS,03/Mar/2015 ,265000-IT & Telecommunications,DZ999-South West Region,ATOS IT SERVICES UK LTD,3141619,416.16 ,1 to 5 Devices Local Relocation (same Authority Premises) -  Printer or MFD
Ministry of Justice,HMCTS,03/Mar/2015 ,265000-IT & Telecommunications,DZ999-South West Region,ATOS IT SERVICES UK LTD,3141619,92.44 ,Humanscale M2 Monitor Arm
Ministry of Justice,HMCTS,03/Mar/2015 ,265000-IT & Telecommunications,DZ999-South West Region,ATOS IT SERVICES UK LTD,3141619,10.92 ,Compact Keyboard
Ministry of Justice,HMCTS,03/Mar/2015 ,265000-IT & Telecommunications,DZ999-South West Region,ATOS IT SERVICES UK LTD,3141619,288.00 ,Relocation of 4 desktop client devices to a different building.
Ministry of Justice,HMCTS,03/Mar/2015 ,265000-IT & Telecommunications,DZ999-South West Region,ATOS IT SERVICES UK LTD,3141619,36.66 ,Low-noise / soft touch keyboard
Ministry of Justice,HMCTS,03/Mar/2015 ,265000-IT & Telecommunications,DZ999-South West Region,ATOS IT SERVICES UK LTD,3141619,144.00 ,Relocation of 2 desktop client devices to a different building.
Ministry of Justice,HMCTS,03/Mar/2015 ,265000-IT & Telecommunications,DZ999-South West Region,ATOS IT SERVICES UK LTD,3141619,488.99 ,1 to 5 Devices National Relocation -Printer or MFD (Multi Function Device)
Ministry of Justice,HMCTS,03/Mar/2015 ,265000-IT & Telecommunications,DZ999-South West Region,ATOS IT SERVICES UK LTD,3141619,43.22 ,Andrea NC181VM USB headset
Ministry of Justice,HMCTS,03/Mar/2015 ,265000-IT & Telecommunications,DZ999-South West Region,ATOS IT SERVICES UK LTD,3141619,"3,677.00 ",1 to 5 Devices Multi Function device                  Xerox Workcenter 5775 - Black and White printer / Colour scanner
Ministry of Justice,HMCTS,31/Mar/2015 ,265000-IT & Telecommunications,DZ999-South West Region,ATOS IT SERVICES UK LTD,3174914,18.33 ,Low-noise / soft touch keyboard
Ministry of Justice,HMCTS,31/Mar/2015 ,265000-IT & Telecommunications,DZ999-South West Region,ATOS IT SERVICES UK LTD,3174914,216.00 ,Relocation of 3 desktop client devices to a different building.
Ministry of Justice,HMCTS,31/Mar/2015 ,265000-IT & Telecommunications,DZ999-South West Region,ATOS IT SERVICES UK LTD,3174914,144.00 ,Relocation of 2 desktop client devices to a different building.
Ministry of Justice,HMCTS,31/Mar/2015 ,265000-IT & Telecommunications,DZ999-South West Region,ATOS IT SERVICES UK LTD,3174914,216.00 ,Relocation of 3 desktop client devices to a different building.
Ministry of Justice,HMCTS,31/Mar/2015 ,265000-IT & Telecommunications,DZ999-South West Region,ATOS IT SERVICES UK LTD,3174914,288.00 ,Relocation of 4 desktop client devices to a different building.
Ministry of Justice,HMCTS,31/Mar/2015 ,265000-IT & Telecommunications,DZ999-South West Region,ATOS IT SERVICES UK LTD,3174914,144.00 ,Relocation of 2 desktop client devices to a different building.
Ministry of Justice,HMCTS,31/Mar/2015 ,265000-IT & Telecommunications,DZ999-South West Region,ATOS IT SERVICES UK LTD,3174914,33.33 ,Large Print Keyboard
Ministry of Justice,HMCTS,31/Mar/2015 ,265000-IT & Telecommunications,DZ999-South West Region,ATOS IT SERVICES UK LTD,3174914,488.99 ,1 to 5 Devices National Relocation -Printer or MFD (Multi Function Device)
Ministry of Justice,HMCTS,31/Mar/2015 ,265000-IT & Telecommunications,DZ999-South West Region,ATOS IT SERVICES UK LTD,3174914,488.99 ,1 to 5 Devices National Relocation -Printer or MFD (Multi Function Device)
Ministry of Justice,HMCTS,31/Mar/2015 ,265000-IT & Telecommunications,DZ999-South West Region,ATOS IT SERVICES UK LTD,3174914,488.99 ,1 to 5 Devices National Relocation -Printer or MFD (Multi Function Device)
Ministry of Justice,HMCTS,31/Mar/2015 ,265000-IT & Telecommunications,DZ999-South West Region,ATOS IT SERVICES UK LTD,3174914,44.50 ,Andrea NC-181 headset
Ministry of Justice,HMCTS,31/Mar/2015 ,265000-IT & Telecommunications,DZ999-South West Region,ATOS IT SERVICES UK LTD,3174914,22.25 ,Andrea NC-181 headset
Ministry of Justice,HMCTS,31/Mar/2015 ,265000-IT & Telecommunications,DZ999-South West Region,ATOS IT SERVICES UK LTD,3174914,22.25 ,Andrea NC-181 headset
Ministry of Justice,HMCTS,31/Mar/2015 ,265000-IT & Telecommunications,DZ999-South West Region,ATOS IT SERVICES UK LTD,3174914,488.99 ,1 to 5 Devices National Relocation -Printer or MFD (Multi Function Device)
Ministry of Justice,HMCTS,31/Mar/2015 ,265000-IT & Telecommunications,DZ999-South West Region,ATOS IT SERVICES UK LTD,3174914,56.92 ,HP 230W Smart AC Adapter
Ministry of Justice,HMCTS,31/Mar/2015 ,265000-IT & Telecommunications,DZ999-South West Region,ATOS IT SERVICES UK LTD,3174914,5.00 ,Power cable
Ministry of Justice,HMCTS,03/Mar/2015 ,265000-IT & Telecommunications,DZ999-South West Region,ATOS IT SERVICES UK LTD,3141619,56.55 ,Auto Attendant - Message Announcement - Convert an existing Static message annoucement `to a Flexible message annoucement
Ministry of Justice,HMCTS,03/Mar/2015 ,265000-IT & Telecommunications,DZ999-South West Region,ATOS IT SERVICES UK LTD,3141619,25.78 ,Mobility Handset Conversion to Fixed Handset & Import existing Mobility profile 1- 11 devices
Ministry of Justice,HMCTS,03/Mar/2015 ,265000-IT & Telecommunications,DZ999-South West Region,ATOS IT SERVICES UK LTD,3141619,25.78 ,New IPT Handset 1 - 11 devices
Ministry of Justice,HMCTS,03/Mar/2015 ,265000-IT & Telecommunications,DZ999-South West Region,ATOS IT SERVICES UK LTD,3141619,25.78 ,Pick Up Group - Amend
Ministry of Justice,HMCTS,03/Mar/2015 ,265000-IT & Telecommunications,DZ999-South West Region,ATOS IT SERVICES UK LTD,3141619,56.55 ,Auto Attendant - Message Announcement - Convert an existing Static message annoucement `to a Flexible message annoucement
Ministry of Justice,HMCTS,03/Mar/2015 ,265000-IT & Telecommunications,DZ999-South West Region,ATOS IT SERVICES UK LTD,3141619,46.00 ,Provision and support of Secure Remote Access (RWSII) Capability
Ministry of Justice,HMCTS,03/Mar/2015 ,265000-IT & Telecommunications,DZ999-South West Region,ATOS IT SERVICES UK LTD,3141619,673.10 ,Plantronics HW251 A Mono Headset 1-11 devices
Ministry of Justice,HMCTS,03/Mar/2015 ,265000-IT & Telecommunications,DZ999-South West Region,ATOS IT SERVICES UK LTD,3141619,43.22 ,Andrea NC181VM USB headset
Ministry of Justice,HMCTS,03/Mar/2015 ,265000-IT & Telecommunications,DZ999-South West Region,ATOS IT SERVICES UK LTD,3141619,25.78 ,Fixed IPT Phone Transfer to a new user 1-10 Devices
Ministry of Justice,HMCTS,03/Mar/2015 ,265000-IT & Telecommunications,DZ999-South West Region,ATOS IT SERVICES UK LTD,3141619,25.78 ,Mobility Handset Conversion to Fixed Handset with new user details 1- 11 devices
Ministry of Justice,HMCTS,03/Mar/2015 ,265000-IT & Telecommunications,DZ999-South West Region,ATOS IT SERVICES UK LTD,3141619,25.78 ,Pick Up Group - Amend
Ministry of Justice,HMCTS,03/Mar/2015 ,265000-IT & Telecommunications,DZ999-South West Region,ATOS IT SERVICES UK LTD,3141619,56.55 ,Auto Attendant - Message Announcement - Convert an existing Static message annoucement `to a Flexible message annoucement
Ministry of Justice,HMCTS,03/Mar/2015 ,265000-IT & Telecommunications,DZ999-South West Region,ATOS IT SERVICES UK LTD,3141619,25.78 ,Hunt Group - Extension
Ministry of Justice,HMCTS,03/Mar/2015 ,265000-IT & Telecommunications,DZ999-South West Region,ATOS IT SERVICES UK LTD,3141619,46.00 ,Provision and support of Secure Remote Access (RWSII) Capability
Ministry of Justice,HMCTS,31/Mar/2015 ,265000-IT & Telecommunications,DZ999-South West Region,ATOS IT SERVICES UK LTD,3174914,51.56 ,New IPT Handset 1 - 11 devices
Ministry of Justice,HMCTS,31/Mar/2015 ,265000-IT & Telecommunications,DZ999-South West Region,ATOS IT SERVICES UK LTD,3174914,25.78 ,Analogue Extension Decommission 1 - 10
Ministry of Justice,HMCTS,31/Mar/2015 ,265000-IT & Telecommunications,DZ999-South West Region,ATOS IT SERVICES UK LTD,3174914,61.80 ,Recovery of a redundant IPT handset from site 1-11 devices
Ministry of Justice,HMCTS,31/Mar/2015 ,265000-IT & Telecommunications,DZ999-South West Region,ATOS IT SERVICES UK LTD,3174914,25.78 ,Fixed IPT Phone Transfer to a new user 1-10 Devices
Ministry of Justice,HMCTS,31/Mar/2015 ,265000-IT & Telecommunications,DZ999-South West Region,ATOS IT SERVICES UK LTD,3174914,360.00 ,Auto Attendant - Amend existing Auto Attendant Call Flow
Ministry of Justice,HMCTS,31/Mar/2015 ,265000-IT & Telecommunications,DZ999-South West Region,ATOS IT SERVICES UK LTD,3174914,350.20 ,Plantronics CS540 Wireless Headset 1-11 devices
Ministry of Justice,HMCTS,31/Mar/2015 ,265000-IT & Telecommunications,DZ999-South West Region,ATOS IT SERVICES UK LTD,3174914,25.78 ,Hunt Group - New Default Creation
Ministry of Justice,HMCTS,31/Mar/2015 ,265000-IT & Telecommunications,DZ999-South West Region,ATOS IT SERVICES UK LTD,3174914,25.78 ,Mobility Account Changes 1-10 Accounts
Ministry of Justice,HMCTS,31/Mar/2015 ,265000-IT & Telecommunications,DZ999-South West Region,ATOS IT SERVICES UK LTD,3174914,417.30 ,Plantronics HW251 N Mono Headset 12-30 devices
Ministry of Justice,HMCTS,31/Mar/2015 ,265000-IT & Telecommunications,DZ999-South West Region,ATOS IT SERVICES UK LTD,3174914,51.56 ,New IPT Handset 1 - 11 devices
Ministry of Justice,HMCTS,31/Mar/2015 ,265000-IT & Telecommunications,DZ999-South West Region,ATOS IT SERVICES UK LTD,3174914,51.56 ,Mobility Handset Conversion to Fixed Handset with new user details 1- 11 devices
Ministry of Justice,HMCTS,31/Mar/2015 ,265000-IT & Telecommunications,DZ999-South West Region,ATOS IT SERVICES UK LTD,3174914,128.90 ,Fixed IPT Phone Change 1-10 Devices
Ministry of Justice,HMCTS,31/Mar/2015 ,265000-IT & Telecommunications,DZ999-South West Region,ATOS IT SERVICES UK LTD,3174914,454.39 ,"Analogue Extension Port For use with fax machine, MFD, franking machine or an analogue handset 1-11 devices"
Ministry of Justice,HMCTS,31/Mar/2015 ,265000-IT & Telecommunications,DZ999-South West Region,ATOS IT SERVICES UK LTD,3174914,25.78 ,Mobility Handset Conversion to Fixed Handset with new user details 1- 11 devices
Ministry of Justice,HMCTS,31/Mar/2015 ,265000-IT & Telecommunications,DZ999-South West Region,ATOS IT SERVICES UK LTD,3174914,51.56 ,Mobility Handset Conversion to Fixed Handset with new user details 1- 11 devices
Ministry of Justice,HMCTS,31/Mar/2015 ,265000-IT & Telecommunications,DZ999-South West Region,ATOS IT SERVICES UK LTD,3174914,25.78 ,Fixed IPT Phone Transfer to a new user 1-10 Devices
Ministry of Justice,HMCTS,31/Mar/2015 ,265000-IT & Telecommunications,DZ999-South West Region,ATOS IT SERVICES UK LTD,3174914,25.78 ,Fixed IPT Phone Transfer to a new user 1-10 Devices
Ministry of Justice,HMCTS,31/Mar/2015 ,265000-IT & Telecommunications,DZ999-South West Region,ATOS IT SERVICES UK LTD,3174914,25.78 ,Analogue Extension Decommission 1 - 10
Ministry of Justice,HMCTS,31/Mar/2015 ,265000-IT & Telecommunications,DZ999-South West Region,ATOS IT SERVICES UK LTD,3174914,25.78 ,New IPT Handset 1 - 11 devices
Ministry of Justice,HMCTS,31/Mar/2015 ,265000-IT & Telecommunications,DZ999-South West Region,ATOS IT SERVICES UK LTD,3174914,166.86 ,Jabra GN2100 Telecoil Duo HeadsetChanges 1 - 10
Ministry of Justice,HMCTS,31/Mar/2015 ,265000-IT & Telecommunications,DZ999-South West Region,ATOS IT SERVICES UK LTD,3174914,46.00 ,Provision and support of Secure Remote Access (RWSII) Capability
Ministry of Justice,HMCTS,31/Mar/2015 ,265000-IT & Telecommunications,DZ999-South West Region,ATOS IT SERVICES UK LTD,3174914,46.00 ,Provision and support of Secure Remote Access (RWSII) Capability
Ministry of Justice,HMCTS,31/Mar/2015 ,265000-IT & Telecommunications,DZ999-South West Region,ATOS IT SERVICES UK LTD,3174914,25.78 ,Pick Up Group - Amend
Ministry of Justice,HMCTS,31/Mar/2015 ,265000-IT & Telecommunications,DZ999-South West Region,ATOS IT SERVICES UK LTD,3174914,25.78 ,Hunt Group - Extension
Ministry of Justice,HMCTS,03/Mar/2015 ,265000-IT & Telecommunications,DZ999-South West Region,ATOS IT SERVICES UK LTD,3141619,"3,641.40 ",AVM Ad-Hoc Labour and Materials
Ministry of Justice,HMCTS,03/Mar/2015 ,265000-IT & Telecommunications,DZ999-South West Region,ATOS IT SERVICES UK LTD,3141619,265.63 ,Dragon Naturally Speaking Professional v10
Ministry of Justice,HMCTS,31/Mar/2015 ,265000-IT & Telecommunications,DZ999-South West Region,ATOS IT SERVICES UK LTD,3174914,111.45 ,Replace faulty or non-faulty out-of-contract BlackBerry device
Ministry of Justice,HMCTS,31/Mar/2015 ,265000-IT & Telecommunications,DZ999-South West Region,ATOS IT SERVICES UK LTD,3174914,796.89 ,Dragon Naturally Speaking Professional v10
Ministry of Justice,HMCTS,31/Mar/2015 ,265000-IT & Telecommunications,DZ999-South West Region,ATOS IT SERVICES UK LTD,3174914,796.89 ,Dragon Naturally Speaking Professional v10
Ministry of Justice,HMCTS,31/Mar/2015 ,265000-IT & Telecommunications,DZ999-South West Region,ATOS IT SERVICES UK LTD,3174914,111.45 ,Replace faulty or non-faulty out-of-contract BlackBerry device
Ministry of Justice,HMCTS,31/Mar/2015 ,265000-IT & Telecommunications,DZ999-South West Region,ATOS IT SERVICES UK LTD,3174914,11.17 ,MS Access
Ministry of Justice,HMCTS,03/Mar/2015 ,265000-IT & Telecommunications,EZ999-Wales Region,ATOS IT SERVICES UK LTD,3141619,"1,720.00 ",1 to 5 Devices Xerox A4 Black & White Laser Printer 3600EDN
Ministry of Justice,HMCTS,03/Mar/2015 ,265000-IT & Telecommunications,EZ999-Wales Region,ATOS IT SERVICES UK LTD,3141619,307.60 ,6930p Docking Station
Ministry of Justice,HMCTS,03/Mar/2015 ,265000-IT & Telecommunications,EZ999-Wales Region,ATOS IT SERVICES UK LTD,3141619,"3,677.00 ",1 to 5 Devices Multi Function device                  Xerox Workcenter 5775 - Black and White printer / Colour scanner
Ministry of Justice,HMCTS,03/Mar/2015 ,265000-IT & Telecommunications,EZ999-Wales Region,ATOS IT SERVICES UK LTD,3141619,"3,984.00 ",1 to 5  Devices Multi Function device                  Xerox Workcenter 7545FL - A3 Colour MFD
Ministry of Justice,HMCTS,31/Mar/2015 ,265000-IT & Telecommunications,EZ999-Wales Region,ATOS IT SERVICES UK LTD,3174914,288.00 ,Relocation of 4 desktop client devices to a different building.
Ministry of Justice,HMCTS,31/Mar/2015 ,265000-IT & Telecommunications,EZ999-Wales Region,ATOS IT SERVICES UK LTD,3174914,91.65 ,Low-noise / soft touch keyboard
Ministry of Justice,HMCTS,31/Mar/2015 ,265000-IT & Telecommunications,EZ999-Wales Region,ATOS IT SERVICES UK LTD,3174914,840.50 ,"19"" LCD Display"
Ministry of Justice,HMCTS,03/Mar/2015 ,265000-IT & Telecommunications,EZ999-Wales Region,ATOS IT SERVICES UK LTD,3141619,56.92 ,HP 230W Smart AC Adapter
Ministry of Justice,HMCTS,03/Mar/2015 ,265000-IT & Telecommunications,EZ999-Wales Region,ATOS IT SERVICES UK LTD,3141619,5.00 ,Power cable
Ministry of Justice,HMCTS,31/Mar/2015 ,265000-IT & Telecommunications,EZ999-Wales Region,ATOS IT SERVICES UK LTD,3174914,452.64 ,"HP 230W Docking Station for 8440p, 8540p, 8460p, 8560p, 8470p and 8570p laptops"
Ministry of Justice,HMCTS,31/Mar/2015 ,265000-IT & Telecommunications,EZ999-Wales Region,ATOS IT SERVICES UK LTD,3174914,339.48 ,"HP 230W Docking Station for 8440p, 8540p, 8460p, 8560p, 8470p and 8570p laptops"
Ministry of Justice,HMCTS,31/Mar/2015 ,265000-IT & Telecommunications,EZ999-Wales Region,ATOS IT SERVICES UK LTD,3174914,76.90 ,6930p Docking Station
Ministry of Justice,HMCTS,03/Mar/2015 ,265000-IT & Telecommunications,EZ999-Wales Region,ATOS IT SERVICES UK LTD,3141619,56.55 ,Auto Attendant - Message Prompt Menu - Convert an Existing Static Message Prompt Menu to a Flexible Message Prompt Menu
Ministry of Justice,HMCTS,03/Mar/2015 ,265000-IT & Telecommunications,EZ999-Wales Region,ATOS IT SERVICES UK LTD,3141619,46.00 ,Provision and support of Secure Remote Access (RWSII) Capability
Ministry of Justice,HMCTS,03/Mar/2015 ,265000-IT & Telecommunications,EZ999-Wales Region,ATOS IT SERVICES UK LTD,3141619,10.00 ,10m Network Cable
Ministry of Justice,HMCTS,03/Mar/2015 ,265000-IT & Telecommunications,EZ999-Wales Region,ATOS IT SERVICES UK LTD,3141619,10.00 ,3m Network Cable
Ministry of Justice,HMCTS,03/Mar/2015 ,265000-IT & Telecommunications,EZ999-Wales Region,ATOS IT SERVICES UK LTD,3141619,25.78 ,Analogue Extension Configuration Changes 1 - 10
Ministry of Justice,HMCTS,03/Mar/2015 ,265000-IT & Telecommunications,EZ999-Wales Region,ATOS IT SERVICES UK LTD,3141619,46.00 ,Provision and support of Secure Remote Access (RWSII) Capability
Ministry of Justice,HMCTS,03/Mar/2015 ,265000-IT & Telecommunications,EZ999-Wales Region,ATOS IT SERVICES UK LTD,3141619,25.78 ,Analogue Extension Decommission 1 - 10
Ministry of Justice,HMCTS,31/Mar/2015 ,265000-IT & Telecommunications,EZ999-Wales Region,ATOS IT SERVICES UK LTD,3174914,360.00 ,Auto Attendant - Amend existing Auto Attendant Call Flow
Ministry of Justice,HMCTS,31/Mar/2015 ,265000-IT & Telecommunications,EZ999-Wales Region,ATOS IT SERVICES UK LTD,3174914,46.00 ,Provision and support of Secure Remote Access (RWSII) Capability
Ministry of Justice,HMCTS,31/Mar/2015 ,265000-IT & Telecommunications,EZ999-Wales Region,ATOS IT SERVICES UK LTD,3174914,25.78 ,Hunt Group - New Default Creation
Ministry of Justice,HMCTS,31/Mar/2015 ,265000-IT & Telecommunications,EZ999-Wales Region,ATOS IT SERVICES UK LTD,3174914,25.78 ,Remote Activation Only of New Analogue Extension Port
Ministry of Justice,HMCTS,31/Mar/2015 ,265000-IT & Telecommunications,EZ999-Wales Region,ATOS IT SERVICES UK LTD,3174914,336.55 ,Plantronics HW251 A Mono Headset 1-11 devices
Ministry of Justice,HMCTS,31/Mar/2015 ,265000-IT & Telecommunications,EZ999-Wales Region,ATOS IT SERVICES UK LTD,3174914,25.78 ,Hunt Group - Deletion 1-10 Instances
Ministry of Justice,HMCTS,31/Mar/2015 ,265000-IT & Telecommunications,EZ999-Wales Region,ATOS IT SERVICES UK LTD,3174914,25.78 ,Hunt Group - Deletion 1-10 Instances
Ministry of Justice,HMCTS,31/Mar/2015 ,265000-IT & Telecommunications,EZ999-Wales Region,ATOS IT SERVICES UK LTD,3174914,25.78 ,Pick Up Group - Deletion
Ministry of Justice,HMCTS,31/Mar/2015 ,265000-IT & Telecommunications,EZ999-Wales Region,ATOS IT SERVICES UK LTD,3174914,25.78 ,Hunt Group - Deletion 1-10 Instances
Ministry of Justice,HMCTS,31/Mar/2015 ,265000-IT & Telecommunications,EZ999-Wales Region,ATOS IT SERVICES UK LTD,3174914,25.78 ,Pick Up Group - Deletion
Ministry of Justice,HMCTS,31/Mar/2015 ,265000-IT & Telecommunications,EZ999-Wales Region,ATOS IT SERVICES UK LTD,3174914,25.78 ,Pick Up Group - Deletion
Ministry of Justice,HMCTS,31/Mar/2015 ,265000-IT & Telecommunications,EZ999-Wales Region,ATOS IT SERVICES UK LTD,3174914,154.68 ,New IPT Handset 1 - 11 devices
Ministry of Justice,HMCTS,31/Mar/2015 ,265000-IT & Telecommunications,EZ999-Wales Region,ATOS IT SERVICES UK LTD,3174914,309.00 ,Polycom Soundstation 2 Conference Phone 1-11 devices
Ministry of Justice,HMCTS,31/Mar/2015 ,265000-IT & Telecommunications,EZ999-Wales Region,ATOS IT SERVICES UK LTD,3174914,25.78 ,Hunt Group - New Default Creation
Ministry of Justice,HMCTS,31/Mar/2015 ,265000-IT & Telecommunications,EZ999-Wales Region,ATOS IT SERVICES UK LTD,3174914,25.78 ,Pick Up Group - New
Ministry of Justice,HMCTS,31/Mar/2015 ,265000-IT & Telecommunications,EZ999-Wales Region,ATOS IT SERVICES UK LTD,3174914,25.78 ,Hunt Group - New Default Creation
Ministry of Justice,HMCTS,31/Mar/2015 ,265000-IT & Telecommunications,EZ999-Wales Region,ATOS IT SERVICES UK LTD,3174914,25.78 ,Hunt Group - New Default Creation
Ministry of Justice,HMCTS,31/Mar/2015 ,265000-IT & Telecommunications,EZ999-Wales Region,ATOS IT SERVICES UK LTD,3174914,25.78 ,Hunt Group - New Default Creation
Ministry of Justice,HMCTS,31/Mar/2015 ,265000-IT & Telecommunications,EZ999-Wales Region,ATOS IT SERVICES UK LTD,3174914,25.78 ,Hunt Group - New Default Creation
Ministry of Justice,HMCTS,31/Mar/2015 ,265000-IT & Telecommunications,EZ999-Wales Region,ATOS IT SERVICES UK LTD,3174914,25.78 ,Hunt Group - New Default Creation
Ministry of Justice,HMCTS,03/Mar/2015 ,265000-IT & Telecommunications,EZ999-Wales Region,ATOS IT SERVICES UK LTD,3141619,11.17 ,MS Access
Ministry of Justice,HMCTS,31/Mar/2015 ,265000-IT & Telecommunications,EZ999-Wales Region,ATOS IT SERVICES UK LTD,3174914,46.22 ,Request Olympus dictation and transcription software for a user.  Does not include Olympus Digital Professional Dictation Solution - DS-7000
Ministry of Justice,HMCTS,31/Mar/2015 ,265000-IT & Telecommunications,EZ999-Wales Region,ATOS IT SERVICES UK LTD,3174914,"9,623.70 ",AVM Ad-Hoc Labour and Materials
Ministry of Justice,HMCTS,31/Mar/2015 ,265000-IT & Telecommunications,EZ999-Wales Region,ATOS IT SERVICES UK LTD,3174914,58.47 ,Keep your mobile phone number when upgrading to BlackBerry
Ministry of Justice,HMCTS,03/Mar/2015 ,265000-IT & Telecommunications,FZ999-Midlands Region,ATOS IT SERVICES UK LTD,3141619,43.22 ,Andrea NC181VM USB headset
Ministry of Justice,HMCTS,03/Mar/2015 ,265000-IT & Telecommunications,FZ999-Midlands Region,ATOS IT SERVICES UK LTD,3141619,11.16 ,HP Standard USB Keyboard
Ministry of Justice,HMCTS,03/Mar/2015 ,265000-IT & Telecommunications,FZ999-Midlands Region,ATOS IT SERVICES UK LTD,3141619,73.32 ,Low-noise / soft touch keyboard
Ministry of Justice,HMCTS,31/Mar/2015 ,265000-IT & Telecommunications,FZ999-Midlands Region,ATOS IT SERVICES UK LTD,3174914,168.10 ,"19"" LCD Display"
Ministry of Justice,HMCTS,31/Mar/2015 ,265000-IT & Telecommunications,FZ999-Midlands Region,ATOS IT SERVICES UK LTD,3174914,10.92 ,Compact Keyboard
Ministry of Justice,HMCTS,31/Mar/2015 ,265000-IT & Telecommunications,FZ999-Midlands Region,ATOS IT SERVICES UK LTD,3174914,116.00 ,Relocation of a single desktop client device to a different building.
Ministry of Justice,HMCTS,31/Mar/2015 ,265000-IT & Telecommunications,FZ999-Midlands Region,ATOS IT SERVICES UK LTD,3174914,120.68 ,Desktop PC - HP DC8300
Ministry of Justice,HMCTS,31/Mar/2015 ,265000-IT & Telecommunications,FZ999-Midlands Region,ATOS IT SERVICES UK LTD,3174914,288.00 ,Relocation of 4 desktop client devices to a different building.
Ministry of Justice,HMCTS,31/Mar/2015 ,265000-IT & Telecommunications,FZ999-Midlands Region,ATOS IT SERVICES UK LTD,3174914,144.00 ,Relocation of 2 desktop client devices to a different building.
Ministry of Justice,HMCTS,31/Mar/2015 ,265000-IT & Telecommunications,FZ999-Midlands Region,ATOS IT SERVICES UK LTD,3174914,54.99 ,Low-noise / soft touch keyboard
Ministry of Justice,HMCTS,31/Mar/2015 ,265000-IT & Telecommunications,FZ999-Midlands Region,ATOS IT SERVICES UK LTD,3174914,10.00 ,DVI to VGA Cable Adapter
Ministry of Justice,HMCTS,31/Mar/2015 ,265000-IT & Telecommunications,FZ999-Midlands Region,ATOS IT SERVICES UK LTD,3174914,416.16 ,1 to 5 Devices Local Relocation (same Authority Premises) -  Printer or MFD
Ministry of Justice,HMCTS,31/Mar/2015 ,265000-IT & Telecommunications,FZ999-Midlands Region,ATOS IT SERVICES UK LTD,3174914,116.00 ,Relocation of a single desktop client device to a different building.
Ministry of Justice,HMCTS,31/Mar/2015 ,265000-IT & Telecommunications,FZ999-Midlands Region,ATOS IT SERVICES UK LTD,3174914,120.68 ,Desktop PC - HP DC8300
Ministry of Justice,HMCTS,31/Mar/2015 ,265000-IT & Telecommunications,FZ999-Midlands Region,ATOS IT SERVICES UK LTD,3174914,12.76 ,HP USB/PS2 Optical Scroll Mouse
Ministry of Justice,HMCTS,31/Mar/2015 ,265000-IT & Telecommunications,FZ999-Midlands Region,ATOS IT SERVICES UK LTD,3174914,11.16 ,HP Standard USB Keyboard
Ministry of Justice,HMCTS,31/Mar/2015 ,265000-IT & Telecommunications,FZ999-Midlands Region,ATOS IT SERVICES UK LTD,3174914,116.00 ,Relocation of a single desktop client device to a different building.
Ministry of Justice,HMCTS,31/Mar/2015 ,265000-IT & Telecommunications,FZ999-Midlands Region,ATOS IT SERVICES UK LTD,3174914,488.99 ,1 to 5 Devices National Relocation -Printer or MFD (Multi Function Device)
Ministry of Justice,HMCTS,31/Mar/2015 ,265000-IT & Telecommunications,FZ999-Midlands Region,ATOS IT SERVICES UK LTD,3174914,92.44 ,Humanscale M2 Monitor Arm
Ministry of Justice,HMCTS,31/Mar/2015 ,265000-IT & Telecommunications,FZ999-Midlands Region,ATOS IT SERVICES UK LTD,3174914,113.16 ,"HP 230W Docking Station for 8440p, 8540p, 8460p, 8560p, 8470p and 8570p laptops"
Ministry of Justice,HMCTS,03/Mar/2015 ,265000-IT & Telecommunications,FZ999-Midlands Region,ATOS IT SERVICES UK LTD,3141619,51.56 ,Hunt Group - Extension
Ministry of Justice,HMCTS,03/Mar/2015 ,265000-IT & Telecommunications,FZ999-Midlands Region,ATOS IT SERVICES UK LTD,3141619,185.40 ,Recovery of a redundant IPT handset from site 1-11 devices
Ministry of Justice,HMCTS,03/Mar/2015 ,265000-IT & Telecommunications,FZ999-Midlands Region,ATOS IT SERVICES UK LTD,3141619,25.78 ,Hunt Group - New Default Creation
Ministry of Justice,HMCTS,03/Mar/2015 ,265000-IT & Telecommunications,FZ999-Midlands Region,ATOS IT SERVICES UK LTD,3141619,25.78 ,Pick Up Group - New
Ministry of Justice,HMCTS,03/Mar/2015 ,265000-IT & Telecommunications,FZ999-Midlands Region,ATOS IT SERVICES UK LTD,3141619,927.00 ,Recovery of a redundant IPT handset from site 1-11 devices
Ministry of Justice,HMCTS,03/Mar/2015 ,265000-IT & Telecommunications,FZ999-Midlands Region,ATOS IT SERVICES UK LTD,3141619,25.78 ,Voicemail - Removal Of Voicemail 1-10 Accounts
Ministry of Justice,HMCTS,03/Mar/2015 ,265000-IT & Telecommunications,FZ999-Midlands Region,ATOS IT SERVICES UK LTD,3141619,51.56 ,New IPT Handset 1 - 11 devices
Ministry of Justice,HMCTS,03/Mar/2015 ,265000-IT & Telecommunications,FZ999-Midlands Region,ATOS IT SERVICES UK LTD,3141619,56.55 ,Auto Attendant - Message Announcement - Convert an existing Static message annoucement `to a Flexible message annoucement
Ministry of Justice,HMCTS,03/Mar/2015 ,265000-IT & Telecommunications,FZ999-Midlands Region,ATOS IT SERVICES UK LTD,3141619,25.78 ,Hunt Group - New Default Creation
Ministry of Justice,HMCTS,03/Mar/2015 ,265000-IT & Telecommunications,FZ999-Midlands Region,ATOS IT SERVICES UK LTD,3141619,83.46 ,Plantronics HW251 N Mono Headset 1-11 devices
Ministry of Justice,HMCTS,03/Mar/2015 ,265000-IT & Telecommunications,FZ999-Midlands Region,ATOS IT SERVICES UK LTD,3141619,25.78 ,Fixed IPT Phone Change 1-10 Devices
Ministry of Justice,HMCTS,03/Mar/2015 ,265000-IT & Telecommunications,FZ999-Midlands Region,ATOS IT SERVICES UK LTD,3141619,25.78 ,Pick Up Group - New
Ministry of Justice,HMCTS,03/Mar/2015 ,265000-IT & Telecommunications,FZ999-Midlands Region,ATOS IT SERVICES UK LTD,3141619,25.78 ,External Calls 1-10 Devices
Ministry of Justice,HMCTS,03/Mar/2015 ,265000-IT & Telecommunications,FZ999-Midlands Region,ATOS IT SERVICES UK LTD,3141619,"1,318.40 ",New ISDN2e (Low Start Option - 2 Channels)
Ministry of Justice,HMCTS,03/Mar/2015 ,265000-IT & Telecommunications,FZ999-Midlands Region,ATOS IT SERVICES UK LTD,3141619,"1,318.40 ",New ISDN2e (Low Start Option - 2 Channels)
Ministry of Justice,HMCTS,03/Mar/2015 ,265000-IT & Telecommunications,FZ999-Midlands Region,ATOS IT SERVICES UK LTD,3141619,56.55 ,Auto Attendant - Message Prompt Menu - Amend Static Message Prompt Menu
Ministry of Justice,HMCTS,31/Mar/2015 ,265000-IT & Telecommunications,FZ999-Midlands Region,ATOS IT SERVICES UK LTD,3174914,25.78 ,Hunt Group - Extension
Ministry of Justice,HMCTS,31/Mar/2015 ,265000-IT & Telecommunications,FZ999-Midlands Region,ATOS IT SERVICES UK LTD,3174914,25.78 ,Pick Up Group - Amend
Ministry of Justice,HMCTS,31/Mar/2015 ,265000-IT & Telecommunications,FZ999-Midlands Region,ATOS IT SERVICES UK LTD,3174914,56.55 ,Auto Attendant - Message Prompt Option - Add new Option to an existing Message Prompt Menu
Ministry of Justice,HMCTS,31/Mar/2015 ,265000-IT & Telecommunications,FZ999-Midlands Region,ATOS IT SERVICES UK LTD,3174914,25.78 ,Fixed IPT Phone Change 1-10 Devices
Ministry of Justice,HMCTS,31/Mar/2015 ,265000-IT & Telecommunications,FZ999-Midlands Region,ATOS IT SERVICES UK LTD,3174914,25.78 ,Pick Up Group - Deletion
Ministry of Justice,HMCTS,31/Mar/2015 ,265000-IT & Telecommunications,FZ999-Midlands Region,ATOS IT SERVICES UK LTD,3174914,25.78 ,Pick Up Group - Amend
Ministry of Justice,HMCTS,31/Mar/2015 ,265000-IT & Telecommunications,FZ999-Midlands Region,ATOS IT SERVICES UK LTD,3174914,370.80 ,Recovery of a redundant IPT handset from site 1-11 devices
Ministry of Justice,HMCTS,31/Mar/2015 ,265000-IT & Telecommunications,FZ999-Midlands Region,ATOS IT SERVICES UK LTD,3174914,25.78 ,Pick Up Group - Amend
Ministry of Justice,HMCTS,31/Mar/2015 ,265000-IT & Telecommunications,FZ999-Midlands Region,ATOS IT SERVICES UK LTD,3174914,25.78 ,Deletion of a Mobility user account 1-10 Accounts
Ministry of Justice,HMCTS,31/Mar/2015 ,265000-IT & Telecommunications,FZ999-Midlands Region,ATOS IT SERVICES UK LTD,3174914,25.78 ,Pick Up Group - Amend
Ministry of Justice,HMCTS,31/Mar/2015 ,265000-IT & Telecommunications,FZ999-Midlands Region,ATOS IT SERVICES UK LTD,3174914,51.56 ,New IPT Handset 1 - 11 devices
Ministry of Justice,HMCTS,31/Mar/2015 ,265000-IT & Telecommunications,FZ999-Midlands Region,ATOS IT SERVICES UK LTD,3174914,25.78 ,Analogue Extension Decommission 1 - 10
Ministry of Justice,HMCTS,31/Mar/2015 ,265000-IT & Telecommunications,FZ999-Midlands Region,ATOS IT SERVICES UK LTD,3174914,25.78 ,New IPT Handset 1 - 11 devices
Ministry of Justice,HMCTS,31/Mar/2015 ,265000-IT & Telecommunications,FZ999-Midlands Region,ATOS IT SERVICES UK LTD,3174914,58.10 ,Converse 2300 1-11 devices
Ministry of Justice,HMCTS,31/Mar/2015 ,265000-IT & Telecommunications,FZ999-Midlands Region,ATOS IT SERVICES UK LTD,3174914,25.78 ,Fixed IPT Phone Transfer to a new user 1-10 Devices
Ministry of Justice,HMCTS,31/Mar/2015 ,265000-IT & Telecommunications,FZ999-Midlands Region,ATOS IT SERVICES UK LTD,3174914,25.78 ,Remote Activation Only of New Analogue Extension Port
Ministry of Justice,HMCTS,31/Mar/2015 ,265000-IT & Telecommunications,FZ999-Midlands Region,ATOS IT SERVICES UK LTD,3174914,360.00 ,Auto Attendant - Amend existing Auto Attendant Call Flow
Ministry of Justice,HMCTS,31/Mar/2015 ,265000-IT & Telecommunications,FZ999-Midlands Region,ATOS IT SERVICES UK LTD,3174914,29.67 ,Converse 2100 1 -11 devices
Ministry of Justice,HMCTS,31/Mar/2015 ,265000-IT & Telecommunications,FZ999-Midlands Region,ATOS IT SERVICES UK LTD,3174914,118.68 ,Converse 2100 1 -11 devices
Ministry of Justice,HMCTS,31/Mar/2015 ,265000-IT & Telecommunications,FZ999-Midlands Region,ATOS IT SERVICES UK LTD,3174914,25.78 ,Voicemail - Provision of announcement only  on a Hunt Group 1-10 Instances
Ministry of Justice,HMCTS,31/Mar/2015 ,265000-IT & Telecommunications,FZ999-Midlands Region,ATOS IT SERVICES UK LTD,3174914,25.78 ,Pick Up Group - Deletion
Ministry of Justice,HMCTS,31/Mar/2015 ,265000-IT & Telecommunications,FZ999-Midlands Region,ATOS IT SERVICES UK LTD,3174914,77.34 ,Pick Up Group - Amend
Ministry of Justice,HMCTS,31/Mar/2015 ,265000-IT & Telecommunications,FZ999-Midlands Region,ATOS IT SERVICES UK LTD,3174914,77.34 ,Hunt Group - Extension
Ministry of Justice,HMCTS,31/Mar/2015 ,265000-IT & Telecommunications,FZ999-Midlands Region,ATOS IT SERVICES UK LTD,3174914,180.46 ,Fixed IPT Phone Change 1-10 Devices
Ministry of Justice,HMCTS,31/Mar/2015 ,265000-IT & Telecommunications,FZ999-Midlands Region,ATOS IT SERVICES UK LTD,3174914,25.78 ,Mobility Handset Conversion to Fixed Handset & Import existing Mobility profile 1- 11 devices
Ministry of Justice,HMCTS,31/Mar/2015 ,265000-IT & Telecommunications,FZ999-Midlands Region,ATOS IT SERVICES UK LTD,3174914,25.78 ,Hunt Group - Extension
Ministry of Justice,HMCTS,31/Mar/2015 ,265000-IT & Telecommunications,FZ999-Midlands Region,ATOS IT SERVICES UK LTD,3174914,25.78 ,Fixed Handset Conversion to Mobility Handset & Mobility Account 1 - 11 devices
Ministry of Justice,HMCTS,31/Mar/2015 ,265000-IT & Telecommunications,FZ999-Midlands Region,ATOS IT SERVICES UK LTD,3174914,61.80 ,Recovery of a redundant IPT handset from site 1-11 devices
Ministry of Justice,HMCTS,30/Mar/2015 ,265000-IT & Telecommunications,FZ999-Midlands Region,ATOS IT SERVICES UK LTD,3173385,"11,926.00 ",Nottingham Magistrates' Court - ATOS IT SERVICES UK LTD - PD A-R-04147-06-01 - ATOS Labour charge
Ministry of Justice,HMCTS,30/Mar/2015 ,265000-IT & Telecommunications,FZ999-Midlands Region,ATOS IT SERVICES UK LTD,3173385,"16,803.00 ",Nottingham Magistrates' Court - ATOS IT SERVICES UK LTD - PD A-R-04147-06-01 - Third Party Services
Ministry of Justice,HMCTS,03/Mar/2015 ,265000-IT & Telecommunications,FZ999-Midlands Region,ATOS IT SERVICES UK LTD,3141619,95.00 ,Mavis Beacon Teaches Typing Deluxe
Ministry of Justice,HMCTS,03/Mar/2015 ,265000-IT & Telecommunications,FZ999-Midlands Region,ATOS IT SERVICES UK LTD,3141619,"1,398.30 ",Standard Power Down Request for DISC connected site with on site engineer assistance required
Ministry of Justice,HMCTS,03/Mar/2015 ,265000-IT & Telecommunications,FZ999-Midlands Region,ATOS IT SERVICES UK LTD,3141619,"2,128.66 ",Urgent Power Down Request for DISC connected site with on site engineer assistance required
Ministry of Justice,HMCTS,31/Mar/2015 ,265000-IT & Telecommunications,FZ999-Midlands Region,ATOS IT SERVICES UK LTD,3174914,11.17 ,MS Access
Ministry of Justice,HMCTS,31/Mar/2015 ,265000-IT & Telecommunications,FZ999-Midlands Region,ATOS IT SERVICES UK LTD,3174914,"3,121.20 ",AVM Ad-Hoc Labour and Materials
Ministry of Justice,HMCTS,31/Mar/2015 ,265000-IT & Telecommunications,FZ999-Midlands Region,ATOS IT SERVICES UK LTD,3174914,"2,128.66 ",Urgent Power Down Request for DISC connected site with on site engineer assistance required
Ministry of Justice,HMCTS,31/Mar/2015 ,265000-IT & Telecommunications,FZ999-Midlands Region,ATOS IT SERVICES UK LTD,3174914,265.63 ,Dragon Naturally Speaking Professional v10
Ministry of Justice,HMCTS,31/Mar/2015 ,265000-IT & Telecommunications,FZ999-Midlands Region,ATOS IT SERVICES UK LTD,3174914,11.62 ,MS Visio Std
Ministry of Justice,HMCTS,31/Mar/2015 ,265000-IT & Telecommunications,FZ999-Midlands Region,ATOS IT SERVICES UK LTD,3174914,323.54 ,Request Olympus dictation and transcription software for a user.  Does not include Olympus Digital Professional Dictation Solution - DS-7000
Ministry of Justice,HMCTS,31/Mar/2015 ,265000-IT & Telecommunications,FZ999-Midlands Region,ATOS IT SERVICES UK LTD,3174914,92.44 ,Request Olympus dictation and transcription software for a user.  Does not include Olympus Digital Professional Dictation Solution - DS-7000
Ministry of Justice,HMCTS,31/Mar/2015 ,265000-IT & Telecommunications,FZ999-Midlands Region,ATOS IT SERVICES UK LTD,3174914,"2,128.66 ",Urgent Power Down Request for DISC connected site with on site engineer assistance required
Ministry of Justice,HMCTS,03/Mar/2015 ,265000-IT & Telecommunications,GZ999-North West Region,ATOS IT SERVICES UK LTD,3141619,977.98 ,1 to 5 Devices National Relocation -Printer or MFD (Multi Function Device)
Ministry of Justice,HMCTS,03/Mar/2015 ,265000-IT & Telecommunications,GZ999-North West Region,ATOS IT SERVICES UK LTD,3141619,60.34 ,Desktop PC - HP DC8300
Ministry of Justice,HMCTS,03/Mar/2015 ,265000-IT & Telecommunications,GZ999-North West Region,ATOS IT SERVICES UK LTD,3141619,83.96 ,Evoluent Vertical Mouse
Ministry of Justice,HMCTS,03/Mar/2015 ,265000-IT & Telecommunications,GZ999-North West Region,ATOS IT SERVICES UK LTD,3141619,72.00 ,Relocation of 2 desktop client devices within the same building.
Ministry of Justice,HMCTS,03/Mar/2015 ,265000-IT & Telecommunications,GZ999-North West Region,ATOS IT SERVICES UK LTD,3141619,11.10 ,Ultra Flat Keyboard
Ministry of Justice,HMCTS,31/Mar/2015 ,265000-IT & Telecommunications,GZ999-North West Region,ATOS IT SERVICES UK LTD,3174914,488.99 ,1 to 5 Devices National Relocation -Printer or MFD (Multi Function Device)
Ministry of Justice,HMCTS,31/Mar/2015 ,265000-IT & Telecommunications,GZ999-North West Region,ATOS IT SERVICES UK LTD,3174914,416.16 ,1 to 5 Devices Local Relocation (same Authority Premises) -  Printer or MFD
Ministry of Justice,HMCTS,31/Mar/2015 ,265000-IT & Telecommunications,GZ999-North West Region,ATOS IT SERVICES UK LTD,3174914,416.16 ,1 to 5 Devices Local Relocation (same Authority Premises) -  Printer or MFD
Ministry of Justice,HMCTS,31/Mar/2015 ,265000-IT & Telecommunications,GZ999-North West Region,ATOS IT SERVICES UK LTD,3174914,60.34 ,Desktop PC - HP DC8300
Ministry of Justice,HMCTS,31/Mar/2015 ,265000-IT & Telecommunications,GZ999-North West Region,ATOS IT SERVICES UK LTD,3174914,28.26 ,Kensington Orbit Optical Trackball
Ministry of Justice,HMCTS,31/Mar/2015 ,265000-IT & Telecommunications,GZ999-North West Region,ATOS IT SERVICES UK LTD,3174914,40.38 ,Logitech Trackman Marble 4 Button USB Optical Trackball
Ministry of Justice,HMCTS,31/Mar/2015 ,265000-IT & Telecommunications,GZ999-North West Region,ATOS IT SERVICES UK LTD,3174914,66.66 ,Space Saving Mini Keyboard
Ministry of Justice,HMCTS,31/Mar/2015 ,265000-IT & Telecommunications,GZ999-North West Region,ATOS IT SERVICES UK LTD,3174914,416.16 ,1 to 5 Devices Local Relocation (same Authority Premises) -  Printer or MFD
Ministry of Justice,HMCTS,31/Mar/2015 ,265000-IT & Telecommunications,GZ999-North West Region,ATOS IT SERVICES UK LTD,3174914,6.38 ,HP USB/PS2 Optical Scroll Mouse
Ministry of Justice,HMCTS,03/Mar/2015 ,265000-IT & Telecommunications,GZ999-North West Region,ATOS IT SERVICES UK LTD,3141619,164.00 ,"Standard Form Laptop - HP EliteBook 8470p (14"" screen)"
Ministry of Justice,HMCTS,03/Mar/2015 ,265000-IT & Telecommunications,GZ999-North West Region,ATOS IT SERVICES UK LTD,3141619,46.00 ,Provision and support of Secure Remote Access (RWSII) Capability
Ministry of Justice,HMCTS,03/Mar/2015 ,265000-IT & Telecommunications,GZ999-North West Region,ATOS IT SERVICES UK LTD,3141619,164.00 ,"Large Form Laptop - HP EliteBook 8570p (15.6"" screen)"
Ministry of Justice,HMCTS,03/Mar/2015 ,265000-IT & Telecommunications,GZ999-North West Region,ATOS IT SERVICES UK LTD,3141619,113.16 ,"HP 230W Docking Station for 8440p, 8540p, 8460p, 8560p, 8470p and 8570p laptops"
Ministry of Justice,HMCTS,31/Mar/2015 ,265000-IT & Telecommunications,GZ999-North West Region,ATOS IT SERVICES UK LTD,3174914,"1,697.40 ","HP 230W Docking Station for 8440p, 8540p, 8460p, 8560p, 8470p and 8570p laptops"
Ministry of Justice,HMCTS,31/Mar/2015 ,265000-IT & Telecommunications,GZ999-North West Region,ATOS IT SERVICES UK LTD,3174914,153.80 ,"Docking Station for 2540p,2560p and 2570p laptop"
Ministry of Justice,HMCTS,31/Mar/2015 ,265000-IT & Telecommunications,GZ999-North West Region,ATOS IT SERVICES UK LTD,3174914,123.76 ,Battery for Elitebook 8460p & 8560p
Ministry of Justice,HMCTS,31/Mar/2015 ,265000-IT & Telecommunications,GZ999-North West Region,ATOS IT SERVICES UK LTD,3174914,339.48 ,"HP 230W Docking Station for 8440p, 8540p, 8460p, 8560p, 8470p and 8570p laptops"
Ministry of Justice,HMCTS,31/Mar/2015 ,265000-IT & Telecommunications,GZ999-North West Region,ATOS IT SERVICES UK LTD,3174914,153.80 ,"Docking Station for 2540p,2560p and 2570p laptop"
Ministry of Justice,HMCTS,03/Mar/2015 ,265000-IT & Telecommunications,GZ999-North West Region,ATOS IT SERVICES UK LTD,3141619,56.55 ,Auto Attendant - Message Prompt Menu - Amend Static Message Prompt Menu
Ministry of Justice,HMCTS,03/Mar/2015 ,265000-IT & Telecommunications,GZ999-North West Region,ATOS IT SERVICES UK LTD,3141619,25.78 ,"Silent Monitoring Provide, Update or Remove 21 - 50 Accounts"
Ministry of Justice,HMCTS,03/Mar/2015 ,265000-IT & Telecommunications,GZ999-North West Region,ATOS IT SERVICES UK LTD,3141619,432.60 ,Recovery of a redundant IPT handset from site 1-11 devices
Ministry of Justice,HMCTS,03/Mar/2015 ,265000-IT & Telecommunications,GZ999-North West Region,ATOS IT SERVICES UK LTD,3141619,25.78 ,Voicemail - New Voicemail Account 1-10 Accounts
Ministry of Justice,HMCTS,03/Mar/2015 ,265000-IT & Telecommunications,GZ999-North West Region,ATOS IT SERVICES UK LTD,3141619,25.78 ,Voicemail - Removal Of Voicemail 1-10 Accounts
Ministry of Justice,HMCTS,03/Mar/2015 ,265000-IT & Telecommunications,GZ999-North West Region,ATOS IT SERVICES UK LTD,3141619,25.78 ,Pick Up Group - Amend
Ministry of Justice,HMCTS,03/Mar/2015 ,265000-IT & Telecommunications,GZ999-North West Region,ATOS IT SERVICES UK LTD,3141619,83.46 ,Plantronics HW251 N Mono Headset 1-11 devices
Ministry of Justice,HMCTS,03/Mar/2015 ,265000-IT & Telecommunications,GZ999-North West Region,ATOS IT SERVICES UK LTD,3141619,8.80 ,Plantronics U10P-S19 Bottom Cable  1-11 devices
Ministry of Justice,HMCTS,03/Mar/2015 ,265000-IT & Telecommunications,GZ999-North West Region,ATOS IT SERVICES UK LTD,3141619,92.70 ,Plantronics Vista Plus DM15 Acoustic Shock Adaptor 1-11 devices
Ministry of Justice,HMCTS,03/Mar/2015 ,265000-IT & Telecommunications,GZ999-North West Region,ATOS IT SERVICES UK LTD,3141619,25.78 ,Mobility Handset Conversion to Fixed Handset with new user details 1- 11 devices
Ministry of Justice,HMCTS,03/Mar/2015 ,265000-IT & Telecommunications,GZ999-North West Region,ATOS IT SERVICES UK LTD,3141619,25.78 ,Mobility Handset Conversion to Fixed Handset with new user details 1- 11 devices
Ministry of Justice,HMCTS,03/Mar/2015 ,265000-IT & Telecommunications,GZ999-North West Region,ATOS IT SERVICES UK LTD,3141619,21.63 ,Plantronics Supervisor Adapter (Y Cord)Changes 1 - 10
Ministry of Justice,HMCTS,03/Mar/2015 ,265000-IT & Telecommunications,GZ999-North West Region,ATOS IT SERVICES UK LTD,3141619,175.10 ,Plantronics CS540 Wireless Headset 1-11 devices
Ministry of Justice,HMCTS,03/Mar/2015 ,265000-IT & Telecommunications,GZ999-North West Region,ATOS IT SERVICES UK LTD,3141619,51.56 ,Pick Up Group - Amend
Ministry of Justice,HMCTS,03/Mar/2015 ,265000-IT & Telecommunications,GZ999-North West Region,ATOS IT SERVICES UK LTD,3141619,56.55 ,Auto Attendant - Message Prompt Menu - Amend Static Message Prompt Menu
Ministry of Justice,HMCTS,03/Mar/2015 ,265000-IT & Telecommunications,GZ999-North West Region,ATOS IT SERVICES UK LTD,3141619,56.55 ,Auto Attendant - Message Prompt Menu - Amend Static Message Prompt Menu
Ministry of Justice,HMCTS,03/Mar/2015 ,265000-IT & Telecommunications,GZ999-North West Region,ATOS IT SERVICES UK LTD,3141619,134.62 ,Plantronics HW251 A Mono Headset 1-11 devices
Ministry of Justice,HMCTS,03/Mar/2015 ,265000-IT & Telecommunications,GZ999-North West Region,ATOS IT SERVICES UK LTD,3141619,56.55 ,Auto Attendant - Message Prompt Option - Amend Option destination
Ministry of Justice,HMCTS,03/Mar/2015 ,265000-IT & Telecommunications,GZ999-North West Region,ATOS IT SERVICES UK LTD,3141619,77.34 ,Fixed IPT Phone Transfer to a new user 1-10 Devices
Ministry of Justice,HMCTS,03/Mar/2015 ,265000-IT & Telecommunications,GZ999-North West Region,ATOS IT SERVICES UK LTD,3141619,25.78 ,Fixed Handset Conversion to Mobility Handset & Deletion of previous fixed user details 1 - 11 devices
Ministry of Justice,HMCTS,03/Mar/2015 ,265000-IT & Telecommunications,GZ999-North West Region,ATOS IT SERVICES UK LTD,3141619,25.78 ,Analogue Extension Decommission 1 - 10
Ministry of Justice,HMCTS,03/Mar/2015 ,265000-IT & Telecommunications,GZ999-North West Region,ATOS IT SERVICES UK LTD,3141619,"1,699.00 ",Auto Attendant - Create NEW Auto Attendant Call Flow
Ministry of Justice,HMCTS,03/Mar/2015 ,265000-IT & Telecommunications,GZ999-North West Region,ATOS IT SERVICES UK LTD,3141619,25.78 ,Remote Activation Only of New Analogue Extension Port
Ministry of Justice,HMCTS,31/Mar/2015 ,265000-IT & Telecommunications,GZ999-North West Region,ATOS IT SERVICES UK LTD,3174914,67.31 ,Plantronics HW251 A Mono Headset 1-11 devices
Ministry of Justice,HMCTS,31/Mar/2015 ,265000-IT & Telecommunications,GZ999-North West Region,ATOS IT SERVICES UK LTD,3174914,25.78 ,Analogue Extension Decommission 1 - 10
Ministry of Justice,HMCTS,31/Mar/2015 ,265000-IT & Telecommunications,GZ999-North West Region,ATOS IT SERVICES UK LTD,3174914,25.78 ,Hunt Group - New Default Creation
Ministry of Justice,HMCTS,31/Mar/2015 ,265000-IT & Telecommunications,GZ999-North West Region,ATOS IT SERVICES UK LTD,3174914,25.78 ,New IPT Mobility account with voicemail account 1-10 Accounts
Ministry of Justice,HMCTS,31/Mar/2015 ,265000-IT & Telecommunications,GZ999-North West Region,ATOS IT SERVICES UK LTD,3174914,25.78 ,Pick Up Group - New
Ministry of Justice,HMCTS,31/Mar/2015 ,265000-IT & Telecommunications,GZ999-North West Region,ATOS IT SERVICES UK LTD,3174914,51.56 ,Voicemail - New Voicemail Account 1-10 Accounts
Ministry of Justice,HMCTS,31/Mar/2015 ,265000-IT & Telecommunications,GZ999-North West Region,ATOS IT SERVICES UK LTD,3174914,25.78 ,Fixed IPT Phone Transfer to a new user 1-10 Devices
Ministry of Justice,HMCTS,31/Mar/2015 ,265000-IT & Telecommunications,GZ999-North West Region,ATOS IT SERVICES UK LTD,3174914,25.78 ,Fixed IPT Phone Change 1-10 Devices
Ministry of Justice,HMCTS,31/Mar/2015 ,265000-IT & Telecommunications,GZ999-North West Region,ATOS IT SERVICES UK LTD,3174914,175.10 ,Plantronics CS540 Wireless Headset 1-11 devices
Ministry of Justice,HMCTS,31/Mar/2015 ,265000-IT & Telecommunications,GZ999-North West Region,ATOS IT SERVICES UK LTD,3174914,25.78 ,Pick Up Group - Amend
Ministry of Justice,HMCTS,31/Mar/2015 ,265000-IT & Telecommunications,GZ999-North West Region,ATOS IT SERVICES UK LTD,3174914,29.67 ,Converse 2100 1 -11 devices
Ministry of Justice,HMCTS,31/Mar/2015 ,265000-IT & Telecommunications,GZ999-North West Region,ATOS IT SERVICES UK LTD,3174914,25.78 ,Pick Up Group - Amend
Ministry of Justice,HMCTS,31/Mar/2015 ,265000-IT & Telecommunications,GZ999-North West Region,ATOS IT SERVICES UK LTD,3174914,25.78 ,Hunt Group - Extension
Ministry of Justice,HMCTS,31/Mar/2015 ,265000-IT & Telecommunications,GZ999-North West Region,ATOS IT SERVICES UK LTD,3174914,67.31 ,Plantronics HW251 A Mono Headset 1-11 devices
Ministry of Justice,HMCTS,31/Mar/2015 ,265000-IT & Telecommunications,GZ999-North West Region,ATOS IT SERVICES UK LTD,3174914,8.80 ,Plantronics U10P-S19 Bottom Cable 12-30 devices
Ministry of Justice,HMCTS,31/Mar/2015 ,265000-IT & Telecommunications,GZ999-North West Region,ATOS IT SERVICES UK LTD,3174914,25.78 ,Fixed IPT Phone Change 1-10 Devices
Ministry of Justice,HMCTS,31/Mar/2015 ,265000-IT & Telecommunications,GZ999-North West Region,ATOS IT SERVICES UK LTD,3174914,25.78 ,Analogue Extension Decommission 1 - 10
Ministry of Justice,HMCTS,31/Mar/2015 ,265000-IT & Telecommunications,GZ999-North West Region,ATOS IT SERVICES UK LTD,3174914,25.78 ,Analogue Extension Decommission 1 - 10
Ministry of Justice,HMCTS,31/Mar/2015 ,265000-IT & Telecommunications,GZ999-North West Region,ATOS IT SERVICES UK LTD,3174914,51.56 ,Hunt Group - Extension
Ministry of Justice,HMCTS,03/Mar/2015 ,265000-IT & Telecommunications,GZ999-North West Region,ATOS IT SERVICES UK LTD,3141619,11.62 ,Templates
Ministry of Justice,HMCTS,03/Mar/2015 ,265000-IT & Telecommunications,GZ999-North West Region,ATOS IT SERVICES UK LTD,3141619,133.72 ,Return BlackBerry device (no longer required)
Ministry of Justice,HMCTS,03/Mar/2015 ,265000-IT & Telecommunications,GZ999-North West Region,ATOS IT SERVICES UK LTD,3141619,123.76 ,Battery for Elitebook 8460p & 8560p
Ministry of Justice,HMCTS,03/Mar/2015 ,265000-IT & Telecommunications,GZ999-North West Region,ATOS IT SERVICES UK LTD,3141619,82.78 ,BlackBerry (Vodafone)
Ministry of Justice,HMCTS,03/Mar/2015 ,265000-IT & Telecommunications,GZ999-North West Region,ATOS IT SERVICES UK LTD,3141619,82.78 ,BlackBerry (Vodafone)
Ministry of Justice,HMCTS,31/Mar/2015 ,265000-IT & Telecommunications,GZ999-North West Region,ATOS IT SERVICES UK LTD,3174914,58.47 ,Keep your mobile phone number when upgrading to BlackBerry
Ministry of Justice,HMCTS,31/Mar/2015 ,265000-IT & Telecommunications,GZ999-North West Region,ATOS IT SERVICES UK LTD,3174914,113.16 ,"HP 230W Docking Station for 8440p, 8540p, 8460p, 8560p, 8470p and 8570p laptops"
Ministry of Justice,HMCTS,18/Mar/2015 ,265000-IT & Telecommunications,GZ999-North West Region,ATOS IT SERVICES UK LTD,3156782,"35,848.00 ","Project set up costs, Rent and Proprty Tribunal Service Manchester relocation"
Ministry of Justice,HMCTS,18/Mar/2015 ,265000-IT & Telecommunications,GZ999-North West Region,ATOS IT SERVICES UK LTD,3156782,"7,169.60 ","VAT on Project set up costs, Rent and Proprty Tribunal Service Manchester relocation"
Ministry of Justice,HMCTS,30/Mar/2015 ,265000-IT & Telecommunications,GZ999-North West Region,ATOS IT SERVICES UK LTD,3173385,"26,386.00 ",Knutsford Crown Court IT Decommission
Ministry of Justice,HMCTS,30/Mar/2015 ,265000-IT & Telecommunications,GZ999-North West Region,ATOS IT SERVICES UK LTD,3173385,"5,277.20 ",VAT on Knutsford Crown Court IT Decommission
Ministry of Justice,HMCTS,03/Mar/2015 ,265000-IT & Telecommunications,HZ999-North East Region,ATOS IT SERVICES UK LTD,3141619,12.76 ,HP USB/PS2 Optical Scroll Mouse
Ministry of Justice,HMCTS,03/Mar/2015 ,265000-IT & Telecommunications,HZ999-North East Region,ATOS IT SERVICES UK LTD,3141619,14.13 ,Kensington Orbit Optical Trackball
Ministry of Justice,HMCTS,03/Mar/2015 ,265000-IT & Telecommunications,HZ999-North East Region,ATOS IT SERVICES UK LTD,3141619,54.99 ,Cherry eVolution WHITE STREAM PS/2 and USB
Ministry of Justice,HMCTS,03/Mar/2015 ,265000-IT & Telecommunications,HZ999-North East Region,ATOS IT SERVICES UK LTD,3141619,54.99 ,Cherry eVolution WHITE STREAM PS/2 and USB
Ministry of Justice,HMCTS,03/Mar/2015 ,265000-IT & Telecommunications,HZ999-North East Region,ATOS IT SERVICES UK LTD,3141619,168.02 ,RollerMouse Pro2
Ministry of Justice,HMCTS,03/Mar/2015 ,265000-IT & Telecommunications,HZ999-North East Region,ATOS IT SERVICES UK LTD,3141619,116.00 ,Relocation of a single desktop client device to a different building.
Ministry of Justice,HMCTS,31/Mar/2015 ,265000-IT & Telecommunications,HZ999-North East Region,ATOS IT SERVICES UK LTD,3174914,120.69 ,Relocation of a single desktop client device to a different building
Ministry of Justice,HMCTS,31/Mar/2015 ,265000-IT & Telecommunications,HZ999-North East Region,ATOS IT SERVICES UK LTD,3174914,46.05 ,Logitech Trackman Cordless Ergonomic Mouse
Ministry of Justice,HMCTS,31/Mar/2015 ,265000-IT & Telecommunications,HZ999-North East Region,ATOS IT SERVICES UK LTD,3174914,116.00 ,Relocation of a single desktop client device to a different building.
Ministry of Justice,HMCTS,31/Mar/2015 ,265000-IT & Telecommunications,HZ999-North East Region,ATOS IT SERVICES UK LTD,3174914,488.99 ,1 to 5 Devices National Relocation -Printer or MFD (Multi Function Device)
Ministry of Justice,HMCTS,31/Mar/2015 ,265000-IT & Telecommunications,HZ999-North East Region,ATOS IT SERVICES UK LTD,3174914,18.33 ,Cherry eVolution WHITE STREAM PS/2 and USB
Ministry of Justice,HMCTS,03/Mar/2015 ,265000-IT & Telecommunications,HZ999-North East Region,ATOS IT SERVICES UK LTD,3141619,164.80 ,Plantronics CS510 Wireless Headset 12-30 devices
Ministry of Justice,HMCTS,03/Mar/2015 ,265000-IT & Telecommunications,HZ999-North East Region,ATOS IT SERVICES UK LTD,3141619,25.78 ,Pick Up Group - Amend
Ministry of Justice,HMCTS,03/Mar/2015 ,265000-IT & Telecommunications,HZ999-North East Region,ATOS IT SERVICES UK LTD,3141619,25.78 ,Hunt Group - Extension
Ministry of Justice,HMCTS,03/Mar/2015 ,265000-IT & Telecommunications,HZ999-North East Region,ATOS IT SERVICES UK LTD,3141619,25.78 ,Pick Up Group - Amend
Ministry of Justice,HMCTS,03/Mar/2015 ,265000-IT & Telecommunications,HZ999-North East Region,ATOS IT SERVICES UK LTD,3141619,5.00 ,10m Network Cable
Ministry of Justice,HMCTS,03/Mar/2015 ,265000-IT & Telecommunications,HZ999-North East Region,ATOS IT SERVICES UK LTD,3141619,46.00 ,Provision and support of Secure Remote Access (RWSII) Capability
Ministry of Justice,HMCTS,03/Mar/2015 ,265000-IT & Telecommunications,HZ999-North East Region,ATOS IT SERVICES UK LTD,3141619,25.78 ,Hunt Group - Amendment
Ministry of Justice,HMCTS,03/Mar/2015 ,265000-IT & Telecommunications,HZ999-North East Region,ATOS IT SERVICES UK LTD,3141619,116.20 ,Converse 2300 1-11 devices
Ministry of Justice,HMCTS,03/Mar/2015 ,265000-IT & Telecommunications,HZ999-North East Region,ATOS IT SERVICES UK LTD,3141619,25.78 ,New IPT Handset 1 - 11 devices
Ministry of Justice,HMCTS,03/Mar/2015 ,265000-IT & Telecommunications,HZ999-North East Region,ATOS IT SERVICES UK LTD,3141619,46.00 ,Provision and support of Secure Remote Access (RWSII) Capability
Ministry of Justice,HMCTS,03/Mar/2015 ,265000-IT & Telecommunications,HZ999-North East Region,ATOS IT SERVICES UK LTD,3141619,46.00 ,Provision and support of Secure Remote Access (RWSII) Capability
Ministry of Justice,HMCTS,03/Mar/2015 ,265000-IT & Telecommunications,HZ999-North East Region,ATOS IT SERVICES UK LTD,3141619,46.00 ,Provision and support of Secure Remote Access (RWSII) Capability
Ministry of Justice,HMCTS,03/Mar/2015 ,265000-IT & Telecommunications,HZ999-North East Region,ATOS IT SERVICES UK LTD,3141619,25.78 ,Hunt Group - Extension
Ministry of Justice,HMCTS,03/Mar/2015 ,265000-IT & Telecommunications,HZ999-North East Region,ATOS IT SERVICES UK LTD,3141619,67.31 ,Plantronics HW251 A Mono Headset 1-11 devices
Ministry of Justice,HMCTS,03/Mar/2015 ,265000-IT & Telecommunications,HZ999-North East Region,ATOS IT SERVICES UK LTD,3141619,25.78 ,Hunt Group - Extension
Ministry of Justice,HMCTS,03/Mar/2015 ,265000-IT & Telecommunications,HZ999-North East Region,ATOS IT SERVICES UK LTD,3141619,25.78 ,Hunt Group - Extension
Ministry of Justice,HMCTS,31/Mar/2015 ,265000-IT & Telecommunications,HZ999-North East Region,ATOS IT SERVICES UK LTD,3174914,51.56 ,Analogue Extension Decommission 1 - 10
Ministry of Justice,HMCTS,31/Mar/2015 ,265000-IT & Telecommunications,HZ999-North East Region,ATOS IT SERVICES UK LTD,3174914,46.00 ,Provision and support of Secure Remote Access (RWSII) Capability
Ministry of Justice,HMCTS,31/Mar/2015 ,265000-IT & Telecommunications,HZ999-North East Region,ATOS IT SERVICES UK LTD,3174914,166.86 ,Jabra GN2100 Telecoil Duo HeadsetChanges 1 - 10
Ministry of Justice,HMCTS,31/Mar/2015 ,265000-IT & Telecommunications,HZ999-North East Region,ATOS IT SERVICES UK LTD,3174914,25.78 ,New IPT Mobility account with voicemail account 1-10 Accounts
Ministry of Justice,HMCTS,31/Mar/2015 ,265000-IT & Telecommunications,HZ999-North East Region,ATOS IT SERVICES UK LTD,3174914,25.78 ,Hunt Group - Extension
Ministry of Justice,HMCTS,31/Mar/2015 ,265000-IT & Telecommunications,HZ999-North East Region,ATOS IT SERVICES UK LTD,3174914,25.78 ,Hunt Group - Extension
Ministry of Justice,HMCTS,31/Mar/2015 ,265000-IT & Telecommunications,HZ999-North East Region,ATOS IT SERVICES UK LTD,3174914,25.78 ,Hunt Group - Extension
Ministry of Justice,HMCTS,31/Mar/2015 ,265000-IT & Telecommunications,HZ999-North East Region,ATOS IT SERVICES UK LTD,3174914,25.78 ,Hunt Group - Extension
Ministry of Justice,HMCTS,31/Mar/2015 ,265000-IT & Telecommunications,HZ999-North East Region,ATOS IT SERVICES UK LTD,3174914,25.78 ,Hunt Group - Extension
Ministry of Justice,HMCTS,31/Mar/2015 ,265000-IT & Telecommunications,HZ999-North East Region,ATOS IT SERVICES UK LTD,3174914,25.78 ,Hunt Group - Extension
Ministry of Justice,HMCTS,31/Mar/2015 ,265000-IT & Telecommunications,HZ999-North East Region,ATOS IT SERVICES UK LTD,3174914,25.78 ,Hunt Group - Extension
Ministry of Justice,HMCTS,31/Mar/2015 ,265000-IT & Telecommunications,HZ999-North East Region,ATOS IT SERVICES UK LTD,3174914,103.12 ,Mobility Handset Conversion to Fixed Handset with new user details 1- 11 devices
Ministry of Justice,HMCTS,31/Mar/2015 ,265000-IT & Telecommunications,HZ999-North East Region,ATOS IT SERVICES UK LTD,3174914,67.31 ,Plantronics HW251 A Mono Headset 1-11 devices
Ministry of Justice,HMCTS,31/Mar/2015 ,265000-IT & Telecommunications,HZ999-North East Region,ATOS IT SERVICES UK LTD,3174914,46.00 ,Provision and support of Secure Remote Access (RWSII) Capability
Ministry of Justice,HMCTS,31/Mar/2015 ,265000-IT & Telecommunications,HZ999-North East Region,ATOS IT SERVICES UK LTD,3174914,11.17 ,Quick Time Player 7
Ministry of Justice,HMCTS,03/Mar/2015 ,265000-IT & Telecommunications,HZ999-North East Region,ATOS IT SERVICES UK LTD,3141619,90.60 ,Olympus Digital Professional Dictation Solution - DS-7000 -  device issued from stock
Ministry of Justice,HMCTS,03/Mar/2015 ,265000-IT & Telecommunications,HZ999-North East Region,ATOS IT SERVICES UK LTD,3141619,90.60 ,Olympus Digital Professional Dictation Solution - DS-7000 -  device issued from stock
Ministry of Justice,HMCTS,03/Mar/2015 ,265000-IT & Telecommunications,HZ999-North East Region,ATOS IT SERVICES UK LTD,3141619,95.70 ,HP 6-cell Primary Battery
Ministry of Justice,HMCTS,03/Mar/2015 ,265000-IT & Telecommunications,HZ999-North East Region,ATOS IT SERVICES UK LTD,3141619,58.47 ,Keep your mobile phone number when upgrading to BlackBerry
Ministry of Justice,HMCTS,03/Mar/2015 ,265000-IT & Telecommunications,HZ999-North East Region,ATOS IT SERVICES UK LTD,3141619,46.22 ,Request Olympus dictation and transcription software for a user.  Does not include Olympus Digital Professional Dictation Solution - DS-7000
Ministry of Justice,HMCTS,03/Mar/2015 ,265000-IT & Telecommunications,HZ999-North East Region,ATOS IT SERVICES UK LTD,3141619,11.17 ,MS Access
Ministry of Justice,HMCTS,31/Mar/2015 ,265000-IT & Telecommunications,HZ999-North East Region,ATOS IT SERVICES UK LTD,3174914,"6,762.60 ",AVM Ad-Hoc Labour and Materials
Ministry of Justice,HMCTS,31/Mar/2015 ,265000-IT & Telecommunications,HZ999-North East Region,ATOS IT SERVICES UK LTD,3174914,25.23 ,Additional/spare mains charger for BlackBerry 9300
Ministry of Justice,HMCTS,31/Mar/2015 ,265000-IT & Telecommunications,SJ999-Scotland,ATOS IT SERVICES UK LTD,3174914,113.16 ,"HP 230W Docking Station for 8440p, 8540p, 8460p, 8560p, 8470p and 8570p laptops"
Ministry of Justice,HMCTS,31/Mar/2015 ,265000-IT & Telecommunications,SJ999-Scotland,ATOS IT SERVICES UK LTD,3174914,113.16 ,"HP 230W Docking Station for 8440p, 8540p, 8460p, 8560p, 8470p and 8570p laptops"
Ministry of Justice,HMCTS,31/Mar/2015 ,265000-IT & Telecommunications,SJ999-Scotland,ATOS IT SERVICES UK LTD,3174914,116.08 ,Replace lost or stolen BlackBerry device (Vodafone)
Ministry of Justice,HMCTS,03/Mar/2015 ,265000-IT & Telecommunications,SK999-Enforcement,ATOS IT SERVICES UK LTD,3141619,416.16 ,1 to 5 Devices Local Relocation (same Authority Premises) -  Printer or MFD
Ministry of Justice,HMCTS,31/Mar/2015 ,265000-IT & Telecommunications,SK999-Enforcement,ATOS IT SERVICES UK LTD,3174914,156.06 ,"Move Large/Heavy Equipment Different Site, Standard Hours"
Ministry of Justice,HMCTS,31/Mar/2015 ,265000-IT & Telecommunications,SK999-Enforcement,ATOS IT SERVICES UK LTD,3174914,488.99 ,1 to 5 Devices National Relocation -Printer or MFD (Multi Function Device)
Ministry of Justice,HMCTS,31/Mar/2015 ,265000-IT & Telecommunications,SK999-Enforcement,ATOS IT SERVICES UK LTD,3174914,6.38 ,HP USB/PS2 Optical Scroll Mouse
Ministry of Justice,HMCTS,31/Mar/2015 ,265000-IT & Telecommunications,SK999-Enforcement,ATOS IT SERVICES UK LTD,3174914,22.32 ,HP Standard USB Keyboard
Ministry of Justice,HMCTS,31/Mar/2015 ,265000-IT & Telecommunications,SK999-Enforcement,ATOS IT SERVICES UK LTD,3174914,241.36 ,Desktop PC - HP DC8300
Ministry of Justice,HMCTS,31/Mar/2015 ,265000-IT & Telecommunications,SK999-Enforcement,ATOS IT SERVICES UK LTD,3174914,416.16 ,AO-Enf-ID378173-1 to 5 Devices Local Relocation (same Authority Premises) -  Printer or MFD
Ministry of Justice,HMCTS,31/Mar/2015 ,265000-IT & Telecommunications,SK999-Enforcement,ATOS IT SERVICES UK LTD,3174914,860.00 ,AO-Enf-ID378598-1 to 5 Devices Xerox A4 Black & White Laser Printer 3600EDN
Ministry of Justice,HMCTS,03/Mar/2015 ,265000-IT & Telecommunications,SK999-Enforcement,ATOS IT SERVICES UK LTD,3141619,25.78 ,New IPT Handset 1 - 11 devices
Ministry of Justice,HMCTS,03/Mar/2015 ,265000-IT & Telecommunications,SK999-Enforcement,ATOS IT SERVICES UK LTD,3141619,5.00 ,10m Network Cable
Ministry of Justice,HMCTS,03/Mar/2015 ,265000-IT & Telecommunications,SK999-Enforcement,ATOS IT SERVICES UK LTD,3141619,44.56 ,Plantronics Headset Ear Cushions 1-11 devices
Ministry of Justice,HMCTS,03/Mar/2015 ,265000-IT & Telecommunications,SK999-Enforcement,ATOS IT SERVICES UK LTD,3141619,166.86 ,Jabra GN2100 Telecoil Duo HeadsetChanges 1 - 10
Ministry of Justice,HMCTS,03/Mar/2015 ,265000-IT & Telecommunications,SK999-Enforcement,ATOS IT SERVICES UK LTD,3141619,257.50 ,Hunt Group - Complex Amendment
Ministry of Justice,HMCTS,03/Mar/2015 ,265000-IT & Telecommunications,SK999-Enforcement,ATOS IT SERVICES UK LTD,3141619,166.86 ,Jabra GN2100 Telecoil Duo HeadsetChanges 1 - 10
Ministry of Justice,HMCTS,03/Mar/2015 ,265000-IT & Telecommunications,SK999-Enforcement,ATOS IT SERVICES UK LTD,3141619,25.78 ,New IPT Handset 1 - 11 devices
Ministry of Justice,HMCTS,03/Mar/2015 ,265000-IT & Telecommunications,SK999-Enforcement,ATOS IT SERVICES UK LTD,3141619,10.00 ,10m Network Cable
Ministry of Justice,HMCTS,03/Mar/2015 ,265000-IT & Telecommunications,SK999-Enforcement,ATOS IT SERVICES UK LTD,3141619,25.78 ,Pick Up Group - Amend
Ministry of Justice,HMCTS,03/Mar/2015 ,265000-IT & Telecommunications,SK999-Enforcement,ATOS IT SERVICES UK LTD,3141619,25.78 ,Hunt Group - Extension
Ministry of Justice,HMCTS,03/Mar/2015 ,265000-IT & Telecommunications,SK999-Enforcement,ATOS IT SERVICES UK LTD,3141619,257.50 ,Hunt Group - Complex Amendment
Ministry of Justice,HMCTS,31/Mar/2015 ,265000-IT & Telecommunications,SK999-Enforcement,ATOS IT SERVICES UK LTD,3174914,25.78 ,Pick Up Group - Amend
Ministry of Justice,HMCTS,31/Mar/2015 ,265000-IT & Telecommunications,SK999-Enforcement,ATOS IT SERVICES UK LTD,3174914,166.86 ,Jabra GN2100 Telecoil Duo HeadsetChanges 1 - 10
Ministry of Justice,HMCTS,31/Mar/2015 ,265000-IT & Telecommunications,SK999-Enforcement,ATOS IT SERVICES UK LTD,3174914,25.78 ,AO-Enf-ID380115-Hunt Group - Extension-DISC
Ministry of Justice,HMCTS,31/Mar/2015 ,265000-IT & Telecommunications,SK999-Enforcement,ATOS IT SERVICES UK LTD,3174914,25.78 ,Hunt Group - Extension
Ministry of Justice,HMCTS,31/Mar/2015 ,265000-IT & Telecommunications,SK999-Enforcement,ATOS IT SERVICES UK LTD,3174914,403.86 ,Plantronics HW251 A Mono Headset 1-11 devices
Ministry of Justice,HMCTS,03/Mar/2015 ,265000-IT & Telecommunications,SK999-Enforcement,ATOS IT SERVICES UK LTD,3141619,107.66 ,BlackBerry (EE (formerly Orange))
Ministry of Justice,HMCTS,31/Mar/2015 ,265000-IT & Telecommunications,SK999-Enforcement,ATOS IT SERVICES UK LTD,3174914,25.23 ,Additional/spare mains charger for BlackBerry 8520
Ministry of Justice,HMCTS,03/Mar/2015 ,265000-IT & Telecommunications,SM999-National Business Centres,ATOS IT SERVICES UK LTD,3141619,18.33 ,Cherry eVolution WHITE STREAM PS/2 and USB
Ministry of Justice,HMCTS,03/Mar/2015 ,265000-IT & Telecommunications,SM999-National Business Centres,ATOS IT SERVICES UK LTD,3141619,111.60 ,HP Standard USB Keyboard
Ministry of Justice,HMCTS,03/Mar/2015 ,265000-IT & Telecommunications,SM999-National Business Centres,ATOS IT SERVICES UK LTD,3141619,63.80 ,HP USB/PS2 Optical Scroll Mouse
Ministry of Justice,HMCTS,31/Mar/2015 ,265000-IT & Telecommunications,SM999-National Business Centres,ATOS IT SERVICES UK LTD,3174914,18.33 ,Cherry eVolution WHITE STREAM PS/2 and USB
Ministry of Justice,HMCTS,31/Mar/2015 ,265000-IT & Telecommunications,SM999-National Business Centres,ATOS IT SERVICES UK LTD,3174914,46.05 ,Logitech Trackman Cordless Ergonomic Mouse
Ministry of Justice,HMCTS,31/Mar/2015 ,265000-IT & Telecommunications,SM999-National Business Centres,ATOS IT SERVICES UK LTD,3174914,33.33 ,Space Saving Mini Keyboard
Ministry of Justice,HMCTS,31/Mar/2015 ,265000-IT & Telecommunications,SM999-National Business Centres,ATOS IT SERVICES UK LTD,3174914,33.33 ,Space Saving Mini Keyboard
Ministry of Justice,HMCTS,31/Mar/2015 ,265000-IT & Telecommunications,SM999-National Business Centres,ATOS IT SERVICES UK LTD,3174914,83.96 ,Evoluent Vertical Mouse
Ministry of Justice,HMCTS,31/Mar/2015 ,265000-IT & Telecommunications,SM999-National Business Centres,ATOS IT SERVICES UK LTD,3174914,15.14 ,Mini Keypad
Ministry of Justice,HMCTS,31/Mar/2015 ,265000-IT & Telecommunications,SM999-National Business Centres,ATOS IT SERVICES UK LTD,3174914,20.19 ,Logitech Trackman Marble 4 Button USB Optical Trackball
Ministry of Justice,HMCTS,31/Mar/2015 ,265000-IT & Telecommunications,SM999-National Business Centres,ATOS IT SERVICES UK LTD,3174914,"3,677.00 ",1 to 5 Devices Multi Function device                  Xerox Workcenter 5775 - Black and White printer / Colour scanner
Ministry of Justice,HMCTS,31/Mar/2015 ,265000-IT & Telecommunications,SM999-National Business Centres,ATOS IT SERVICES UK LTD,3174914,5.00 ,USB Extender cable
Ministry of Justice,HMCTS,31/Mar/2015 ,265000-IT & Telecommunications,SM999-National Business Centres,ATOS IT SERVICES UK LTD,3174914,113.16 ,"HP 230W Docking Station for 8440p, 8540p, 8460p, 8560p, 8470p and 8570p laptops"
Ministry of Justice,HMCTS,03/Mar/2015 ,265000-IT & Telecommunications,SM999-National Business Centres,ATOS IT SERVICES UK LTD,3141619,65.00 ,Recovery of a redundant IPT handset from site 12-30 devices
Ministry of Justice,HMCTS,03/Mar/2015 ,265000-IT & Telecommunications,SM999-National Business Centres,ATOS IT SERVICES UK LTD,3141619,25.78 ,Pick Up Group - New
Ministry of Justice,HMCTS,03/Mar/2015 ,265000-IT & Telecommunications,SM999-National Business Centres,ATOS IT SERVICES UK LTD,3141619,25.78 ,Pick Up Group - Amend
Ministry of Justice,HMCTS,31/Mar/2015 ,265000-IT & Telecommunications,SM999-National Business Centres,ATOS IT SERVICES UK LTD,3174914,309.00 ,Recovery of a redundant IPT handset from site 1-11 devices
Ministry of Justice,HMCTS,31/Mar/2015 ,265000-IT & Telecommunications,SM999-National Business Centres,ATOS IT SERVICES UK LTD,3174914,25.78 ,Hunt Group - Extension
Ministry of Justice,HMCTS,31/Mar/2015 ,265000-IT & Telecommunications,SM999-National Business Centres,ATOS IT SERVICES UK LTD,3174914,25.78 ,Hunt Group - Extension
Ministry of Justice,HMCTS,31/Mar/2015 ,265000-IT & Telecommunications,SM999-National Business Centres,ATOS IT SERVICES UK LTD,3174914,309.00 ,Recovery of a redundant IPT handset from site 1-11 devices
Ministry of Justice,HMCTS,31/Mar/2015 ,265000-IT & Telecommunications,SM999-National Business Centres,ATOS IT SERVICES UK LTD,3174914,25.78 ,Voicemail - New Voicemail Account 1-10 Accounts
Ministry of Justice,HMCTS,31/Mar/2015 ,265000-IT & Telecommunications,SM999-National Business Centres,ATOS IT SERVICES UK LTD,3174914,618.00 ,Recovery of a redundant IPT handset from site 1-11 devices
Ministry of Justice,HMCTS,31/Mar/2015 ,265000-IT & Telecommunications,SM999-National Business Centres,ATOS IT SERVICES UK LTD,3174914,11.62 ,MS Project Professional
Ministry of Justice,HMCTS,06/Mar/2015 ,610400-Debtors <1 year - Prepayments & Accrued Income,BZ999-London Region,BERKLEY ESTATES LONDON LTD,3146931,"1,197,279.07 ",Rent payment
Ministry of Justice,HMCTS,05/Mar/2015 ,226000-Court Costs,SL999-Centralised Frontline,BLAKE MORGAN#DX 117878,289546,"50,312.86 ",Legal fees to solicitors for  the repayment of fees paid by the acquitted defendants
Ministry of Justice,HMCTS,10/Mar/2015 ,610400-Debtors <1 year - Prepayments & Accrued Income,FZ999-Midlands Region,BOND WOLFE ASSETS LTD,3149373,"33,905.70 ",Rent payment
Ministry of Justice,HMCTS,10/Mar/2015 ,610400-Debtors <1 year - Prepayments & Accrued Income,FZ999-Midlands Region,BOND WOLFE ASSETS LTD,3149373,"13,399.05 ",Service charge payment
Ministry of Justice,HMCTS,10/Mar/2015 ,710200-Creditors < 1 year - Trade & Other Creditors,FZ999-Midlands Region,BOND WOLFE ASSETS LTD,3149373,"3,583.27 ",Occupancy costs
Ministry of Justice,HMCTS,10/Mar/2015 ,710200-Creditors < 1 year - Trade & Other Creditors,FZ999-Midlands Region,BOND WOLFE ASSETS LTD,3149373,"9,067.30 ",Occupancy costs
Ministry of Justice,HMCTS,18/Mar/2015 ,261000-Fuel and Utilities,CZ999-South East Region,BRITISH GAS BUSINESS,3157119,-0.21 ,SE Region Consolidated - British Gas - Electricity supply - 2014/15 - Replacement for PO 20000173665
Ministry of Justice,HMCTS,18/Mar/2015 ,261000-Fuel and Utilities,CZ999-South East Region,BRITISH GAS BUSINESS,3157119,"45,040.71 ",SE Region Consolidated - British Gas - Electricity supply - 2014/15 - Replacement for PO 20000173665
Ministry of Justice,HMCTS,18/Mar/2015 ,261000-Fuel and Utilities,CZ999-South East Region,BRITISH GAS BUSINESS,3157119,"2,652.40 ",SE Region Consolidated - British Gas - Electricity supply - 2014/15 - Replacement for PO 20000173665
Ministry of Justice,HMCTS,18/Mar/2015 ,261000-Fuel and Utilities,CZ999-South East Region,BRITISH GAS BUSINESS,3157119,132.62 ,SE Region Consolidated - British Gas - Electricity supply - 2014/15 - Replacement for PO 20000173665
Ministry of Justice,HMCTS,18/Mar/2015 ,261000-Fuel and Utilities,CZ999-South East Region,BRITISH GAS BUSINESS,3157119,"9,008.14 ",SE Region Consolidated - British Gas - Electricity supply - 2014/15 - Replacement for PO 20000173665
Ministry of Justice,HMCTS,27/Mar/2015 ,261000-Fuel and Utilities,EZ999-Wales Region,BRITISH GAS BUSINESS,3172386,-0.14 ,BGB electricity for  HMCTS Wales 2014/15.
Ministry of Justice,HMCTS,27/Mar/2015 ,261000-Fuel and Utilities,EZ999-Wales Region,BRITISH GAS BUSINESS,3172386,"5,089.62 ",BGB electricity for  HMCTS Wales 2014/15.
Ministry of Justice,HMCTS,27/Mar/2015 ,261000-Fuel and Utilities,EZ999-Wales Region,BRITISH GAS BUSINESS,3172386,"-5,089.62 ",BGB electricity for  HMCTS Wales 2014/15.
Ministry of Justice,HMCTS,27/Mar/2015 ,261000-Fuel and Utilities,EZ999-Wales Region,BRITISH GAS BUSINESS,3172386,"25,295.31 ",BGB electricity for  HMCTS Wales 2014/15.
Ministry of Justice,HMCTS,27/Mar/2015 ,261000-Fuel and Utilities,EZ999-Wales Region,BRITISH GAS BUSINESS,3172386,152.79 ,BGB electricity for  HMCTS Wales 2014/15.
Ministry of Justice,HMCTS,27/Mar/2015 ,261000-Fuel and Utilities,EZ999-Wales Region,BRITISH GAS BUSINESS,3172386,7.64 ,BGB electricity for  HMCTS Wales 2014/15.
Ministry of Justice,HMCTS,27/Mar/2015 ,261000-Fuel and Utilities,EZ999-Wales Region,BRITISH GAS BUSINESS,3172386,"5,059.06 ",BGB electricity for  HMCTS Wales 2014/15.
Ministry of Justice,HMCTS,27/Mar/2015 ,261000-Fuel and Utilities,GZ999-North West Region,BRITISH GAS BUSINESS,3172386,-0.14 ,NW Region Consol Acc - Electricity - British Gas - 14/15
Ministry of Justice,HMCTS,27/Mar/2015 ,261000-Fuel and Utilities,GZ999-North West Region,BRITISH GAS BUSINESS,3172386,"4,467.33 ",NW Region Consol Acc - Electricity - British Gas - 14/15
Ministry of Justice,HMCTS,27/Mar/2015 ,261000-Fuel and Utilities,GZ999-North West Region,BRITISH GAS BUSINESS,3172386,"-4,467.33 ",NW Region Consol Acc - Electricity - British Gas - 14/15
Ministry of Justice,HMCTS,27/Mar/2015 ,261000-Fuel and Utilities,GZ999-North West Region,BRITISH GAS BUSINESS,3172386,480.45 ,NW Region Consol Acc - Electricity - British Gas - 14/15
Ministry of Justice,HMCTS,27/Mar/2015 ,261000-Fuel and Utilities,GZ999-North West Region,BRITISH GAS BUSINESS,3172386,"21,856.20 ",NW Region Consol Acc - Electricity - British Gas - 14/15
Ministry of Justice,HMCTS,27/Mar/2015 ,261000-Fuel and Utilities,GZ999-North West Region,BRITISH GAS BUSINESS,3172386,24.02 ,NW Region Consol Acc - Electricity - British Gas - 14/15
Ministry of Justice,HMCTS,27/Mar/2015 ,261000-Fuel and Utilities,GZ999-North West Region,BRITISH GAS BUSINESS,3172386,"4,371.24 ",NW Region Consol Acc - Electricity - British Gas - 14/15
Ministry of Justice,HMCTS,27/Mar/2015 ,261000-Fuel and Utilities,GZ999-North West Region,BRITISH GAS BUSINESS,3172386,-0.11 ,NW Region Consol Acc - Electricity - British Gas - 14/15
Ministry of Justice,HMCTS,27/Mar/2015 ,261000-Fuel and Utilities,GZ999-North West Region,BRITISH GAS BUSINESS,3172386,"4,906.38 ",NW Region Consol Acc - Electricity - British Gas - 14/15
Ministry of Justice,HMCTS,27/Mar/2015 ,261000-Fuel and Utilities,GZ999-North West Region,BRITISH GAS BUSINESS,3172386,"-4,906.38 ",NW Region Consol Acc - Electricity - British Gas - 14/15
Ministry of Justice,HMCTS,27/Mar/2015 ,261000-Fuel and Utilities,GZ999-North West Region,BRITISH GAS BUSINESS,3172386,37.43 ,NW Region Consol Acc - Electricity - British Gas - 14/15
Ministry of Justice,HMCTS,27/Mar/2015 ,261000-Fuel and Utilities,GZ999-North West Region,BRITISH GAS BUSINESS,3172386,"24,494.45 ",NW Region Consol Acc - Electricity - British Gas - 14/15
Ministry of Justice,HMCTS,27/Mar/2015 ,261000-Fuel and Utilities,GZ999-North West Region,BRITISH GAS BUSINESS,3172386,1.87 ,NW Region Consol Acc - Electricity - British Gas - 14/15
Ministry of Justice,HMCTS,27/Mar/2015 ,261000-Fuel and Utilities,GZ999-North West Region,BRITISH GAS BUSINESS,3172386,"4,898.89 ",NW Region Consol Acc - Electricity - British Gas - 14/15
Ministry of Justice,HMCTS,27/Mar/2015 ,261000-Fuel and Utilities,GZ999-North West Region,BRITISH GAS BUSINESS,3172386,-0.18 ,NW Region Consol Acc - Electricity - British Gas - 14/15
Ministry of Justice,HMCTS,27/Mar/2015 ,261000-Fuel and Utilities,GZ999-North West Region,BRITISH GAS BUSINESS,3172386,128.80 ,NW Region Consol Acc - Electricity - British Gas - 14/15
Ministry of Justice,HMCTS,27/Mar/2015 ,261000-Fuel and Utilities,GZ999-North West Region,BRITISH GAS BUSINESS,3172386,"32,837.86 ",NW Region Consol Acc - Electricity - British Gas - 14/15
Ministry of Justice,HMCTS,27/Mar/2015 ,261000-Fuel and Utilities,GZ999-North West Region,BRITISH GAS BUSINESS,3172386,6.44 ,NW Region Consol Acc - Electricity - British Gas - 14/15
Ministry of Justice,HMCTS,27/Mar/2015 ,261000-Fuel and Utilities,GZ999-North West Region,BRITISH GAS BUSINESS,3172386,"6,567.57 ",NW Region Consol Acc - Electricity - British Gas - 14/15
Ministry of Justice,HMCTS,27/Mar/2015 ,261000-Fuel and Utilities,GZ999-North West Region,BRITISH GAS BUSINESS,3172386,-0.27 ,NW Region Consol Acc - Electricity - British Gas - 14/15
Ministry of Justice,HMCTS,27/Mar/2015 ,261000-Fuel and Utilities,GZ999-North West Region,BRITISH GAS BUSINESS,3172386,314.60 ,NW Region Consol Acc - Electricity - British Gas - 14/15
Ministry of Justice,HMCTS,27/Mar/2015 ,261000-Fuel and Utilities,GZ999-North West Region,BRITISH GAS BUSINESS,3172386,"42,033.88 ",NW Region Consol Acc - Electricity - British Gas - 14/15
Ministry of Justice,HMCTS,27/Mar/2015 ,261000-Fuel and Utilities,GZ999-North West Region,BRITISH GAS BUSINESS,3172386,15.73 ,NW Region Consol Acc - Electricity - British Gas - 14/15
Ministry of Justice,HMCTS,27/Mar/2015 ,261000-Fuel and Utilities,GZ999-North West Region,BRITISH GAS BUSINESS,3172386,"8,406.78 ",NW Region Consol Acc - Electricity - British Gas - 14/15
Ministry of Justice,HMCTS,27/Mar/2015 ,261000-Fuel and Utilities,GZ999-North West Region,BRITISH GAS BUSINESS,3172386,-0.24 ,NW Region Consol Acc - Electricity - British Gas - 14/15
Ministry of Justice,HMCTS,27/Mar/2015 ,261000-Fuel and Utilities,GZ999-North West Region,BRITISH GAS BUSINESS,3172386,326.80 ,NW Region Consol Acc - Electricity - British Gas - 14/15
Ministry of Justice,HMCTS,27/Mar/2015 ,261000-Fuel and Utilities,GZ999-North West Region,BRITISH GAS BUSINESS,3172386,16.34 ,NW Region Consol Acc - Electricity - British Gas - 14/15
Ministry of Justice,HMCTS,27/Mar/2015 ,261000-Fuel and Utilities,GZ999-North West Region,BRITISH GAS BUSINESS,3172386,"5,750.18 ",NW Region Consol Acc - Electricity - British Gas - 14/15
Ministry of Justice,HMCTS,27/Mar/2015 ,261000-Fuel and Utilities,GZ999-North West Region,BRITISH GAS BUSINESS,3172386,"-5,750.18 ",NW Region Consol Acc - Electricity - British Gas - 14/15
Ministry of Justice,HMCTS,27/Mar/2015 ,261000-Fuel and Utilities,GZ999-North West Region,BRITISH GAS BUSINESS,3172386,"5,570.42 ",NW Region Consol Acc - Electricity - British Gas - 14/15
Ministry of Justice,HMCTS,27/Mar/2015 ,261000-Fuel and Utilities,GZ999-North West Region,BRITISH GAS BUSINESS,3172386,"-5,570.42 ",NW Region Consol Acc - Electricity - British Gas - 14/15
Ministry of Justice,HMCTS,27/Mar/2015 ,261000-Fuel and Utilities,GZ999-North West Region,BRITISH GAS BUSINESS,3172386,"28,752.09 ",NW Region Consol Acc - Electricity - British Gas - 14/15
Ministry of Justice,HMCTS,27/Mar/2015 ,261000-Fuel and Utilities,GZ999-North West Region,BRITISH GAS BUSINESS,3172386,"5,750.42 ",NW Region Consol Acc - Electricity - British Gas - 14/15
Ministry of Justice,HMCTS,10/Mar/2015 ,261000-Fuel and Utilities,BZ999-London Region,BROADGATE ESTATES LTD,3149385,"21,925.29 ",Electricity Charges for the month of Jan 15 for Fetter Lane
Ministry of Justice,HMCTS,10/Mar/2015 ,261000-Fuel and Utilities,BZ999-London Region,BROADGATE ESTATES LTD,3149385,"4,385.06 ",Electricity Charges for the month of Jan 15 for Fetter Lane (VAT Charges 20%)
Ministry of Justice,HMCTS,06/Mar/2015 ,610400-Debtors <1 year - Prepayments & Accrued Income,BZ999-London Region,BROADGATE ESTATES LTD,3146955,"2,616,550.00 ",Rent payment
Ministry of Justice,HMCTS,06/Mar/2015 ,610400-Debtors <1 year - Prepayments & Accrued Income,BZ999-London Region,BROADGATE ESTATES LTD,3146955,"523,310.00 ",Rent payment
Ministry of Justice,HMCTS,06/Mar/2015 ,610400-Debtors <1 year - Prepayments & Accrued Income,BZ999-London Region,BROADGATE ESTATES LTD,3146955,"294,477.77 ",Service charge payment
Ministry of Justice,HMCTS,06/Mar/2015 ,610400-Debtors <1 year - Prepayments & Accrued Income,BZ999-London Region,BROADGATE ESTATES LTD,3146955,"58,895.55 ",Service charge payment
Ministry of Justice,HMCTS,30/Mar/2015 ,265000-IT & Telecommunications,AP999-HQ - Strategy & Change,BT GLOBAL SERVICES,3173402,"70,179.16 ",HMCTS300-01 MoJ CJEP Professional Court User WiFi (BT Global Services PP M3042 Z) One-Off Setup - Contract Ref 3440-2-ICT-ICT-RFP.  ECM: 8608 
Ministry of Justice,HMCTS,30/Mar/2015 ,265000-IT & Telecommunications,AP999-HQ - Strategy & Change,BT GLOBAL SERVICES,3173402,"14,035.83 ",HMCTS300-01 MoJ CJEP Professional Court User WiFi (BT Global Services PP M3042 Z) One-Off Setup - Contract Ref 3440-2-ICT-ICT-RFP.  ECM: 8608 
Ministry of Justice,HMCTS,27/Mar/2015 ,265000-IT & Telecommunications,BZ999-London Region,BT TELECOMMUNICATIONS PLC,3172390,"36,118.45 ",London Region Consolidated - BT One Bill - 2014/15
Ministry of Justice,HMCTS,27/Mar/2015 ,265000-IT & Telecommunications,BZ999-London Region,BT TELECOMMUNICATIONS PLC,3172390,"7,223.69 ",London Region Consolidated - BT One Bill - 2014/15 (VAT Charges @ 20%)
Ministry of Justice,HMCTS,25/Mar/2015 ,610400-Debtors <1 year - Prepayments & Accrued Income,EZ999-Wales Region,CANADA LIFE LTD,3168263,"253,051.87 ",Rent payment
Ministry of Justice,HMCTS,18/Mar/2015 ,221000-Property Rent and Rates,CZ999-South East Region,CAPITA PROPERTY & INFRASTRUCTURE LTD,3157261,"22,339.00 ",Rent payment
Ministry of Justice,HMCTS,18/Mar/2015 ,221000-Property Rent and Rates,CZ999-South East Region,CAPITA PROPERTY & INFRASTRUCTURE LTD,3157261,"5,195.43 ",Rates payment
Ministry of Justice,HMCTS,18/Mar/2015 ,222002-Other Property Costs,CZ999-South East Region,CAPITA PROPERTY & INFRASTRUCTURE LTD,3157261,"1,194.48 ",Service charge payment
Ministry of Justice,HMCTS,03/Mar/2015 ,610400-Debtors <1 year - Prepayments & Accrued Income,FZ999-Midlands Region,CAPITA PROPERTY & INFRASTRUCTURE LTD,3141685,"10,250.00 ",Rent payment
Ministry of Justice,HMCTS,03/Mar/2015 ,610400-Debtors <1 year - Prepayments & Accrued Income,FZ999-Midlands Region,CAPITA PROPERTY & INFRASTRUCTURE LTD,3141685,"2,050.00 ",Rent payment
Ministry of Justice,HMCTS,03/Mar/2015 ,610400-Debtors <1 year - Prepayments & Accrued Income,FZ999-Midlands Region,CAPITA PROPERTY & INFRASTRUCTURE LTD,3141685,"12,040.84 ",Service charge payment
Ministry of Justice,HMCTS,03/Mar/2015 ,610400-Debtors <1 year - Prepayments & Accrued Income,FZ999-Midlands Region,CAPITA PROPERTY & INFRASTRUCTURE LTD,3141685,"2,408.17 ",Service charge payment
Ministry of Justice,HMCTS,27/Mar/2015 ,263000-Other Contracted Out Services,BZ999-London Region,CATERING BY CLARKES,3172398,"24,000.00 ",'Woolwich Crown Court - CATERING BY CLARKES - Catering contract subsidary six month Apr-Sept 15.
Ministry of Justice,HMCTS,24/Mar/2015 ,610400-Debtors <1 year - Prepayments & Accrued Income,CZ999-South East Region,CBGA ROBSON LLP,3166614,"38,417.49 ",Rent payment
Ministry of Justice,HMCTS,24/Mar/2015 ,610400-Debtors <1 year - Prepayments & Accrued Income,CZ999-South East Region,CBGA ROBSON LLP,3166614,"7,683.50 ",Rent payment
Ministry of Justice,HMCTS,24/Mar/2015 ,610400-Debtors <1 year - Prepayments & Accrued Income,CZ999-South East Region,CBGA ROBSON LLP,3166614,"25,716.90 ",Service charge payment
Ministry of Justice,HMCTS,24/Mar/2015 ,610400-Debtors <1 year - Prepayments & Accrued Income,CZ999-South East Region,CBGA ROBSON LLP,3166614,"5,143.38 ",Service charge payment
Ministry of Justice,HMCTS,03/Mar/2015 ,610400-Debtors <1 year - Prepayments & Accrued Income,BZ999-London Region,CBRE LTD,3141688,"1,236,675.00 ",Rent payment
Ministry of Justice,HMCTS,03/Mar/2015 ,610400-Debtors <1 year - Prepayments & Accrued Income,BZ999-London Region,CBRE LTD,3141688,"247,335.00 ",Rent payment
Ministry of Justice,HMCTS,23/Mar/2015 ,610400-Debtors <1 year - Prepayments & Accrued Income,EZ999-Wales Region,CBRE LTD,3164952,"13,662.50 ",Rent payment
Ministry of Justice,HMCTS,23/Mar/2015 ,610400-Debtors <1 year - Prepayments & Accrued Income,EZ999-Wales Region,CBRE LTD,3164952,"2,732.50 ",Rent payment
Ministry of Justice,HMCTS,23/Mar/2015 ,610400-Debtors <1 year - Prepayments & Accrued Income,EZ999-Wales Region,CBRE LTD,3164952,"11,795.00 ",Service charge payment
Ministry of Justice,HMCTS,23/Mar/2015 ,610400-Debtors <1 year - Prepayments & Accrued Income,EZ999-Wales Region,CBRE LTD,3164952,"2,359.00 ",Service charge payment
Ministry of Justice,HMCTS,03/Mar/2015 ,610400-Debtors <1 year - Prepayments & Accrued Income,GZ999-North West Region,CBRE LTD,3141689,"23,748.50 ",Service charge payment
Ministry of Justice,HMCTS,03/Mar/2015 ,610400-Debtors <1 year - Prepayments & Accrued Income,GZ999-North West Region,CBRE LTD,3141689,"4,749.70 ",Service charge payment
Ministry of Justice,HMCTS,03/Mar/2015 ,610400-Debtors <1 year - Prepayments & Accrued Income,GZ999-North West Region,CBRE LTD,3141689,"29,116.75 ",Service charge payment
Ministry of Justice,HMCTS,03/Mar/2015 ,610400-Debtors <1 year - Prepayments & Accrued Income,GZ999-North West Region,CBRE LTD,3141689,"5,823.35 ",Service charge payment
Ministry of Justice,HMCTS,03/Mar/2015 ,610400-Debtors <1 year - Prepayments & Accrued Income,GZ999-North West Region,CBRE LTD,3141689,"29,894.50 ",Service charge payment
Ministry of Justice,HMCTS,03/Mar/2015 ,610400-Debtors <1 year - Prepayments & Accrued Income,GZ999-North West Region,CBRE LTD,3141689,"5,978.90 ",Service charge payment
Ministry of Justice,HMCTS,03/Mar/2015 ,610400-Debtors <1 year - Prepayments & Accrued Income,GZ999-North West Region,CBRE LTD,3141689,"29,852.25 ",Service charge payment
Ministry of Justice,HMCTS,03/Mar/2015 ,610400-Debtors <1 year - Prepayments & Accrued Income,GZ999-North West Region,CBRE LTD,3141689,"5,970.45 ",Service charge payment
Ministry of Justice,HMCTS,31/Mar/2015 ,221000-Property Rent and Rates,SJ999-Scotland,CBRE LTD,7741,"90,357.75 ",Rent payment
Ministry of Justice,HMCTS,31/Mar/2015 ,221000-Property Rent and Rates,SJ999-Scotland,CBRE LTD,7741,"59,846.50 ",Rent payment
Ministry of Justice,HMCTS,31/Mar/2015 ,221000-Property Rent and Rates,SJ999-Scotland,CBRE LTD,7741,"30,040.85 ",Rent payment
Ministry of Justice,HMCTS,31/Mar/2015 ,222002-Other Property Costs,SJ999-Scotland,CBRE LTD,7741,"60,074.75 ",Service charge payment
Ministry of Justice,HMCTS,31/Mar/2015 ,222002-Other Property Costs,SJ999-Scotland,CBRE LTD,7741,"39,775.75 ",Service charge payment
Ministry of Justice,HMCTS,31/Mar/2015 ,222002-Other Property Costs,SJ999-Scotland,CBRE LTD,7741,"19,970.10 ",Service charge payment
Ministry of Justice,HMCTS,27/Mar/2015 ,264000-Consultancy,AP999-HQ - Strategy & Change,CGI IT UK LTD,3172399,"37,903.00 ",Consultancy costs Initiation costs for Immigration Act 2014 Implementation Project
Ministry of Justice,HMCTS,27/Mar/2015 ,264000-Consultancy,AP999-HQ - Strategy & Change,CGI IT UK LTD,3172399,"7,580.60 ",Consultancy costs Initiation costs for Immigration Act 2014 Implementation Project
Ministry of Justice,HMCTS,27/Mar/2015 ,265000-IT & Telecommunications,AP999-HQ - Strategy & Change,CGI IT UK LTD,3172399,"57,515.86 ",T & M maximum payment
Ministry of Justice,HMCTS,27/Mar/2015 ,265000-IT & Telecommunications,AP999-HQ - Strategy & Change,CGI IT UK LTD,3172399,"57,515.87 ",T & M maximum payment
Ministry of Justice,HMCTS,27/Mar/2015 ,265000-IT & Telecommunications,AP999-HQ - Strategy & Change,CGI IT UK LTD,3172399,"128,909.66 ",T & M maximum payment - 28/02
Ministry of Justice,HMCTS,27/Mar/2015 ,265000-IT & Telecommunications,AP999-HQ - Strategy & Change,CGI IT UK LTD,3172399,"22,042.20 ",To provide the resources to meet the anticipated schedule of works covering Management Information & Business Planning Services
Ministry of Justice,HMCTS,10/Mar/2015 ,265000-IT & Telecommunications,AT899-HQ - ICT,CGI IT UK LTD,3149411,"23,264.00 ",L-R-4340-01 Dartford TEC Changes 
Ministry of Justice,HMCTS,10/Mar/2015 ,265000-IT & Telecommunications,AT899-HQ - ICT,CGI IT UK LTD,3149411,"4,652.80 ",L-R-4340-01 Dartford TEC Changes 
Ministry of Justice,HMCTS,27/Mar/2015 ,265000-IT & Telecommunications,AT899-HQ - ICT,CGI IT UK LTD,3172399,"4,656.80 ",L-R-4340-01 Dartford TEC Changes 
Ministry of Justice,HMCTS,27/Mar/2015 ,265000-IT & Telecommunications,AT899-HQ - ICT,CGI IT UK LTD,3172399,"-4,656.80 ",L-R-4340-01 Dartford TEC Changes 
Ministry of Justice,HMCTS,27/Mar/2015 ,265000-IT & Telecommunications,AT899-HQ - ICT,CGI IT UK LTD,3172399,"23,264.00 ",L-R-4340-01 Dartford TEC Changes 
Ministry of Justice,HMCTS,27/Mar/2015 ,265000-IT & Telecommunications,AT899-HQ - ICT,CGI IT UK LTD,3172399,"4,652.80 ",L-R-4340-01 Dartford TEC Changes 
Ministry of Justice,HMCTS,18/Mar/2015 ,265000-IT & Telecommunications,AT899-HQ - ICT,CGI IT UK LTD,3157308,"22,548.00 ",Xhibit T&M maximum payment
Ministry of Justice,HMCTS,18/Mar/2015 ,265000-IT & Telecommunications,AT899-HQ - ICT,CGI IT UK LTD,3157308,"1,521.39 ",Xhibit T&M maximum payment
Ministry of Justice,HMCTS,30/Mar/2015 ,265000-IT & Telecommunications,AT899-HQ - ICT,CGI IT UK LTD,3173409,"26,710.00 ",File upload system tested in NLE
Ministry of Justice,HMCTS,30/Mar/2015 ,265000-IT & Telecommunications,AT899-HQ - ICT,CGI IT UK LTD,3173409,"26,710.00 ",File Upload applied to Live and commissioning trial completed
Ministry of Justice,HMCTS,27/Mar/2015 ,265000-IT & Telecommunications,AT899-HQ - ICT,CGI IT UK LTD,3172399,"36,108.00 ",L-R-4293-01 Go Live
Ministry of Justice,HMCTS,27/Mar/2015 ,265000-IT & Telecommunications,AT899-HQ - ICT,CGI IT UK LTD,3172399,"64,235.00 ",L-R-3693-01 Legacy Archiving - M6 Phase 4 Final Extract Report Approval
Ministry of Justice,HMCTS,11/Mar/2015 ,265000-IT & Telecommunications,AT899-HQ - ICT,CGI IT UK LTD,3151228,"34,889.00 ",Direct Internet Connections Installed
Ministry of Justice,HMCTS,31/Mar/2015 ,265000-IT & Telecommunications,AT899-HQ - ICT,CGI IT UK LTD,3174927,"38,384.00 ","Libra Application Changes (June 2015) -Build Completion (Ready to System Test - Capita)	"
Ministry of Justice,HMCTS,10/Mar/2015 ,221000-Property Rent and Rates,BZ999-London Region,CITY OF LONDON,3149419,"214,306.25 ",Rent payment
Ministry of Justice,HMCTS,10/Mar/2015 ,221000-Property Rent and Rates,BZ999-London Region,CITY OF LONDON,3149419,"42,861.25 ",Rent payment
Ministry of Justice,HMCTS,10/Mar/2015 ,222002-Other Property Costs,BZ999-London Region,CITY OF LONDON,3149419,"53,788.96 ",Service charge payment
Ministry of Justice,HMCTS,10/Mar/2015 ,222002-Other Property Costs,BZ999-London Region,CITY OF LONDON,3149419,"10,757.79 ",Service charge payment
Ministry of Justice,HMCTS,27/Mar/2015 ,610400-Debtors <1 year - Prepayments & Accrued Income,BZ999-London Region,CITY OF LONDON,3172400,"1,170,250.00 ",Service charge payment
Ministry of Justice,HMCTS,27/Mar/2015 ,610400-Debtors <1 year - Prepayments & Accrued Income,BZ999-London Region,CITY OF WESTMINSTER,3172401,"337,114.93 ",Rates payment
Ministry of Justice,HMCTS,27/Mar/2015 ,610400-Debtors <1 year - Prepayments & Accrued Income,BZ999-London Region,CITY OF WESTMINSTER,3172401,"337,114.93 ",Rates payment
Ministry of Justice,HMCTS,27/Mar/2015 ,610400-Debtors <1 year - Prepayments & Accrued Income,BZ999-London Region,CITY OF WESTMINSTER,3172401,"337,114.93 ",Rates payment
Ministry of Justice,HMCTS,27/Mar/2015 ,610400-Debtors <1 year - Prepayments & Accrued Income,BZ999-London Region,CITY OF WESTMINSTER,3172401,"337,114.93 ",Rates payment
Ministry of Justice,HMCTS,27/Mar/2015 ,610400-Debtors <1 year - Prepayments & Accrued Income,BZ999-London Region,CITY OF WESTMINSTER,3172401,"337,114.93 ",Rates payment
Ministry of Justice,HMCTS,27/Mar/2015 ,610400-Debtors <1 year - Prepayments & Accrued Income,BZ999-London Region,CITY OF WESTMINSTER,3172401,"337,114.93 ",Rates payment
Ministry of Justice,HMCTS,27/Mar/2015 ,610400-Debtors <1 year - Prepayments & Accrued Income,BZ999-London Region,CITY OF WESTMINSTER,3172401,"337,114.93 ",Rates payment
Ministry of Justice,HMCTS,27/Mar/2015 ,610400-Debtors <1 year - Prepayments & Accrued Income,BZ999-London Region,CITY OF WESTMINSTER,3172401,"530,985.15 ",Rates payment
Ministry of Justice,HMCTS,27/Mar/2015 ,610400-Debtors <1 year - Prepayments & Accrued Income,BZ999-London Region,CITY OF WESTMINSTER,3172401,"73,794.00 ",Rates payment
Ministry of Justice,HMCTS,06/Mar/2015 ,610400-Debtors <1 year - Prepayments & Accrued Income,BZ999-London Region,CLSH MANAGEMENT LTD,3146993,"45,000.00 ",Rent payment
Ministry of Justice,HMCTS,06/Mar/2015 ,610400-Debtors <1 year - Prepayments & Accrued Income,BZ999-London Region,CLSH MANAGEMENT LTD,3146993,"9,000.00 ",Rent payment
Ministry of Justice,HMCTS,03/Mar/2015 ,610400-Debtors <1 year - Prepayments & Accrued Income,DZ999-South West Region,CLSH MANAGEMENT LTD,3141705,"42,594.92 ",Rent payment
Ministry of Justice,HMCTS,06/Mar/2015 ,221000-Property Rent and Rates,HZ999-North East Region,CLSH MANAGEMENT LTD,3146993,"113,050.25 ",Rent payment
Ministry of Justice,HMCTS,06/Mar/2015 ,221000-Property Rent and Rates,HZ999-North East Region,CLSH MANAGEMENT LTD,3146993,"22,610.05 ",Rent payment
Ministry of Justice,HMCTS,03/Mar/2015 ,710200-Creditors < 1 year - Trade & Other Creditors,SM999-National Business Centres,CLSH MANAGEMENT LTD,3141705,"2,781.58 ",Occupancy Costs
Ministry of Justice,HMCTS,03/Mar/2015 ,610400-Debtors <1 year - Prepayments & Accrued Income,HZ999-North East Region,COLENSO PROPERTY SERVICES LLP,3141708,"29,250.00 ",Rent payment
Ministry of Justice,HMCTS,03/Mar/2015 ,610400-Debtors <1 year - Prepayments & Accrued Income,HZ999-North East Region,COLENSO PROPERTY SERVICES LLP,3141708,"5,850.00 ",Rent payment
Ministry of Justice,HMCTS,10/Mar/2015 ,610400-Debtors <1 year - Prepayments & Accrued Income,CZ999-South East Region,COLLIERS INTERNATIONAL,3149431,"189,256.00 ",Rent payment
Ministry of Justice,HMCTS,10/Mar/2015 ,610400-Debtors <1 year - Prepayments & Accrued Income,CZ999-South East Region,COLLIERS INTERNATIONAL,3149431,"37,851.20 ",Rent payment
Ministry of Justice,HMCTS,10/Mar/2015 ,610400-Debtors <1 year - Prepayments & Accrued Income,CZ999-South East Region,COLLIERS INTERNATIONAL,3149431,"44,957.75 ",Service charge payment
Ministry of Justice,HMCTS,10/Mar/2015 ,610400-Debtors <1 year - Prepayments & Accrued Income,CZ999-South East Region,COLLIERS INTERNATIONAL,3149431,"8,991.55 ",Service charge payment
Ministry of Justice,HMCTS,30/Mar/2015 ,221000-Property Rent and Rates,EZ999-Wales Region,COLUMBUS HOUSE PROPERTIES LTD,3173414,"85,625.00 ",Rent payment
Ministry of Justice,HMCTS,23/Mar/2015 ,610400-Debtors <1 year - Prepayments & Accrued Income,GZ999-North West Region,CORK STREET PROPERTIES LTD,3164978,"2,171,284.00 ",Rent payment
Ministry of Justice,HMCTS,23/Mar/2015 ,610400-Debtors <1 year - Prepayments & Accrued Income,GZ999-North West Region,CORK STREET PROPERTIES LTD,3164978,"434,256.80 ",Rent payment
Ministry of Justice,HMCTS,18/Mar/2015 ,261000-Fuel and Utilities,BZ999-London Region,CORONA ENERGY,3157477,"33,943.18 ",HMCTS London Region - Corona - Consolidated Gas Account 2014/15
Ministry of Justice,HMCTS,18/Mar/2015 ,261000-Fuel and Utilities,BZ999-London Region,CORONA ENERGY,3157477,"6,788.64 ",HMCTS London Region - Corona - Consolidated Gas Account 2014/15 (VAT Charges 20%)
Ministry of Justice,HMCTS,27/Mar/2015 ,261000-Fuel and Utilities,BZ999-London Region,CORONA ENERGY,3172406,188.39 ,HMCTS London Region - Corona - Consolidated Gas Account 2014/15
Ministry of Justice,HMCTS,27/Mar/2015 ,261000-Fuel and Utilities,BZ999-London Region,CORONA ENERGY,3172406,"135,561.63 ",HMCTS London Region - Corona - Consolidated Gas Account 2014/15
Ministry of Justice,HMCTS,27/Mar/2015 ,261000-Fuel and Utilities,BZ999-London Region,CORONA ENERGY,3172406,9.42 ,HMCTS London Region - Corona - Consolidated Gas Account 2014/15 (VAT Charges 5%)
Ministry of Justice,HMCTS,27/Mar/2015 ,261000-Fuel and Utilities,BZ999-London Region,CORONA ENERGY,3172406,"27,112.33 ",HMCTS London Region - Corona - Consolidated Gas Account 2014/15 (VAT Charges 20%)
Ministry of Justice,HMCTS,27/Mar/2015 ,261000-Fuel and Utilities,CZ999-South East Region,CORONA ENERGY,3172406,248.74 ,SE Region Consolidated - Corona - Gas charges 2014/15 - Replacement for PO 20000173659
Ministry of Justice,HMCTS,27/Mar/2015 ,261000-Fuel and Utilities,CZ999-South East Region,CORONA ENERGY,3172406,"110,473.01 ",SE Region Consolidated - Corona - Gas charges 2014/15 - Replacement for PO 20000173659
Ministry of Justice,HMCTS,27/Mar/2015 ,261000-Fuel and Utilities,CZ999-South East Region,CORONA ENERGY,3172406,12.44 ,SE Region Consolidated - Corona - Gas charges 2014/15 - Replacement for PO 20000173659
Ministry of Justice,HMCTS,27/Mar/2015 ,261000-Fuel and Utilities,CZ999-South East Region,CORONA ENERGY,3172406,"22,094.60 ",SE Region Consolidated - Corona - Gas charges 2014/15 - Replacement for PO 20000173659
Ministry of Justice,HMCTS,30/Mar/2015 ,261000-Fuel and Utilities,DZ999-South West Region,CORONA ENERGY,3173417,263.52 ,SW Finance Office _ Corona Energy _ DA170-222143 _ GAS _ Acct no.:20301400 _ Monthly Consolidated Bill for various sites in the SW Region.
Ministry of Justice,HMCTS,30/Mar/2015 ,261000-Fuel and Utilities,DZ999-South West Region,CORONA ENERGY,3173417,"62,102.85 ",SW Finance Office _ Corona Energy _ DA170-222143 _ GAS _ Acct no.:20301400 _ Monthly Consolidated Bill for various sites in the SW Region.
Ministry of Justice,HMCTS,30/Mar/2015 ,261000-Fuel and Utilities,DZ999-South West Region,CORONA ENERGY,3173417,13.18 ,SW Finance Office _ Corona Energy _ DA170-222143 _ GAS _ Acct no.:20301400 _ Monthly Consolidated Bill for various sites in the SW Region.
Ministry of Justice,HMCTS,30/Mar/2015 ,261000-Fuel and Utilities,DZ999-South West Region,CORONA ENERGY,3173417,"12,420.57 ",SW Finance Office _ Corona Energy _ DA170-222143 _ GAS _ Acct no.:20301400 _ Monthly Consolidated Bill for various sites in the SW Region.
Ministry of Justice,HMCTS,27/Mar/2015 ,261000-Fuel and Utilities,EZ999-Wales Region,CORONA ENERGY,3172406,85.51 ,HMCTS Wales Corona gas consolidated charges 2014/15.
Ministry of Justice,HMCTS,27/Mar/2015 ,261000-Fuel and Utilities,EZ999-Wales Region,CORONA ENERGY,3172406,"30,792.60 ",HMCTS Wales Corona gas consolidated charges 2014/15.
Ministry of Justice,HMCTS,27/Mar/2015 ,261000-Fuel and Utilities,EZ999-Wales Region,CORONA ENERGY,3172406,4.28 ,HMCTS Wales Corona gas consolidated charges 2014/15.
Ministry of Justice,HMCTS,27/Mar/2015 ,261000-Fuel and Utilities,EZ999-Wales Region,CORONA ENERGY,3172406,"6,158.52 ",HMCTS Wales Corona gas consolidated charges 2014/15.
Ministry of Justice,HMCTS,27/Mar/2015 ,261000-Fuel and Utilities,FZ999-Midlands Region,CORONA ENERGY,3172406,31.94 ,Corona Energy gas HMCTS Midlands 2014/15.
Ministry of Justice,HMCTS,27/Mar/2015 ,261000-Fuel and Utilities,FZ999-Midlands Region,CORONA ENERGY,3172406,"85,550.92 ",Corona Energy gas HMCTS Midlands 2014/15.
Ministry of Justice,HMCTS,27/Mar/2015 ,261000-Fuel and Utilities,FZ999-Midlands Region,CORONA ENERGY,3172406,1.60 ,Corona Energy gas HMCTS Midlands 2014/15.
Ministry of Justice,HMCTS,27/Mar/2015 ,261000-Fuel and Utilities,FZ999-Midlands Region,CORONA ENERGY,3172406,"17,110.18 ",Corona Energy gas HMCTS Midlands 2014/15.
Ministry of Justice,HMCTS,27/Mar/2015 ,261000-Fuel and Utilities,GZ999-North West Region,CORONA ENERGY,3172406,87.10 ,NW Region Consolidated - Gas - Corona
Ministry of Justice,HMCTS,27/Mar/2015 ,261000-Fuel and Utilities,GZ999-North West Region,CORONA ENERGY,3172406,"93,093.34 ",NW Region Consolidated - Gas - Corona
Ministry of Justice,HMCTS,27/Mar/2015 ,261000-Fuel and Utilities,GZ999-North West Region,CORONA ENERGY,3172406,4.36 ,NW Region Consolidated - Gas - Corona
Ministry of Justice,HMCTS,27/Mar/2015 ,261000-Fuel and Utilities,GZ999-North West Region,CORONA ENERGY,3172406,"18,618.67 ",NW Region Consolidated - Gas - Corona
Ministry of Justice,HMCTS,27/Mar/2015 ,261000-Fuel and Utilities,HZ999-North East Region,CORONA ENERGY,3172406,0.04 ,North East Consolidated Account - Gas - Corona 
Ministry of Justice,HMCTS,27/Mar/2015 ,261000-Fuel and Utilities,HZ999-North East Region,CORONA ENERGY,3172406,"89,346.45 ",North East Consolidated Account - Gas - Corona 
Ministry of Justice,HMCTS,27/Mar/2015 ,261000-Fuel and Utilities,HZ999-North East Region,CORONA ENERGY,3172406,-0.45 ,North East Consolidated Account - Gas - Corona 
Ministry of Justice,HMCTS,27/Mar/2015 ,261000-Fuel and Utilities,HZ999-North East Region,CORONA ENERGY,3172406,"17,871.10 ",North East Consolidated Account - Gas - Corona 
Ministry of Justice,HMCTS,23/Mar/2015 ,610400-Debtors <1 year - Prepayments & Accrued Income,GZ999-North West Region,CRYSTAL 5 LTD (HW),3164990,600.00 ,Rent payment
Ministry of Justice,HMCTS,23/Mar/2015 ,610400-Debtors <1 year - Prepayments & Accrued Income,GZ999-North West Region,CRYSTAL 5 LTD (HW),3164990,120.00 ,Rent payment
Ministry of Justice,HMCTS,27/Mar/2015 ,610400-Debtors <1 year - Prepayments & Accrued Income,GZ999-North West Region,CRYSTAL 5 LTD (HW),3172407,"33,354.62 ",Service charge payment
Ministry of Justice,HMCTS,27/Mar/2015 ,610400-Debtors <1 year - Prepayments & Accrued Income,GZ999-North West Region,CRYSTAL 5 LTD (HW),3172407,"6,670.93 ",Service charge payment
Ministry of Justice,HMCTS,23/Mar/2015 ,610400-Debtors <1 year - Prepayments & Accrued Income,GZ999-North West Region,CRYSTAL 5 LTD (HW),3164990,"63,775.75 ",Service charge payment
Ministry of Justice,HMCTS,23/Mar/2015 ,610400-Debtors <1 year - Prepayments & Accrued Income,GZ999-North West Region,CRYSTAL 5 LTD (HW),3164990,"12,755.15 ",Service charge payment
Ministry of Justice,HMCTS,23/Mar/2015 ,221000-Property Rent and Rates,SM999-National Business Centres,CUSHMAN & WAKEFIELD LLP,3164992,"123,580.00 ",Rent payment
Ministry of Justice,HMCTS,23/Mar/2015 ,221000-Property Rent and Rates,SM999-National Business Centres,CUSHMAN & WAKEFIELD LLP,3164992,"52,940.75 ",Rent payment
Ministry of Justice,HMCTS,23/Mar/2015 ,221000-Property Rent and Rates,SM999-National Business Centres,CUSHMAN & WAKEFIELD LLP,3164992,"35,304.15 ",Rent payment
Ministry of Justice,HMCTS,10/Mar/2015 ,222002-Other Property Costs,AG999-HQ - Estates,DEPARTMENT FOR WORK & PENSIONS (DWP),3851,"731,234.39 ",PRIME FUP costs - Tribunal sites
Ministry of Justice,HMCTS,10/Mar/2015 ,222002-Other Property Costs,AG999-HQ - Estates,DEPARTMENT FOR WORK & PENSIONS (DWP),3851,"19,758.94 ",PRIME utilities costs - Tribunal sites
Ministry of Justice,HMCTS,09/Mar/2015 ,222002-Other Property Costs,AG999-HQ - Estates,DEPARTMENT FOR WORK & PENSIONS (DWP),3847,"32,842.42 ",PRIME variables - Tribunal sites
Ministry of Justice,HMCTS,10/Mar/2015 ,222002-Other Property Costs,AG999-HQ - Estates,DEPARTMENT FOR WORK & PENSIONS (DWP),3851,"123,113.07 ",PRIME rates - Tribunal sites
Ministry of Justice,HMCTS,23/Mar/2015 ,262000-SCA Costs,FZ999-Midlands Region,DERBYSHIRE COURTS LTD,3165011,"497,262.48 ",Derby & Chesterfield - Derbyshire Courts Ltd (SE1 9RD) - Monthly 2014-15 Unitary Charges for Derbyshire
Ministry of Justice,HMCTS,04/Mar/2015 ,221000-Property Rent and Rates,BZ999-London Region,DERWENT LONDON,3143361,"430,000.00 ",Rent payment
Ministry of Justice,HMCTS,04/Mar/2015 ,221000-Property Rent and Rates,BZ999-London Region,DERWENT LONDON,3143361,"86,000.00 ",Rent payment
Ministry of Justice,HMCTS,04/Mar/2015 ,222002-Other Property Costs,BZ999-London Region,DERWENT LONDON,3143361,"60,463.74 ",Service charge payment
Ministry of Justice,HMCTS,04/Mar/2015 ,222002-Other Property Costs,BZ999-London Region,DERWENT LONDON,3143361,"26,972.53 ",Service charge payment
Ministry of Justice,HMCTS,04/Mar/2015 ,222002-Other Property Costs,BZ999-London Region,DERWENT LONDON,3143361,"17,487.26 ",Service charge payment
Ministry of Justice,HMCTS,18/Mar/2015 ,610400-Debtors <1 year - Prepayments & Accrued Income,BZ999-London Region,DTZ DEBENHAM TIE LEUNG,3157748,"58,502.46 ",Service charge payment
Ministry of Justice,HMCTS,18/Mar/2015 ,610400-Debtors <1 year - Prepayments & Accrued Income,BZ999-London Region,DTZ DEBENHAM TIE LEUNG,3157748,"11,700.49 ",Service charge payment
Ministry of Justice,HMCTS,18/Mar/2015 ,610400-Debtors <1 year - Prepayments & Accrued Income,BZ999-London Region,DTZ DEBENHAM TIE LEUNG,3157748,"56,125.55 ",Service charge payment
Ministry of Justice,HMCTS,18/Mar/2015 ,610400-Debtors <1 year - Prepayments & Accrued Income,BZ999-London Region,DTZ DEBENHAM TIE LEUNG,3157748,"11,225.11 ",Service charge payment
Ministry of Justice,HMCTS,10/Mar/2015 ,610400-Debtors <1 year - Prepayments & Accrued Income,CZ999-South East Region,DTZ DEBENHAM TIE LEUNG,3149473,"13,750.00 ",Rent payment
Ministry of Justice,HMCTS,10/Mar/2015 ,610400-Debtors <1 year - Prepayments & Accrued Income,CZ999-South East Region,DTZ DEBENHAM TIE LEUNG,3149473,"2,750.00 ",Rent payment
Ministry of Justice,HMCTS,10/Mar/2015 ,610400-Debtors <1 year - Prepayments & Accrued Income,CZ999-South East Region,DTZ DEBENHAM TIE LEUNG,3149473,"11,910.42 ",Service charge payment
Ministry of Justice,HMCTS,10/Mar/2015 ,610400-Debtors <1 year - Prepayments & Accrued Income,CZ999-South East Region,DTZ DEBENHAM TIE LEUNG,3149473,"2,382.08 ",Service charge payment
Ministry of Justice,HMCTS,03/Mar/2015 ,610400-Debtors <1 year - Prepayments & Accrued Income,BZ999-London Region,EDDISONS,3141764,"31,221.57 ",Rent payment
Ministry of Justice,HMCTS,03/Mar/2015 ,610400-Debtors <1 year - Prepayments & Accrued Income,BZ999-London Region,EDDISONS,3141764,"6,244.31 ",Rent payment
Ministry of Justice,HMCTS,03/Mar/2015 ,221000-Property Rent and Rates,DZ999-South West Region,EDDISONS,3141764,"21,936.50 ",Rent payment
Ministry of Justice,HMCTS,03/Mar/2015 ,221000-Property Rent and Rates,DZ999-South West Region,EDDISONS,3141764,"4,387.30 ",Rent payment
Ministry of Justice,HMCTS,03/Mar/2015 ,222002-Other Property Costs,DZ999-South West Region,EDDISONS,3141764,"8,978.56 ",Service charge payment
Ministry of Justice,HMCTS,03/Mar/2015 ,222002-Other Property Costs,DZ999-South West Region,EDDISONS,3141764,"1,795.71 ",Service charge payment
Ministry of Justice,HMCTS,18/Mar/2015 ,261000-Fuel and Utilities,BZ999-London Region,EDF ENERGY LTD,3157816,-0.01 ,EDF Energy Ltd - Electricity Costs for RCJ. (Vat Charges 20% credit)
Ministry of Justice,HMCTS,18/Mar/2015 ,261000-Fuel and Utilities,BZ999-London Region,EDF ENERGY LTD,3157816,"48,982.76 ",EDF Energy Ltd - Electricity Costs for RCJ.
Ministry of Justice,HMCTS,18/Mar/2015 ,261000-Fuel and Utilities,BZ999-London Region,EDF ENERGY LTD,3157816,"9,796.55 ",EDF Energy Ltd - Electricity Costs for RCJ. (Vat Charges 20%)
Ministry of Justice,HMCTS,27/Mar/2015 ,261000-Fuel and Utilities,GZ999-North West Region,EDF ENERGY LTD,3172412,0.01 ,Manchester CJC - Electricity - EDF
Ministry of Justice,HMCTS,27/Mar/2015 ,261000-Fuel and Utilities,GZ999-North West Region,EDF ENERGY LTD,3172412,"5,419.66 ",Manchester CJC - Electricity - EDF
Ministry of Justice,HMCTS,27/Mar/2015 ,261000-Fuel and Utilities,GZ999-North West Region,EDF ENERGY LTD,3172412,"27,098.32 ",Manchester CJC - Electricity - EDF
Ministry of Justice,HMCTS,23/Mar/2015 ,262000-SCA Costs,DZ999-South West Region,ENTERPRISE CIVIC BUILDINGS LIMITED,3165043,"277,201.38 ",Exeter - Enterprise Civic Buildings  Ltd (W1S 1TD) - Monthly 2014-15 Unitary Charges for Exeter PFI
Ministry of Justice,HMCTS,23/Mar/2015 ,262000-SCA Costs,DZ999-South West Region,ENTERPRISE CIVIC BUILDINGS LIMITED,3165043,"280,772.48 ",Exeter - Enterprise Civic Buildings  Ltd (W1S 1TD) - Monthly 2014-15 Unitary Charges for Exeter PFI
Ministry of Justice,HMCTS,03/Mar/2015 ,610400-Debtors <1 year - Prepayments & Accrued Income,HZ999-North East Region,ES GROUP LTD,3141773,"32,043.36 ",Service charge payment
Ministry of Justice,HMCTS,03/Mar/2015 ,610400-Debtors <1 year - Prepayments & Accrued Income,HZ999-North East Region,ES GROUP LTD,3141773,"6,408.67 ",Service charge payment
Ministry of Justice,HMCTS,23/Mar/2015 ,221000-Property Rent and Rates,BZ999-London Region,FERNEX LTD,3165051,"137,625.00 ",Rent payment
Ministry of Justice,HMCTS,23/Mar/2015 ,221000-Property Rent and Rates,BZ999-London Region,FERNEX LTD,3165051,"27,525.00 ",Rent payment
Ministry of Justice,HMCTS,27/Mar/2015 ,222003-CIS Labour TFM Estates,EZ999-Wales Region,G4S FACILITIES MANAGEMENT (UK) LTD,3172418,557.02 ,Wales - G4S - Catering
Ministry of Justice,HMCTS,27/Mar/2015 ,222003-CIS Labour TFM Estates,EZ999-Wales Region,G4S FACILITIES MANAGEMENT (UK) LTD,3172418,"67,781.64 ",Wales - G4S - Cleaning
Ministry of Justice,HMCTS,27/Mar/2015 ,222003-CIS Labour TFM Estates,EZ999-Wales Region,G4S FACILITIES MANAGEMENT (UK) LTD,3172418,"2,321.15 ",Wales - G4S - Cleaning
Ministry of Justice,HMCTS,27/Mar/2015 ,222003-CIS Labour TFM Estates,EZ999-Wales Region,G4S FACILITIES MANAGEMENT (UK) LTD,3172418,"12,156.91 ",Wales - G4S - Waste Disposal
Ministry of Justice,HMCTS,27/Mar/2015 ,222003-CIS Labour TFM Estates,EZ999-Wales Region,G4S FACILITIES MANAGEMENT (UK) LTD,3172418,"140,339.82 ",Wales - G4S - Security
Ministry of Justice,HMCTS,27/Mar/2015 ,222003-CIS Labour TFM Estates,EZ999-Wales Region,G4S FACILITIES MANAGEMENT (UK) LTD,3172418,"20,052.31 ",Wales - G4S - Security
Ministry of Justice,HMCTS,27/Mar/2015 ,222003-CIS Labour TFM Estates,EZ999-Wales Region,G4S FACILITIES MANAGEMENT (UK) LTD,3172418,"42,800.42 ",Wales - G4S - Management Costs
Ministry of Justice,HMCTS,27/Mar/2015 ,222003-CIS Labour TFM Estates,EZ999-Wales Region,G4S FACILITIES MANAGEMENT (UK) LTD,3172418,"13,174.87 ",Wales - G4S - Management
Ministry of Justice,HMCTS,27/Mar/2015 ,222003-CIS Labour TFM Estates,EZ999-Wales Region,G4S FACILITIES MANAGEMENT (UK) LTD,3172418,"2,344.95 ",Wales - G4S - Management Costs
Ministry of Justice,HMCTS,27/Mar/2015 ,222003-CIS Labour TFM Estates,EZ999-Wales Region,G4S FACILITIES MANAGEMENT (UK) LTD,3172418,"1,678.01 ",Wales - G4S - Management Costs
Ministry of Justice,HMCTS,27/Mar/2015 ,222003-CIS Labour TFM Estates,EZ999-Wales Region,G4S FACILITIES MANAGEMENT (UK) LTD,3172418,"12,650.08 ",Wales - G4S - Internal Maintenance
Ministry of Justice,HMCTS,27/Mar/2015 ,222003-CIS Labour TFM Estates,EZ999-Wales Region,G4S FACILITIES MANAGEMENT (UK) LTD,3172418,"57,936.26 ",Wales - G4S - Mechanical & Electrical
Ministry of Justice,HMCTS,27/Mar/2015 ,222003-CIS Labour TFM Estates,EZ999-Wales Region,G4S FACILITIES MANAGEMENT (UK) LTD,3172418,"24,175.08 ",Wales - G4S - Internal Maintenance
Ministry of Justice,HMCTS,27/Mar/2015 ,222003-CIS Labour TFM Estates,EZ999-Wales Region,G4S FACILITIES MANAGEMENT (UK) LTD,3172418,"7,090.93 ",Wales - G4S - Mechanical & Electrical
Ministry of Justice,HMCTS,27/Mar/2015 ,222003-CIS Labour TFM Estates,EZ999-Wales Region,G4S FACILITIES MANAGEMENT (UK) LTD,3172418,"5,997.46 ",Wales - G4S - Grounds Maintenance
Ministry of Justice,HMCTS,31/Mar/2015 ,222003-CIS Labour TFM Estates,FZ999-Midlands Region,G4S FACILITIES MANAGEMENT (UK) LTD,7744,615.21 ,Water and Vending Machine
Ministry of Justice,HMCTS,31/Mar/2015 ,222003-CIS Labour TFM Estates,FZ999-Midlands Region,G4S FACILITIES MANAGEMENT (UK) LTD,7744,"180,041.79 ",Cleaning
Ministry of Justice,HMCTS,27/Mar/2015 ,222003-CIS Labour TFM Estates,FZ999-Midlands Region,G4S FACILITIES MANAGEMENT (UK) LTD,3172418,"4,801.47 ",Cleaning
Ministry of Justice,HMCTS,31/Mar/2015 ,222003-CIS Labour TFM Estates,FZ999-Midlands Region,G4S FACILITIES MANAGEMENT (UK) LTD,7744,"21,718.49 ",Waste Disposal
Ministry of Justice,HMCTS,31/Mar/2015 ,222003-CIS Labour TFM Estates,FZ999-Midlands Region,G4S FACILITIES MANAGEMENT (UK) LTD,7744,"344,412.80 ",Security
Ministry of Justice,HMCTS,27/Mar/2015 ,222003-CIS Labour TFM Estates,FZ999-Midlands Region,G4S FACILITIES MANAGEMENT (UK) LTD,3172418,"40,164.32 ",Security
Ministry of Justice,HMCTS,27/Mar/2015 ,222003-CIS Labour TFM Estates,FZ999-Midlands Region,G4S FACILITIES MANAGEMENT (UK) LTD,3172418,"1,352.72 ",Security
Ministry of Justice,HMCTS,27/Mar/2015 ,222003-CIS Labour TFM Estates,FZ999-Midlands Region,G4S FACILITIES MANAGEMENT (UK) LTD,3172418,"104,391.12 ",Management Costs
Ministry of Justice,HMCTS,31/Mar/2015 ,222003-CIS Labour TFM Estates,FZ999-Midlands Region,G4S FACILITIES MANAGEMENT (UK) LTD,7744,"32,461.06 ",Management Costs
Ministry of Justice,HMCTS,27/Mar/2015 ,222003-CIS Labour TFM Estates,FZ999-Midlands Region,G4S FACILITIES MANAGEMENT (UK) LTD,3172418,"2,180.15 ",Management Costs
Ministry of Justice,HMCTS,27/Mar/2015 ,222003-CIS Labour TFM Estates,FZ999-Midlands Region,G4S FACILITIES MANAGEMENT (UK) LTD,3172418,"3,549.34 ",Management Costs
Ministry of Justice,HMCTS,27/Mar/2015 ,222003-CIS Labour TFM Estates,FZ999-Midlands Region,G4S FACILITIES MANAGEMENT (UK) LTD,3172418,"152,424.33 ",M&E Repair & Maintenance
Ministry of Justice,HMCTS,27/Mar/2015 ,222003-CIS Labour TFM Estates,FZ999-Midlands Region,G4S FACILITIES MANAGEMENT (UK) LTD,3172418,"27,386.39 ",Internal Repair and Maintenance
Ministry of Justice,HMCTS,27/Mar/2015 ,222003-CIS Labour TFM Estates,FZ999-Midlands Region,G4S FACILITIES MANAGEMENT (UK) LTD,3172418,"20,130.37 ",M&E Repair & Maintenance
Ministry of Justice,HMCTS,27/Mar/2015 ,222003-CIS Labour TFM Estates,FZ999-Midlands Region,G4S FACILITIES MANAGEMENT (UK) LTD,3172418,"7,946.76 ",Internal Repair & Maintenance
Ministry of Justice,HMCTS,27/Mar/2015 ,222003-CIS Labour TFM Estates,FZ999-Midlands Region,G4S FACILITIES MANAGEMENT (UK) LTD,3172418,"8,625.34 ",Grounds Maintenance
Ministry of Justice,HMCTS,27/Mar/2015 ,222003-CIS Labour TFM Estates,FZ999-Midlands Region,G4S FACILITIES MANAGEMENT (UK) LTD,3172418,991.50 ,Grounds Maintenance
Ministry of Justice,HMCTS,31/Mar/2015 ,222003-CIS Labour TFM Estates,FZ999-Midlands Region,G4S FACILITIES MANAGEMENT (UK) LTD,7744,"1,455.12 ",Pest Control
Ministry of Justice,HMCTS,27/Mar/2015 ,222003-CIS Labour TFM Estates,FZ999-Midlands Region,G4S FACILITIES MANAGEMENT (UK) LTD,3172418,"1,006.00 ",Pest & Vermin
Ministry of Justice,HMCTS,31/Mar/2015 ,222003-CIS Labour TFM Estates,GZ999-North West Region,G4S FACILITIES MANAGEMENT (UK) LTD,7743,176.72 ,Water and Vending Machine
Ministry of Justice,HMCTS,31/Mar/2015 ,222003-CIS Labour TFM Estates,GZ999-North West Region,G4S FACILITIES MANAGEMENT (UK) LTD,7743,"180,373.57 ",Cleaning
Ministry of Justice,HMCTS,27/Mar/2015 ,222003-CIS Labour TFM Estates,GZ999-North West Region,G4S FACILITIES MANAGEMENT (UK) LTD,3172418,"2,584.12 ",Cleaning
Ministry of Justice,HMCTS,31/Mar/2015 ,222003-CIS Labour TFM Estates,GZ999-North West Region,G4S FACILITIES MANAGEMENT (UK) LTD,7743,"19,729.58 ",Waste
Ministry of Justice,HMCTS,27/Mar/2015 ,222003-CIS Labour TFM Estates,GZ999-North West Region,G4S FACILITIES MANAGEMENT (UK) LTD,3172418,"1,710.60 ",Waste
Ministry of Justice,HMCTS,31/Mar/2015 ,222003-CIS Labour TFM Estates,GZ999-North West Region,G4S FACILITIES MANAGEMENT (UK) LTD,7743,"288,217.92 ",Security
Ministry of Justice,HMCTS,27/Mar/2015 ,222003-CIS Labour TFM Estates,GZ999-North West Region,G4S FACILITIES MANAGEMENT (UK) LTD,3172418,"33,357.18 ",Security
Ministry of Justice,HMCTS,27/Mar/2015 ,222003-CIS Labour TFM Estates,GZ999-North West Region,G4S FACILITIES MANAGEMENT (UK) LTD,3172418,"100,929.25 ",TFM Annual Management Costs
Ministry of Justice,HMCTS,31/Mar/2015 ,222003-CIS Labour TFM Estates,GZ999-North West Region,G4S FACILITIES MANAGEMENT (UK) LTD,7743,"29,373.82 ",Management Costs
Ministry of Justice,HMCTS,27/Mar/2015 ,222003-CIS Labour TFM Estates,GZ999-North West Region,G4S FACILITIES MANAGEMENT (UK) LTD,3172418,"2,910.97 ",Management Costs
Ministry of Justice,HMCTS,27/Mar/2015 ,222003-CIS Labour TFM Estates,GZ999-North West Region,G4S FACILITIES MANAGEMENT (UK) LTD,3172418,"186,221.56 ",TFM Annual Fixed Internal Maint Service & M&E
Ministry of Justice,HMCTS,27/Mar/2015 ,222003-CIS Labour TFM Estates,GZ999-North West Region,G4S FACILITIES MANAGEMENT (UK) LTD,3172418,"11,836.35 ",TFM Annual Grounds Maintenance
Ministry of Justice,HMCTS,31/Mar/2015 ,222003-CIS Labour TFM Estates,GZ999-North West Region,G4S FACILITIES MANAGEMENT (UK) LTD,7743,806.63 ,Pest Control
Ministry of Justice,HMCTS,27/Mar/2015 ,222003-CIS Labour TFM Estates,GZ999-North West Region,G4S FACILITIES MANAGEMENT (UK) LTD,3172418,"1,161.00 ",Pest & Vermin
Ministry of Justice,HMCTS,31/Mar/2015 ,222003-CIS Labour TFM Estates,HZ999-North East Region,G4S FACILITIES MANAGEMENT (UK) LTD,7742,205.48 ,Water and Vending Machine
Ministry of Justice,HMCTS,31/Mar/2015 ,222003-CIS Labour TFM Estates,HZ999-North East Region,G4S FACILITIES MANAGEMENT (UK) LTD,7742,"167,733.73 ",Cleaning
Ministry of Justice,HMCTS,27/Mar/2015 ,222003-CIS Labour TFM Estates,HZ999-North East Region,G4S FACILITIES MANAGEMENT (UK) LTD,3172418,"7,021.34 ",Cleaning
Ministry of Justice,HMCTS,31/Mar/2015 ,222003-CIS Labour TFM Estates,HZ999-North East Region,G4S FACILITIES MANAGEMENT (UK) LTD,7742,"36,971.82 ",Waste
Ministry of Justice,HMCTS,27/Mar/2015 ,222003-CIS Labour TFM Estates,HZ999-North East Region,G4S FACILITIES MANAGEMENT (UK) LTD,3172418,300.60 ,Waste
Ministry of Justice,HMCTS,31/Mar/2015 ,222003-CIS Labour TFM Estates,HZ999-North East Region,G4S FACILITIES MANAGEMENT (UK) LTD,7742,"331,118.59 ",Security
Ministry of Justice,HMCTS,27/Mar/2015 ,222003-CIS Labour TFM Estates,HZ999-North East Region,G4S FACILITIES MANAGEMENT (UK) LTD,3172418,"15,472.72 ",Security
Ministry of Justice,HMCTS,27/Mar/2015 ,222003-CIS Labour TFM Estates,HZ999-North East Region,G4S FACILITIES MANAGEMENT (UK) LTD,3172418,"107,310.28 ",TFM Annual Management costs
Ministry of Justice,HMCTS,31/Mar/2015 ,222003-CIS Labour TFM Estates,HZ999-North East Region,G4S FACILITIES MANAGEMENT (UK) LTD,7742,"32,341.29 ",Management Costs
Ministry of Justice,HMCTS,27/Mar/2015 ,222003-CIS Labour TFM Estates,HZ999-North East Region,G4S FACILITIES MANAGEMENT (UK) LTD,3172418,"3,666.71 ",Management Costs
Ministry of Justice,HMCTS,27/Mar/2015 ,222003-CIS Labour TFM Estates,HZ999-North East Region,G4S FACILITIES MANAGEMENT (UK) LTD,3172418,"1,732.98 ",Management Costs
Ministry of Justice,HMCTS,27/Mar/2015 ,222003-CIS Labour TFM Estates,HZ999-North East Region,G4S FACILITIES MANAGEMENT (UK) LTD,3172418,"170,651.29 ",TFM Annual  Fixed Internal Maint Service and M&E
Ministry of Justice,HMCTS,27/Mar/2015 ,222003-CIS Labour TFM Estates,HZ999-North East Region,G4S FACILITIES MANAGEMENT (UK) LTD,3172418,"48,529.42 ",Internal Maintenance and M&E
Ministry of Justice,HMCTS,27/Mar/2015 ,222003-CIS Labour TFM Estates,HZ999-North East Region,G4S FACILITIES MANAGEMENT (UK) LTD,3172418,"9,780.15 ",TFM Annual Grounds Maintenance
Ministry of Justice,HMCTS,27/Mar/2015 ,222003-CIS Labour TFM Estates,HZ999-North East Region,G4S FACILITIES MANAGEMENT (UK) LTD,3172418,360.00 ,Grounds Maintenance
Ministry of Justice,HMCTS,31/Mar/2015 ,222003-CIS Labour TFM Estates,HZ999-North East Region,G4S FACILITIES MANAGEMENT (UK) LTD,7742,190.33 ,Pest & Vermin
Ministry of Justice,HMCTS,27/Mar/2015 ,222003-CIS Labour TFM Estates,HZ999-North East Region,G4S FACILITIES MANAGEMENT (UK) LTD,3172418,311.75 ,Pest & Vermin
Ministry of Justice,HMCTS,18/Mar/2015 ,532000-Tangible GBV - Additions,GZ999-North West Region,GALLIFORD TRY CONSTRUCTION (UK) LTD,3158020,"227,765.17 ",CIS Labour - NW Regional Estates Team - Galliford Try -  North West Region capital Works Programme 14-15
Ministry of Justice,HMCTS,18/Mar/2015 ,532000-Tangible GBV - Additions,GZ999-North West Region,GALLIFORD TRY CONSTRUCTION (UK) LTD,3158020,"45,553.03 ",CIS Labour - NW Regional Estates Team - Galliford Try -  North West Region capital Works Programme 14-15
Ministry of Justice,HMCTS,27/Mar/2015 ,532000-Tangible GBV - Additions,GZ999-North West Region,GALLIFORD TRY CONSTRUCTION (UK) LTD,3172419,"601,084.84 ",CIS Labour - NW Regional Estates Team - Galliford Try -  North West Region capital Works Programme 14-15
Ministry of Justice,HMCTS,27/Mar/2015 ,532000-Tangible GBV - Additions,GZ999-North West Region,GALLIFORD TRY CONSTRUCTION (UK) LTD,3172419,"120,216.97 ",CIS Labour - NW Regional Estates Team - Galliford Try -  North West Region capital Works Programme 14-15
Ministry of Justice,HMCTS,18/Mar/2015 ,532000-Tangible GBV - Additions,CZ999-South East Region,GALLIFORD TRY CONSTRUCTION LTD#CA10810181,3159445,"300,000.00 ",Retention release for new builds at Chelmsford and Colchester
Ministry of Justice,HMCTS,10/Mar/2015 ,610400-Debtors <1 year - Prepayments & Accrued Income,CZ999-South East Region,GDPP,3149517,"59,125.00 ",Rent payment
Ministry of Justice,HMCTS,10/Mar/2015 ,610400-Debtors <1 year - Prepayments & Accrued Income,CZ999-South East Region,GDPP,3149517,"11,825.00 ",Rent payment
Ministry of Justice,HMCTS,23/Mar/2015 ,610400-Debtors <1 year - Prepayments & Accrued Income,CZ999-South East Region,GOOD HARVEST GROUP LTD,3165080,"41,080.00 ",Rent payment
Ministry of Justice,HMCTS,23/Mar/2015 ,610400-Debtors <1 year - Prepayments & Accrued Income,CZ999-South East Region,GOOD HARVEST GROUP LTD,3165080,"8,216.00 ",Rent payment
Ministry of Justice,HMCTS,30/Mar/2015 ,223000-Other Expenditure,FC999-Centrally Managed Costs by F&G,GOVERNMENT LEGAL DEPARTMENT,3922,"52,283.12 ",Government legal department  Costs
Ministry of Justice,HMCTS,30/Mar/2015 ,223000-Other Expenditure,FC999-Centrally Managed Costs by F&G,GOVERNMENT LEGAL DEPARTMENT,3922,"5,489.29 ",Government legal department  Costs
Ministry of Justice,HMCTS,30/Mar/2015 ,223000-Other Expenditure,FC999-Centrally Managed Costs by F&G,GOVERNMENT LEGAL DEPARTMENT,3922,296.00 ,Government legal department  Costs
Ministry of Justice,HMCTS,18/Mar/2015 ,266000-Judicial Costs,AG999-HQ - Estates,GROUND TRANSPORT LTD,3158189,"25,682.03 ",Various Judges' Lodgings - Ground Transport Ltd - Judicial Car Provision 2014/15 Replaces PO 20000173460
Ministry of Justice,HMCTS,25/Mar/2015 ,311200-Criminal Legal Aid,BZ999-London Region,GUNEY CLARK & RYAN#GB37173605,299342,"35,993.91 ",Legal fees to solicitors for the repayment of costs to parties after gaining legal aid and represenation order
Ministry of Justice,HMCTS,03/Mar/2015 ,221000-Property Rent and Rates,DZ999-South West Region,GVA GRIMLEY LTD T/A GVA,3141802,"25,250.00 ",Rent payment
Ministry of Justice,HMCTS,03/Mar/2015 ,221000-Property Rent and Rates,DZ999-South West Region,GVA GRIMLEY LTD T/A GVA,3141802,"5,050.00 ",Rent payment
Ministry of Justice,HMCTS,03/Mar/2015 ,222002-Other Property Costs,DZ999-South West Region,GVA GRIMLEY LTD T/A GVA,3141802,"10,494.00 ",Service charge payment
Ministry of Justice,HMCTS,03/Mar/2015 ,222002-Other Property Costs,DZ999-South West Region,GVA GRIMLEY LTD T/A GVA,3141802,"2,098.80 ",Service charge payment
Ministry of Justice,HMCTS,31/Mar/2015 ,262000-SCA Costs,FZ999-Midlands Region,H & W COURTS LIMITED,3174942,"610,332.96 ",Hereford & Worcester - H & W Courts Ltd - Monthly 2014-15 Unitary Charges for H&W PFI
Ministry of Justice,HMCTS,23/Mar/2015 ,221000-Property Rent and Rates,FZ999-Midlands Region,HELIX PROPERTIES,3165115,"21,830.60 ",Rent payment
Ministry of Justice,HMCTS,23/Mar/2015 ,221000-Property Rent and Rates,FZ999-Midlands Region,HELIX PROPERTIES,3165115,"4,366.12 ",Rent payment
Ministry of Justice,HMCTS,24/Mar/2015 ,532000-Tangible GBV - Additions,FZ999-Midlands Region,HENRY BOOT CONSTRUCTION LTD,3166690,"38,760.14 ",CIS Labour  - Various West Midlands Sites - Henry Boot -  West Midlands Capital Works Programme
Ministry of Justice,HMCTS,24/Mar/2015 ,532000-Tangible GBV - Additions,FZ999-Midlands Region,HENRY BOOT CONSTRUCTION LTD,3166690,"7,752.03 ",CIS Labour  - Various West Midlands Sites - Henry Boot -  West Midlands Capital Works Programme
Ministry of Justice,HMCTS,24/Mar/2015 ,532000-Tangible GBV - Additions,FZ999-Midlands Region,HENRY BOOT CONSTRUCTION LTD,3166690,"368,641.61 ",CIS Labour  - Various West Midlands Sites - Henry Boot -  West Midlands Capital Works Programme
Ministry of Justice,HMCTS,24/Mar/2015 ,532000-Tangible GBV - Additions,FZ999-Midlands Region,HENRY BOOT CONSTRUCTION LTD,3166690,"73,728.32 ",CIS Labour  - Various West Midlands Sites - Henry Boot -  West Midlands Capital Works Programme
Ministry of Justice,HMCTS,31/Mar/2015 ,532000-Tangible GBV - Additions,FZ999-Midlands Region,HENRY BOOT CONSTRUCTION LTD,7745,"515,062.37 ",CIS Labour  - Various West Midlands Sites - Henry Boot -  West Midlands Capital Works Programme
Ministry of Justice,HMCTS,31/Mar/2015 ,532000-Tangible GBV - Additions,FZ999-Midlands Region,HENRY BOOT CONSTRUCTION LTD,7745,"103,012.47 ",CIS Labour  - Various West Midlands Sites - Henry Boot -  West Midlands Capital Works Programme
Ministry of Justice,HMCTS,03/Mar/2015 ,532000-Tangible GBV - Additions,GZ999-North West Region,HENRY BOOT CONSTRUCTION LTD,3141821,"89,893.97 ",CIS Labour - Manchester (Alexandra House) ETS - Henry Boot Construction Ltd - Replace Boilers
Ministry of Justice,HMCTS,03/Mar/2015 ,532000-Tangible GBV - Additions,GZ999-North West Region,HENRY BOOT CONSTRUCTION LTD,3141821,"17,978.79 ",CIS Labour - Manchester (Alexandra House) ETS - Henry Boot Construction Ltd - Replace Boilers
Ministry of Justice,HMCTS,03/Mar/2015 ,532000-Tangible GBV - Additions,GZ999-North West Region,HENRY BOOT CONSTRUCTION LTD,3141821,"284,092.77 ",CIS Labour - Wigan Magistrates' Court - Henry Boot Construction - Replacement lighting scheme
Ministry of Justice,HMCTS,03/Mar/2015 ,532000-Tangible GBV - Additions,GZ999-North West Region,HENRY BOOT CONSTRUCTION LTD,3141821,"56,818.55 ",CIS Labour - Wigan Magistrates' Court - Henry Boot Construction - Replacement lighting scheme
Ministry of Justice,HMCTS,10/Mar/2015 ,223001-Printing Postage and Office expenditure,CZ999-South East Region,HERTFORDSHIRE CONSTABULARY,3149546,"22,170.00 ",Daily Courier delivery system between court buildings. Annual fee taken quarterly.
Ministry of Justice,HMCTS,30/Mar/2015 ,610400-Debtors <1 year - Prepayments & Accrued Income,CZ999-South East Region,HERTFORDSHIRE CONSTABULARY,3173446,"26,374.37 ",Rent payment
Ministry of Justice,HMCTS,30/Mar/2015 ,610400-Debtors <1 year - Prepayments & Accrued Income,CZ999-South East Region,HERTFORDSHIRE CONSTABULARY,3173446,"29,321.00 ",Service charge payment
Ministry of Justice,HMCTS,06/Mar/2015 ,532000-Tangible GBV - Additions,BZ999-London Region,INTERSERVE CONSTRUCTION LTD,3147138,"326,177.37 ","CIS Labour - Estates London Region - INTERSERVE CONSTRUCTION LTD - BPRN ref. 900/14/2889. 102 Petty France, refit reception and atrium."
Ministry of Justice,HMCTS,06/Mar/2015 ,532000-Tangible GBV - Additions,BZ999-London Region,INTERSERVE CONSTRUCTION LTD,3147138,"65,235.47 ","CIS Labour - Estates London Region - INTERSERVE CONSTRUCTION LTD - BPRN ref. 900/14/2889. 102 Petty France, refit reception and atrium."
Ministry of Justice,HMCTS,27/Mar/2015 ,532000-Tangible GBV - Additions,BZ999-London Region,INTERSERVE CONSTRUCTION LTD,3172429,"22,275.66 ","CIS Labour - 102 Petty France - Interserve -  BPRN ref. 900/14/2889. 102 Petty France, refit reception and atrium (2nd purchase order)"
Ministry of Justice,HMCTS,27/Mar/2015 ,532000-Tangible GBV - Additions,BZ999-London Region,INTERSERVE CONSTRUCTION LTD,3172429,"-22,275.66 ","CIS Labour - 102 Petty France - Interserve -  BPRN ref. 900/14/2889. 102 Petty France, refit reception and atrium (2nd purchase order)"
Ministry of Justice,HMCTS,27/Mar/2015 ,532000-Tangible GBV - Additions,BZ999-London Region,INTERSERVE CONSTRUCTION LTD,3172429,"222,275.66 ","CIS Labour - 102 Petty France - Interserve -  BPRN ref. 900/14/2889. 102 Petty France, refit reception and atrium (2nd purchase order)"
Ministry of Justice,HMCTS,27/Mar/2015 ,532000-Tangible GBV - Additions,BZ999-London Region,INTERSERVE CONSTRUCTION LTD,3172429,"-222,275.66 ","CIS Labour - 102 Petty France - Interserve -  BPRN ref. 900/14/2889. 102 Petty France, refit reception and atrium (2nd purchase order)"
Ministry of Justice,HMCTS,27/Mar/2015 ,532000-Tangible GBV - Additions,BZ999-London Region,INTERSERVE CONSTRUCTION LTD,3172429,"111,378.31 ","CIS Labour - 102 Petty France - Interserve -  BPRN ref. 900/14/2889. 102 Petty France, refit reception and atrium (2nd purchase order)"
Ministry of Justice,HMCTS,27/Mar/2015 ,532000-Tangible GBV - Additions,BZ999-London Region,INTERSERVE CONSTRUCTION LTD,3172429,"22,275.66 ","CIS Labour - 102 Petty France - Interserve -  BPRN ref. 900/14/2889. 102 Petty France, refit reception and atrium (2nd purchase order)"
Ministry of Justice,HMCTS,27/Mar/2015 ,532000-Tangible GBV - Additions,DZ999-South West Region,INTERSERVE CONSTRUCTION LTD,3172429,"50,117.54 ",CIS Labour-Basingstoke Magistrates'-Interserve Construction Ltd-Construction REPLACES ORDER 20000156137
Ministry of Justice,HMCTS,27/Mar/2015 ,532000-Tangible GBV - Additions,DZ999-South West Region,INTERSERVE CONSTRUCTION LTD,3172429,"10,023.51 ",CIS Labour-Basingstoke Magistrates'-Interserve Construction Ltd-Construction REPLACES ORDER 20000156137
Ministry of Justice,HMCTS,27/Mar/2015 ,532000-Tangible GBV - Additions,DZ999-South West Region,ISG CONSTRUCTION LTD,3172430,"13,000.00 ",CIS Labour - Plymouth Magistrates' Court - ISG CONSTRUCTION LTD - capital maintenance works (SAA)
Ministry of Justice,HMCTS,27/Mar/2015 ,532000-Tangible GBV - Additions,DZ999-South West Region,ISG CONSTRUCTION LTD,3172430,"4,165.00 ",CIS Labour - Plymouth Magistrates' Court - ISG CONSTRUCTION LTD - capital maintenance works (SAA)
Ministry of Justice,HMCTS,27/Mar/2015 ,532000-Tangible GBV - Additions,DZ999-South West Region,ISG CONSTRUCTION LTD,3172430,"60,835.00 ",CIS Labour - Truro Magistrates' Court - ISG CONSTRUCTION LTD - capital maintenance works (SAA)
Ministry of Justice,HMCTS,27/Mar/2015 ,532000-Tangible GBV - Additions,DZ999-South West Region,ISG CONSTRUCTION LTD,3172430,"-13,000.00 ",CIS Labour - Plymouth Magistrates' Court - ISG CONSTRUCTION LTD - capital maintenance works (SAA)
Ministry of Justice,HMCTS,27/Mar/2015 ,532000-Tangible GBV - Additions,DZ999-South West Region,ISG CONSTRUCTION LTD,3172430,833.00 ,CIS Labour - Plymouth Magistrates' Court - ISG CONSTRUCTION LTD - capital maintenance works (SAA)
Ministry of Justice,HMCTS,27/Mar/2015 ,532000-Tangible GBV - Additions,DZ999-South West Region,ISG CONSTRUCTION LTD,3172430,"12,167.00 ",CIS Labour - Truro Magistrates' Court - ISG CONSTRUCTION LTD - capital maintenance works (SAA)
Ministry of Justice,HMCTS,27/Mar/2015 ,532000-Tangible GBV - Additions,DZ999-South West Region,ISG CONSTRUCTION LTD,3172430,"175,160.00 ",CIS Labour - Winchester Combined Court - ISG Construction - Survey & design works to develop the DPP to Winchester Combined Court & Judges' Lodgings (SAA)
Ministry of Justice,HMCTS,27/Mar/2015 ,532000-Tangible GBV - Additions,DZ999-South West Region,ISG CONSTRUCTION LTD,3172430,"35,032.00 ",CIS Labour - Winchester Combined Court - ISG Construction - Survey & design works to develop the DPP to Winchester Combined Court & Judges' Lodgings (SAA)
Ministry of Justice,HMCTS,27/Mar/2015 ,532000-Tangible GBV - Additions,DZ999-South West Region,ISG CONSTRUCTION LTD,3172430,"43,996.04 ",CIS LABOUR - Aldershot Magistates - ISG CONSTRUCTION -   PPD Project - Integrate the Tribunals and County Court into the Magistrates Court.
Ministry of Justice,HMCTS,27/Mar/2015 ,532000-Tangible GBV - Additions,DZ999-South West Region,ISG CONSTRUCTION LTD,3172430,"8,799.21 ",CIS LABOUR - Aldershot Magistates - ISG CONSTRUCTION -   PPD Project - Integrate the Tribunals and County Court into the Magistrates Court.
Ministry of Justice,HMCTS,27/Mar/2015 ,532000-Tangible GBV - Additions,EZ999-Wales Region,ISG CONSTRUCTION LTD,3172430,"98,623.32 ",CIS Labour - Llanelli Magistrates Court - ISG Construction - Asbestos Removal & Integration
Ministry of Justice,HMCTS,27/Mar/2015 ,532000-Tangible GBV - Additions,EZ999-Wales Region,ISG CONSTRUCTION LTD,3172430,"19,724.66 ",CIS Labour - Llanelli Magistrates Court - ISG Construction - Asbestos Removal & Integration
Ministry of Justice,HMCTS,23/Mar/2015 ,610400-Debtors <1 year - Prepayments & Accrued Income,BZ999-London Region,JAMES ANDREW RSW,3165144,"230,786.75 ",Rent payment
Ministry of Justice,HMCTS,23/Mar/2015 ,610400-Debtors <1 year - Prepayments & Accrued Income,BZ999-London Region,JAMES ANDREW RSW,3165144,"46,157.35 ",Rent payment
Ministry of Justice,HMCTS,27/Mar/2015 ,610400-Debtors <1 year - Prepayments & Accrued Income,BZ999-London Region,JOHN & SANDRA JOSEPH,3172432,"108,525.00 ",Rent payment
Ministry of Justice,HMCTS,27/Mar/2015 ,610400-Debtors <1 year - Prepayments & Accrued Income,BZ999-London Region,JOHN & SANDRA JOSEPH,3172432,"21,705.00 ",Rent payment
Ministry of Justice,HMCTS,03/Mar/2015 ,221000-Property Rent and Rates,BZ999-London Region,JONES LANG LASALLE LTD,3141858,"490,306.00 ",Rent payment
Ministry of Justice,HMCTS,03/Mar/2015 ,221000-Property Rent and Rates,BZ999-London Region,JONES LANG LASALLE LTD,3141858,"98,061.20 ",Rent payment
Ministry of Justice,HMCTS,06/Mar/2015 ,610400-Debtors <1 year - Prepayments & Accrued Income,DZ999-South West Region,JONES LANG LASALLE LTD,3147150,"528,125.00 ",Rent payment
Ministry of Justice,HMCTS,06/Mar/2015 ,610400-Debtors <1 year - Prepayments & Accrued Income,DZ999-South West Region,JONES LANG LASALLE LTD,3147150,"105,625.00 ",Rent payment
Ministry of Justice,HMCTS,10/Mar/2015 ,610400-Debtors <1 year - Prepayments & Accrued Income,FZ999-Midlands Region,JONES LANG LASALLE LTD,3149592,"213,814.55 ",Rent payment
Ministry of Justice,HMCTS,10/Mar/2015 ,610400-Debtors <1 year - Prepayments & Accrued Income,FZ999-Midlands Region,JONES LANG LASALLE LTD,3149592,"42,762.91 ",Rent payment
Ministry of Justice,HMCTS,06/Mar/2015 ,610400-Debtors <1 year - Prepayments & Accrued Income,FZ999-Midlands Region,JONES LANG LASALLE LTD,3147149,"1,054,275.25 ",Rent payment
Ministry of Justice,HMCTS,06/Mar/2015 ,610400-Debtors <1 year - Prepayments & Accrued Income,FZ999-Midlands Region,JONES LANG LASALLE LTD,3147149,"210,855.05 ",Rent payment
Ministry of Justice,HMCTS,25/Mar/2015 ,610400-Debtors <1 year - Prepayments & Accrued Income,FZ999-Midlands Region,JONES LANG LASALLE LTD,7735,"558,520.68 ",Rent payment
Ministry of Justice,HMCTS,25/Mar/2015 ,610400-Debtors <1 year - Prepayments & Accrued Income,FZ999-Midlands Region,JONES LANG LASALLE LTD,7735,"111,704.14 ",Rent payment
Ministry of Justice,HMCTS,06/Mar/2015 ,610400-Debtors <1 year - Prepayments & Accrued Income,FZ999-Midlands Region,JONES LANG LASALLE LTD,3147149,"63,912.84 ",Service charge payment
Ministry of Justice,HMCTS,06/Mar/2015 ,610400-Debtors <1 year - Prepayments & Accrued Income,FZ999-Midlands Region,JONES LANG LASALLE LTD,3147149,"12,782.57 ",Service charge payment
Ministry of Justice,HMCTS,25/Mar/2015 ,610400-Debtors <1 year - Prepayments & Accrued Income,FZ999-Midlands Region,JONES LANG LASALLE LTD,7735,"128,520.72 ",Service charge payment
Ministry of Justice,HMCTS,25/Mar/2015 ,610400-Debtors <1 year - Prepayments & Accrued Income,FZ999-Midlands Region,JONES LANG LASALLE LTD,7735,"25,704.15 ",Service charge payment
Ministry of Justice,HMCTS,27/Mar/2015 ,222002-Other Property Costs,HZ999-North East Region,JONES LANG LASALLE LTD,3172434,"21,817.50 ",Service charge payment
Ministry of Justice,HMCTS,27/Mar/2015 ,222002-Other Property Costs,HZ999-North East Region,JONES LANG LASALLE LTD,3172434,"4,363.50 ",Service charge payment
Ministry of Justice,HMCTS,25/Mar/2015 ,222002-Other Property Costs,HZ999-North East Region,JONES LANG LASALLE LTD,3169220,"24,137.50 ",Service charge payment
Ministry of Justice,HMCTS,25/Mar/2015 ,222002-Other Property Costs,HZ999-North East Region,JONES LANG LASALLE LTD,3169220,"4,827.50 ",Service charge payment
Ministry of Justice,HMCTS,13/Mar/2015 ,211000-Judicial Salaries - Salaried,FC999-Centrally Managed Costs by F&G,JUDICIAL PENSIONS SCHEME,3860,"2,734,450.18 ",Payment to Paymaster for Lower Judiciary Pension payment
Ministry of Justice,HMCTS,13/Mar/2015 ,211000-Judicial Salaries - Salaried,FC999-Centrally Managed Costs by F&G,JUDICIAL PENSIONS SCHEME,3860,"3,334,778.00 ",Payment to Paymaster for Higher Judiciary Pension payment
Ministry of Justice,HMCTS,31/Mar/2015 ,710200-Creditors < 1 year - Trade & Other Creditors,WW000-Balance Sheet,K MILLER#NG20598/15,7754,"52,839.67 ",Local fees
Ministry of Justice,HMCTS,30/Mar/2015 ,532000-Tangible GBV - Additions,HZ999-North East Region,KARDEX SYSTEMS (UK) LTD,3173455,"21,800.00 ",Hull CCC - Kardex Systems - Installation of Kardex Vertical carousel
